{"text_format":"1","workbook":"xlsx","n_sheets":5,"sheets":["Info","Artikelliste","Buchungsliste","EAN 128","Daten"],"not_rendered":{"charts":0,"images":1,"macros":1,"external_links":0,"defined_names":2,"comments":2,"pivot_tables":0},"unopened":[],"bounds":{"document_bytes":16777216,"sheet_cells":100000,"rows_first":2000,"rows_last":500,"rows_between":2000,"halvings":0,"cell_chars":16384,"cell_head_chars":4096},"cells_cut":0,"cells_raw":0,"read":"whole","date_system":"1900"}

{"sheet":"Info","index":0,"n_rows":0,"n_cols":0,"rows_kept":0,"cut":false,"hidden":false,"merged":[]}

{"sheet":"Artikelliste","index":1,"n_rows":10019,"n_cols":14,"rows_kept":4500,"cut":true,"hidden":false,"merged":[[2,13,3,13],[1,1,1,11],[2,11,3,11],[2,8,3,8],[2,9,3,9]],"bounds":{"rows_first":2000,"rows_last":500,"rows_between":2000,"halvings":0}}
[]
[null,"Artikel- / Lagerliste (Artikelstamm)",null,null,null,null,null,null,null,null,null,null,"2018-12-08","14:37:32"]
[null,"Art.-Nr.","Artikel","Bezeichnung","Lieferant","Mindest-bestand","Ist-Bestand","Bestell-menge","bestellt","EK / St.","EK Summe","VK / St.","VK Summe","Lagerort"]
[null,"XXX",null,null,null,{"$f":"SUBTOTAL(9,F5:F10000)","v":1900},{"$f":"SUBTOTAL(9,G5:G10000)","v":2716},{"$f":"SUBTOTAL(9,H5:H10000)","v":3800},null,null,{"$f":"SUBTOTAL(9,K5:K10000)","v":387.76999999999992},null,{"$f":"SUBTOTAL(9,M5:M10000)","v":515.57000000000005}]
[null,"123450001","Schraube 8.8","M8 * 25","Max & Moritz, Essen",100,150,200,null,0.21,{"$f":"J5*G5","v":31.5},0.25,{"$f":"L5*G5","v":37.5},"Regal 5, Reihe 2"]
[null,"123450002","Schraube 8.8","M8 * 30","Max & Moritz, Essen",100,151,200,null,0.22,33.22,0.26,39.26,"Regal 5, Reihe 3"]
[null,"123450003","Schraube 8.8","M8 * 35","Max & Moritz, Essen",100,152,200,null,0.23,34.96,0.27,41.040000000000006,"Regal 5, Reihe 4"]
[null,"123460001","Mutter 8.8","M8","Frau Holle, Hattingen",100,155,200,null,0.1,15.5,0.14000000000000001,21.700000000000003,"Regal 5, Reihe 7"]
[null,"123460002","Mutter 8.8","M9","Frau Holle, Hattingen",100,100,200,null,0.11,11,0.16,16,"Regal 5, Reihe 8"]
[null,"123460003","Mutter 8.8","M10","Frau Holle, Hattingen",100,157,200,null,0.12,18.84,0.16,25.12,"Regal 5, Reihe 9"]
[null,"123460004","Mutter 8.8","M11","Frau Holle, Hattingen",100,158,200,null,0.13,20.54,0.17,26.860000000000003,"Regal 5, Reihe 10"]
[null,"123460005","Mutter 8.8","M12","Frau Holle, Hattingen",100,159,200,null,0.14000000000000001,22.26,0.18,28.619999999999997,"Regal 5, Reihe 11"]
[null,"123470001","U-Scheibe 8.8","M8","Rotkäppchen, Mülheim",100,74,200,null,0.05,3.7,0.09,6.66,"Regal 5, Reihe 12"]
[null,"123470002","U-Scheibe 8.8","M9","Rotkäppchen, Mülheim",100,161,200,null,0.06,9.66,0.1,16.100000000000001,"Regal 5, Reihe 13"]
[null,"123470003","U-Scheibe 8.8","M10","Rotkäppchen, Mülheim",100,162,200,null,7.0000000000000007E-2,11.340000000000002,0.11,17.82,"Regal 5, Reihe 14"]
[null,"123470004","U-Scheibe 8.8","M11","Rotkäppchen, Mülheim",100,163,200,null,0.08,13.040000000000001,0.12,19.559999999999999,"Regal 5, Reihe 15"]
[null,"123470005","U-Scheibe 8.8","M12","Rotkäppchen, Mülheim",100,164,200,null,0.09,14.76,0.13,21.32,"Regal 5, Reihe 16"]
[null,"123480001","Federring 8.8","M8","Sterntaler, Bochum",100,165,200,null,7.0000000000000007E-2,11.55,0.11,18.149999999999999,"Regal 5, Reihe 17"]
[null,"123480002","Federring 8.8","M9","Sterntaler, Bochum",100,166,200,null,0.08,13.280000000000001,0.12,19.919999999999998,"Regal 5, Reihe 18"]
[null,"123480003","Federring 8.8","M10","Sterntaler, Bochum",100,167,200,null,0.09,15.03,0.13,21.71,"Regal 5, Reihe 19"]
[null,"123480004","Federring 8.8","M11","Sterntaler, Bochum",100,52,200,null,0.1,5.2,0.14000000000000001,7.2800000000000011,"Regal 5, Reihe 20"]
[null,"123480005","Federring 8.8","M12","Sterntaler, Bochum",100,169,200,null,0.11,18.59,0.15,25.349999999999998,"Regal 5, Reihe 21"]
[null,"123490001","Splint","M8 * 100","Hans im Glück, Velbert",50,40,100,null,0.82,32.799999999999997,1.1100000000000001,44.400000000000006,"Regal 5, Reihe 22"]
[null,"123490002","Splint","M10 * 100","Hans im Glück, Velbert",50,51,100,null,1,51,1.2,61.199999999999996,"Regal 5, Reihe 23"]
[null,null,null,null,null,null,null,null,null,null,0,null,0]
[null,null,null,null,null,null,null,null,null,null,0,null,0]
[null,null,null,null,null,null,null,null,null,null,0,null,0]
[null,null,null,null,null,null,null,null,null,null,0,null,0]
[null,null,null,null,null,null,null,null,null,null,0,null,0]
[null,null,null,null,null,null,null,null,null,null,0,null,0]
[null,null,null,null,null,null,null,null,null,null,0,null,0]
[null,null,null,null,null,null,null,null,null,null,0,null,0]
[null,null,null,null,null,null,null,null,null,null,0,null,0]
[null,null,null,null,null,null,null,null,null,null,0,null,0]
[null,null,null,null,null,null,null,null,null,null,0,null,0]
[null,null,null,null,null,null,null,null,null,null,0,null,0]
[null,null,null,null,null,null,null,null,null,null,0,null,0]
[null,null,null,null,null,null,null,null,null,null,0,null,0]
[null,null,null,null,null,null,null,null,null,null,0,null,0]
[null,null,null,null,null,null,null,null,null,null,0,null,0]
[null,null,null,null,null,null,null,null,null,null,0,null,0]
[null,null,null,null,null,null,null,null,null,null,0,null,0]
[null,null,null,null,null,null,null,null,null,null,0,null,0]
[null,null,null,null,null,null,null,null,null,null,0,null,0]
[null,null,null,null,null,null,null,null,null,null,0,null,0]
[null,null,null,null,null,null,null,null,null,null,0,null,0]
[null,null,null,null,null,null,null,null,null,null,0,null,0]
[null,null,null,null,null,null,null,null,null,null,0,null,0]
[null,null,null,null,null,null,null,null,null,null,0,null,0]
[null,null,null,null,null,null,null,null,null,null,0,null,0]
[null,null,null,null,null,null,null,null,null,null,0,null,0]
[null,null,null,null,null,null,null,null,null,null,0,null,0]
[null,null,null,null,null,null,null,null,null,null,0,null,0]
[null,null,null,null,null,null,null,null,null,null,0,null,0]
[null,null,null,null,null,null,null,null,null,null,0,null,0]
[null,null,null,null,null,null,null,null,null,null,0,null,0]
[null,null,null,null,null,null,null,null,null,null,0,null,0]
[null,null,null,null,null,null,null,null,null,null,0,null,0]
[null,null,null,null,null,null,null,null,null,null,0,null,0]
[null,null,null,null,null,null,null,null,null,null,0,null,0]
[null,null,null,null,null,null,null,null,null,null,0,null,0]
[null,null,null,null,null,null,null,null,null,null,0,null,0]
[null,null,null,null,null,null,null,null,null,null,0,null,0]
[null,null,null,null,null,null,null,null,null,null,0,null,0]
[null,null,null,null,null,null,null,null,null,null,0,null,0]
[null,null,null,null,null,null,null,null,null,null,0,null,0]
[null,null,null,null,null,null,null,null,null,null,0,null,0]
[null,null,null,null,null,null,null,null,null,null,0,null,0]
[null,null,null,null,null,null,null,null,null,null,{"$f":"J69*G69","v":0},null,{"$f":"L69*G69","v":0}]
[null,null,null,null,null,null,null,null,null,null,0,null,0]
[null,null,null,null,null,null,null,null,null,null,0,null,0]
[null,null,null,null,null,null,null,null,null,null,0,null,0]
[null,null,null,null,null,null,null,null,null,null,0,null,0]
[null,null,null,null,null,null,null,null,null,null,0,null,0]
[null,null,null,null,null,null,null,null,null,null,0,null,0]
[null,null,null,null,null,null,null,null,null,null,0,null,0]
[null,null,null,null,null,null,null,null,null,null,0,null,0]
[null,null,null,null,null,null,null,null,null,null,0,null,0]
[null,null,null,null,null,null,null,null,null,null,0,null,0]
[null,null,null,null,null,null,null,null,null,null,0,null,0]
[null,null,null,null,null,null,null,null,null,null,0,null,0]
[null,null,null,null,null,null,null,null,null,null,0,null,0]
[null,null,null,null,null,null,null,null,null,null,0,null,0]
[null,null,null,null,null,null,null,null,null,null,0,null,0]
[null,null,null,null,null,null,null,null,null,null,0,null,0]
[null,null,null,null,null,null,null,null,null,null,0,null,0]
[null,null,null,null,null,null,null,null,null,null,0,null,0]
[null,null,null,null,null,null,null,null,null,null,0,null,0]
[null,null,null,null,null,null,null,null,null,null,0,null,0]
[null,null,null,null,null,null,null,null,null,null,0,null,0]
[null,null,null,null,null,null,null,null,null,null,0,null,0]
[null,null,null,null,null,null,null,null,null,null,0,null,0]
[null,null,null,null,null,null,null,null,null,null,0,null,0]
[null,null,null,null,null,null,null,null,null,null,0,null,0]
[null,null,null,null,null,null,null,null,null,null,0,null,0]
[null,null,null,null,null,null,null,null,null,null,0,null,0]
[null,null,null,null,null,null,null,null,null,null,0,null,0]
[null,null,null,null,null,null,null,null,null,null,0,null,0]
[null,null,null,null,null,null,null,null,null,null,0,null,0]
[null,null,null,null,null,null,null,null,null,null,0,null,0]
[null,null,null,null,null,null,null,null,null,null,0,null,0]
[null,null,null,null,null,null,null,null,null,null,0,null,0]
[null,null,null,null,null,null,null,null,null,null,0,null,0]
[null,null,null,null,null,null,null,null,null,null,0,null,0]
[null,null,null,null,null,null,null,null,null,null,0,null,0]
[null,null,null,null,null,null,null,null,null,null,0,null,0]
[null,null,null,null,null,null,null,null,null,null,0,null,0]
[null,null,null,null,null,null,null,null,null,null,0,null,0]
[null,null,null,null,null,null,null,null,null,null,0,null,0]
[null,null,null,null,null,null,null,null,null,null,0,null,0]
[null,null,null,null,null,null,null,null,null,null,0,null,0]
[null,null,null,null,null,null,null,null,null,null,0,null,0]
[null,null,null,null,null,null,null,null,null,null,0,null,0]
[null,null,null,null,null,null,null,null,null,null,0,null,0]
[null,null,null,null,null,null,null,null,null,null,0,null,0]
[null,null,null,null,null,null,null,null,null,null,0,null,0]
[null,null,null,null,null,null,null,null,null,null,0,null,0]
[null,null,null,null,null,null,null,null,null,null,0,null,0]
[null,null,null,null,null,null,null,null,null,null,0,null,0]
[null,null,null,null,null,null,null,null,null,null,0,null,0]
[null,null,null,null,null,null,null,null,null,null,0,null,0]
[null,null,null,null,null,null,null,null,null,null,0,null,0]
[null,null,null,null,null,null,null,null,null,null,0,null,0]
[null,null,null,null,null,null,null,null,null,null,0,null,0]
[null,null,null,null,null,null,null,null,null,null,0,null,0]
[null,null,null,null,null,null,null,null,null,null,0,null,0]
[null,null,null,null,null,null,null,null,null,null,0,null,0]
[null,null,null,null,null,null,null,null,null,null,0,null,0]
[null,null,null,null,null,null,null,null,null,null,0,null,0]
[null,null,null,null,null,null,null,null,null,null,0,null,0]
[null,null,null,null,null,null,null,null,null,null,0,null,0]
[null,null,null,null,null,null,null,null,null,null,0,null,0]
[null,null,null,null,null,null,null,null,null,null,{"$f":"J133*G133","v":0},null,{"$f":"L133*G133","v":0}]
[null,null,null,null,null,null,null,null,null,null,0,null,0]
[null,null,null,null,null,null,null,null,null,null,0,null,0]
[null,null,null,null,null,null,null,null,null,null,0,null,0]
[null,null,null,null,null,null,null,null,null,null,0,null,0]
[null,null,null,null,null,null,null,null,null,null,0,null,0]
[null,null,null,null,null,null,null,null,null,null,0,null,0]
[null,null,null,null,null,null,null,null,null,null,0,null,0]
[null,null,null,null,null,null,null,null,null,null,0,null,0]
[null,null,null,null,null,null,null,null,null,null,0,null,0]
[null,null,null,null,null,null,null,null,null,null,0,null,0]
[null,null,null,null,null,null,null,null,null,null,0,null,0]
[null,null,null,null,null,null,null,null,null,null,0,null,0]
[null,null,null,null,null,null,null,null,null,null,0,null,0]
[null,null,null,null,null,null,null,null,null,null,0,null,0]
[null,null,null,null,null,null,null,null,null,null,0,null,0]
[null,null,null,null,null,null,null,null,null,null,0,null,0]
[null,null,null,null,null,null,null,null,null,null,0,null,0]
[null,null,null,null,null,null,null,null,null,null,0,null,0]
[null,null,null,null,null,null,null,null,null,null,0,null,0]
[null,null,null,null,null,null,null,null,null,null,0,null,0]
[null,null,null,null,null,null,null,null,null,null,0,null,0]
[null,null,null,null,null,null,null,null,null,null,0,null,0]
[null,null,null,null,null,null,null,null,null,null,0,null,0]
[null,null,null,null,null,null,null,null,null,null,0,null,0]
[null,null,null,null,null,null,null,null,null,null,0,null,0]
[null,null,null,null,null,null,null,null,null,null,0,null,0]
[null,null,null,null,null,null,null,null,null,null,0,null,0]
[null,null,null,null,null,null,null,null,null,null,0,null,0]
[null,null,null,null,null,null,null,null,null,null,0,null,0]
[null,null,null,null,null,null,null,null,null,null,0,null,0]
[null,null,null,null,null,null,null,null,null,null,0,null,0]
[null,null,null,null,null,null,null,null,null,null,0,null,0]
[null,null,null,null,null,null,null,null,null,null,0,null,0]
[null,null,null,null,null,null,null,null,null,null,0,null,0]
[null,null,null,null,null,null,null,null,null,null,0,null,0]
[null,null,null,null,null,null,null,null,null,null,0,null,0]
[null,null,null,null,null,null,null,null,null,null,0,null,0]
[null,null,null,null,null,null,null,null,null,null,0,null,0]
[null,null,null,null,null,null,null,null,null,null,0,null,0]
[null,null,null,null,null,null,null,null,null,null,0,null,0]
[null,null,null,null,null,null,null,null,null,null,0,null,0]
[null,null,null,null,null,null,null,null,null,null,0,null,0]
[null,null,null,null,null,null,null,null,null,null,0,null,0]
[null,null,null,null,null,null,null,null,null,null,0,null,0]
[null,null,null,null,null,null,null,null,null,null,0,null,0]
[null,null,null,null,null,null,null,null,null,null,0,null,0]
[null,null,null,null,null,null,null,null,null,null,0,null,0]
[null,null,null,null,null,null,null,null,null,null,0,null,0]
[null,null,null,null,null,null,null,null,null,null,0,null,0]
[null,null,null,null,null,null,null,null,null,null,0,null,0]
[null,null,null,null,null,null,null,null,null,null,0,null,0]
[null,null,null,null,null,null,null,null,null,null,0,null,0]
[null,null,null,null,null,null,null,null,null,null,0,null,0]
[null,null,null,null,null,null,null,null,null,null,0,null,0]
[null,null,null,null,null,null,null,null,null,null,0,null,0]
[null,null,null,null,null,null,null,null,null,null,0,null,0]
[null,null,null,null,null,null,null,null,null,null,0,null,0]
[null,null,null,null,null,null,null,null,null,null,0,null,0]
[null,null,null,null,null,null,null,null,null,null,0,null,0]
[null,null,null,null,null,null,null,null,null,null,0,null,0]
[null,null,null,null,null,null,null,null,null,null,0,null,0]
[null,null,null,null,null,null,null,null,null,null,0,null,0]
[null,null,null,null,null,null,null,null,null,null,0,null,0]
[null,null,null,null,null,null,null,null,null,null,{"$f":"J197*G197","v":0},null,{"$f":"L197*G197","v":0}]
[null,null,null,null,null,null,null,null,null,null,0,null,0]
[null,null,null,null,null,null,null,null,null,null,0,null,0]
[null,null,null,null,null,null,null,null,null,null,0,null,0]
[null,null,null,null,null,null,null,null,null,null,0,null,0]
[null,null,null,null,null,null,null,null,null,null,0,null,0]
[null,null,null,null,null,null,null,null,null,null,0,null,0]
[null,null,null,null,null,null,null,null,null,null,0,null,0]
[null,null,null,null,null,null,null,null,null,null,0,null,0]
[null,null,null,null,null,null,null,null,null,null,0,null,0]
[null,null,null,null,null,null,null,null,null,null,0,null,0]
[null,null,null,null,null,null,null,null,null,null,0,null,0]
[null,null,null,null,null,null,null,null,null,null,0,null,0]
[null,null,null,null,null,null,null,null,null,null,0,null,0]
[null,null,null,null,null,null,null,null,null,null,0,null,0]
[null,null,null,null,null,null,null,null,null,null,0,null,0]
[null,null,null,null,null,null,null,null,null,null,0,null,0]
[null,null,null,null,null,null,null,null,null,null,0,null,0]
[null,null,null,null,null,null,null,null,null,null,0,null,0]
[null,null,null,null,null,null,null,null,null,null,0,null,0]
[null,null,null,null,null,null,null,null,null,null,0,null,0]
[null,null,null,null,null,null,null,null,null,null,0,null,0]
[null,null,null,null,null,null,null,null,null,null,0,null,0]
[null,null,null,null,null,null,null,null,null,null,0,null,0]
[null,null,null,null,null,null,null,null,null,null,0,null,0]
[null,null,null,null,null,null,null,null,null,null,0,null,0]
[null,null,null,null,null,null,null,null,null,null,0,null,0]
[null,null,null,null,null,null,null,null,null,null,0,null,0]
[null,null,null,null,null,null,null,null,null,null,0,null,0]
[null,null,null,null,null,null,null,null,null,null,0,null,0]
[null,null,null,null,null,null,null,null,null,null,0,null,0]
[null,null,null,null,null,null,null,null,null,null,0,null,0]
[null,null,null,null,null,null,null,null,null,null,0,null,0]
[null,null,null,null,null,null,null,null,null,null,0,null,0]
[null,null,null,null,null,null,null,null,null,null,0,null,0]
[null,null,null,null,null,null,null,null,null,null,0,null,0]
[null,null,null,null,null,null,null,null,null,null,0,null,0]
[null,null,null,null,null,null,null,null,null,null,0,null,0]
[null,null,null,null,null,null,null,null,null,null,0,null,0]
[null,null,null,null,null,null,null,null,null,null,0,null,0]
[null,null,null,null,null,null,null,null,null,null,0,null,0]
[null,null,null,null,null,null,null,null,null,null,0,null,0]
[null,null,null,null,null,null,null,null,null,null,0,null,0]
[null,null,null,null,null,null,null,null,null,null,0,null,0]
[null,null,null,null,null,null,null,null,null,null,0,null,0]
[null,null,null,null,null,null,null,null,null,null,0,null,0]
[null,null,null,null,null,null,null,null,null,null,0,null,0]
[null,null,null,null,null,null,null,null,null,null,0,null,0]
[null,null,null,null,null,null,null,null,null,null,0,null,0]
[null,null,null,null,null,null,null,null,null,null,0,null,0]
[null,null,null,null,null,null,null,null,null,null,0,null,0]
[null,null,null,null,null,null,null,null,null,null,0,null,0]
[null,null,null,null,null,null,null,null,null,null,0,null,0]
[null,null,null,null,null,null,null,null,null,null,0,null,0]
[null,null,null,null,null,null,null,null,null,null,0,null,0]
[null,null,null,null,null,null,null,null,null,null,0,null,0]
[null,null,null,null,null,null,null,null,null,null,0,null,0]
[null,null,null,null,null,null,null,null,null,null,0,null,0]
[null,null,null,null,null,null,null,null,null,null,0,null,0]
[null,null,null,null,null,null,null,null,null,null,0,null,0]
[null,null,null,null,null,null,null,null,null,null,0,null,0]
[null,null,null,null,null,null,null,null,null,null,0,null,0]
[null,null,null,null,null,null,null,null,null,null,0,null,0]
[null,null,null,null,null,null,null,null,null,null,0,null,0]
[null,null,null,null,null,null,null,null,null,null,{"$f":"J261*G261","v":0},null,{"$f":"L261*G261","v":0}]
[null,null,null,null,null,null,null,null,null,null,0,null,0]
[null,null,null,null,null,null,null,null,null,null,0,null,0]
[null,null,null,null,null,null,null,null,null,null,0,null,0]
[null,null,null,null,null,null,null,null,null,null,0,null,0]
[null,null,null,null,null,null,null,null,null,null,0,null,0]
[null,null,null,null,null,null,null,null,null,null,0,null,0]
[null,null,null,null,null,null,null,null,null,null,0,null,0]
[null,null,null,null,null,null,null,null,null,null,0,null,0]
[null,null,null,null,null,null,null,null,null,null,0,null,0]
[null,null,null,null,null,null,null,null,null,null,0,null,0]
[null,null,null,null,null,null,null,null,null,null,0,null,0]
[null,null,null,null,null,null,null,null,null,null,0,null,0]
[null,null,null,null,null,null,null,null,null,null,0,null,0]
[null,null,null,null,null,null,null,null,null,null,0,null,0]
[null,null,null,null,null,null,null,null,null,null,0,null,0]
[null,null,null,null,null,null,null,null,null,null,0,null,0]
[null,null,null,null,null,null,null,null,null,null,0,null,0]
[null,null,null,null,null,null,null,null,null,null,0,null,0]
[null,null,null,null,null,null,null,null,null,null,0,null,0]
[null,null,null,null,null,null,null,null,null,null,0,null,0]
[null,null,null,null,null,null,null,null,null,null,0,null,0]
[null,null,null,null,null,null,null,null,null,null,0,null,0]
[null,null,null,null,null,null,null,null,null,null,0,null,0]
[null,null,null,null,null,null,null,null,null,null,0,null,0]
[null,null,null,null,null,null,null,null,null,null,0,null,0]
[null,null,null,null,null,null,null,null,null,null,0,null,0]
[null,null,null,null,null,null,null,null,null,null,0,null,0]
[null,null,null,null,null,null,null,null,null,null,0,null,0]
[null,null,null,null,null,null,null,null,null,null,0,null,0]
[null,null,null,null,null,null,null,null,null,null,0,null,0]
[null,null,null,null,null,null,null,null,null,null,0,null,0]
[null,null,null,null,null,null,null,null,null,null,0,null,0]
[null,null,null,null,null,null,null,null,null,null,0,null,0]
[null,null,null,null,null,null,null,null,null,null,0,null,0]
[null,null,null,null,null,null,null,null,null,null,0,null,0]
[null,null,null,null,null,null,null,null,null,null,0,null,0]
[null,null,null,null,null,null,null,null,null,null,0,null,0]
[null,null,null,null,null,null,null,null,null,null,0,null,0]
[null,null,null,null,null,null,null,null,null,null,0,null,0]
[null,null,null,null,null,null,null,null,null,null,0,null,0]
[null,null,null,null,null,null,null,null,null,null,0,null,0]
[null,null,null,null,null,null,null,null,null,null,0,null,0]
[null,null,null,null,null,null,null,null,null,null,0,null,0]
[null,null,null,null,null,null,null,null,null,null,0,null,0]
[null,null,null,null,null,null,null,null,null,null,0,null,0]
[null,null,null,null,null,null,null,null,null,null,0,null,0]
[null,null,null,null,null,null,null,null,null,null,0,null,0]
[null,null,null,null,null,null,null,null,null,null,0,null,0]
[null,null,null,null,null,null,null,null,null,null,0,null,0]
[null,null,null,null,null,null,null,null,null,null,0,null,0]
[null,null,null,null,null,null,null,null,null,null,0,null,0]
[null,null,null,null,null,null,null,null,null,null,0,null,0]
[null,null,null,null,null,null,null,null,null,null,0,null,0]
[null,null,null,null,null,null,null,null,null,null,0,null,0]
[null,null,null,null,null,null,null,null,null,null,0,null,0]
[null,null,null,null,null,null,null,null,null,null,0,null,0]
[null,null,null,null,null,null,null,null,null,null,0,null,0]
[null,null,null,null,null,null,null,null,null,null,0,null,0]
[null,null,null,null,null,null,null,null,null,null,0,null,0]
[null,null,null,null,null,null,null,null,null,null,0,null,0]
[null,null,null,null,null,null,null,null,null,null,0,null,0]
[null,null,null,null,null,null,null,null,null,null,0,null,0]
[null,null,null,null,null,null,null,null,null,null,0,null,0]
[null,null,null,null,null,null,null,null,null,null,{"$f":"J325*G325","v":0},null,{"$f":"L325*G325","v":0}]
[null,null,null,null,null,null,null,null,null,null,0,null,0]
[null,null,null,null,null,null,null,null,null,null,0,null,0]
[null,null,null,null,null,null,null,null,null,null,0,null,0]
[null,null,null,null,null,null,null,null,null,null,0,null,0]
[null,null,null,null,null,null,null,null,null,null,0,null,0]
[null,null,null,null,null,null,null,null,null,null,0,null,0]
[null,null,null,null,null,null,null,null,null,null,0,null,0]
[null,null,null,null,null,null,null,null,null,null,0,null,0]
[null,null,null,null,null,null,null,null,null,null,0,null,0]
[null,null,null,null,null,null,null,null,null,null,0,null,0]
[null,null,null,null,null,null,null,null,null,null,0,null,0]
[null,null,null,null,null,null,null,null,null,null,0,null,0]
[null,null,null,null,null,null,null,null,null,null,0,null,0]
[null,null,null,null,null,null,null,null,null,null,0,null,0]
[null,null,null,null,null,null,null,null,null,null,0,null,0]
[null,null,null,null,null,null,null,null,null,null,0,null,0]
[null,null,null,null,null,null,null,null,null,null,0,null,0]
[null,null,null,null,null,null,null,null,null,null,0,null,0]
[null,null,null,null,null,null,null,null,null,null,0,null,0]
[null,null,null,null,null,null,null,null,null,null,0,null,0]
[null,null,null,null,null,null,null,null,null,null,0,null,0]
[null,null,null,null,null,null,null,null,null,null,0,null,0]
[null,null,null,null,null,null,null,null,null,null,0,null,0]
[null,null,null,null,null,null,null,null,null,null,0,null,0]
[null,null,null,null,null,null,null,null,null,null,0,null,0]
[null,null,null,null,null,null,null,null,null,null,0,null,0]
[null,null,null,null,null,null,null,null,null,null,0,null,0]
[null,null,null,null,null,null,null,null,null,null,0,null,0]
[null,null,null,null,null,null,null,null,null,null,0,null,0]
[null,null,null,null,null,null,null,null,null,null,0,null,0]
[null,null,null,null,null,null,null,null,null,null,0,null,0]
[null,null,null,null,null,null,null,null,null,null,0,null,0]
[null,null,null,null,null,null,null,null,null,null,0,null,0]
[null,null,null,null,null,null,null,null,null,null,0,null,0]
[null,null,null,null,null,null,null,null,null,null,0,null,0]
[null,null,null,null,null,null,null,null,null,null,0,null,0]
[null,null,null,null,null,null,null,null,null,null,0,null,0]
[null,null,null,null,null,null,null,null,null,null,0,null,0]
[null,null,null,null,null,null,null,null,null,null,0,null,0]
[null,null,null,null,null,null,null,null,null,null,0,null,0]
[null,null,null,null,null,null,null,null,null,null,0,null,0]
[null,null,null,null,null,null,null,null,null,null,0,null,0]
[null,null,null,null,null,null,null,null,null,null,0,null,0]
[null,null,null,null,null,null,null,null,null,null,0,null,0]
[null,null,null,null,null,null,null,null,null,null,0,null,0]
[null,null,null,null,null,null,null,null,null,null,0,null,0]
[null,null,null,null,null,null,null,null,null,null,0,null,0]
[null,null,null,null,null,null,null,null,null,null,0,null,0]
[null,null,null,null,null,null,null,null,null,null,0,null,0]
[null,null,null,null,null,null,null,null,null,null,0,null,0]
[null,null,null,null,null,null,null,null,null,null,0,null,0]
[null,null,null,null,null,null,null,null,null,null,0,null,0]
[null,null,null,null,null,null,null,null,null,null,0,null,0]
[null,null,null,null,null,null,null,null,null,null,0,null,0]
[null,null,null,null,null,null,null,null,null,null,0,null,0]
[null,null,null,null,null,null,null,null,null,null,0,null,0]
[null,null,null,null,null,null,null,null,null,null,0,null,0]
[null,null,null,null,null,null,null,null,null,null,0,null,0]
[null,null,null,null,null,null,null,null,null,null,0,null,0]
[null,null,null,null,null,null,null,null,null,null,0,null,0]
[null,null,null,null,null,null,null,null,null,null,0,null,0]
[null,null,null,null,null,null,null,null,null,null,0,null,0]
[null,null,null,null,null,null,null,null,null,null,0,null,0]
[null,null,null,null,null,null,null,null,null,null,{"$f":"J389*G389","v":0},null,{"$f":"L389*G389","v":0}]
[null,null,null,null,null,null,null,null,null,null,0,null,0]
[null,null,null,null,null,null,null,null,null,null,0,null,0]
[null,null,null,null,null,null,null,null,null,null,0,null,0]
[null,null,null,null,null,null,null,null,null,null,0,null,0]
[null,null,null,null,null,null,null,null,null,null,0,null,0]
[null,null,null,null,null,null,null,null,null,null,0,null,0]
[null,null,null,null,null,null,null,null,null,null,0,null,0]
[null,null,null,null,null,null,null,null,null,null,0,null,0]
[null,null,null,null,null,null,null,null,null,null,0,null,0]
[null,null,null,null,null,null,null,null,null,null,0,null,0]
[null,null,null,null,null,null,null,null,null,null,0,null,0]
[null,null,null,null,null,null,null,null,null,null,0,null,0]
[null,null,null,null,null,null,null,null,null,null,0,null,0]
[null,null,null,null,null,null,null,null,null,null,0,null,0]
[null,null,null,null,null,null,null,null,null,null,0,null,0]
[null,null,null,null,null,null,null,null,null,null,0,null,0]
[null,null,null,null,null,null,null,null,null,null,0,null,0]
[null,null,null,null,null,null,null,null,null,null,0,null,0]
[null,null,null,null,null,null,null,null,null,null,0,null,0]
[null,null,null,null,null,null,null,null,null,null,0,null,0]
[null,null,null,null,null,null,null,null,null,null,0,null,0]
[null,null,null,null,null,null,null,null,null,null,0,null,0]
[null,null,null,null,null,null,null,null,null,null,0,null,0]
[null,null,null,null,null,null,null,null,null,null,0,null,0]
[null,null,null,null,null,null,null,null,null,null,0,null,0]
[null,null,null,null,null,null,null,null,null,null,0,null,0]
[null,null,null,null,null,null,null,null,null,null,0,null,0]
[null,null,null,null,null,null,null,null,null,null,0,null,0]
[null,null,null,null,null,null,null,null,null,null,0,null,0]
[null,null,null,null,null,null,null,null,null,null,0,null,0]
[null,null,null,null,null,null,null,null,null,null,0,null,0]
[null,null,null,null,null,null,null,null,null,null,0,null,0]
[null,null,null,null,null,null,null,null,null,null,0,null,0]
[null,null,null,null,null,null,null,null,null,null,0,null,0]
[null,null,null,null,null,null,null,null,null,null,0,null,0]
[null,null,null,null,null,null,null,null,null,null,0,null,0]
[null,null,null,null,null,null,null,null,null,null,0,null,0]
[null,null,null,null,null,null,null,null,null,null,0,null,0]
[null,null,null,null,null,null,null,null,null,null,0,null,0]
[null,null,null,null,null,null,null,null,null,null,0,null,0]
[null,null,null,null,null,null,null,null,null,null,0,null,0]
[null,null,null,null,null,null,null,null,null,null,0,null,0]
[null,null,null,null,null,null,null,null,null,null,0,null,0]
[null,null,null,null,null,null,null,null,null,null,0,null,0]
[null,null,null,null,null,null,null,null,null,null,0,null,0]
[null,null,null,null,null,null,null,null,null,null,0,null,0]
[null,null,null,null,null,null,null,null,null,null,0,null,0]
[null,null,null,null,null,null,null,null,null,null,0,null,0]
[null,null,null,null,null,null,null,null,null,null,0,null,0]
[null,null,null,null,null,null,null,null,null,null,0,null,0]
[null,null,null,null,null,null,null,null,null,null,0,null,0]
[null,null,null,null,null,null,null,null,null,null,0,null,0]
[null,null,null,null,null,null,null,null,null,null,0,null,0]
[null,null,null,null,null,null,null,null,null,null,0,null,0]
[null,null,null,null,null,null,null,null,null,null,0,null,0]
[null,null,null,null,null,null,null,null,null,null,0,null,0]
[null,null,null,null,null,null,null,null,null,null,0,null,0]
[null,null,null,null,null,null,null,null,null,null,0,null,0]
[null,null,null,null,null,null,null,null,null,null,0,null,0]
[null,null,null,null,null,null,null,null,null,null,0,null,0]
[null,null,null,null,null,null,null,null,null,null,0,null,0]
[null,null,null,null,null,null,null,null,null,null,0,null,0]
[null,null,null,null,null,null,null,null,null,null,0,null,0]
[null,null,null,null,null,null,null,null,null,null,{"$f":"J453*G453","v":0},null,{"$f":"L453*G453","v":0}]
[null,null,null,null,null,null,null,null,null,null,0,null,0]
[null,null,null,null,null,null,null,null,null,null,0,null,0]
[null,null,null,null,null,null,null,null,null,null,0,null,0]
[null,null,null,null,null,null,null,null,null,null,0,null,0]
[null,null,null,null,null,null,null,null,null,null,0,null,0]
[null,null,null,null,null,null,null,null,null,null,0,null,0]
[null,null,null,null,null,null,null,null,null,null,0,null,0]
[null,null,null,null,null,null,null,null,null,null,0,null,0]
[null,null,null,null,null,null,null,null,null,null,0,null,0]
[null,null,null,null,null,null,null,null,null,null,0,null,0]
[null,null,null,null,null,null,null,null,null,null,0,null,0]
[null,null,null,null,null,null,null,null,null,null,0,null,0]
[null,null,null,null,null,null,null,null,null,null,0,null,0]
[null,null,null,null,null,null,null,null,null,null,0,null,0]
[null,null,null,null,null,null,null,null,null,null,0,null,0]
[null,null,null,null,null,null,null,null,null,null,0,null,0]
[null,null,null,null,null,null,null,null,null,null,0,null,0]
[null,null,null,null,null,null,null,null,null,null,0,null,0]
[null,null,null,null,null,null,null,null,null,null,0,null,0]
[null,null,null,null,null,null,null,null,null,null,0,null,0]
[null,null,null,null,null,null,null,null,null,null,0,null,0]
[null,null,null,null,null,null,null,null,null,null,0,null,0]
[null,null,null,null,null,null,null,null,null,null,0,null,0]
[null,null,null,null,null,null,null,null,null,null,0,null,0]
[null,null,null,null,null,null,null,null,null,null,0,null,0]
[null,null,null,null,null,null,null,null,null,null,0,null,0]
[null,null,null,null,null,null,null,null,null,null,0,null,0]
[null,null,null,null,null,null,null,null,null,null,0,null,0]
[null,null,null,null,null,null,null,null,null,null,0,null,0]
[null,null,null,null,null,null,null,null,null,null,0,null,0]
[null,null,null,null,null,null,null,null,null,null,0,null,0]
[null,null,null,null,null,null,null,null,null,null,0,null,0]
[null,null,null,null,null,null,null,null,null,null,0,null,0]
[null,null,null,null,null,null,null,null,null,null,0,null,0]
[null,null,null,null,null,null,null,null,null,null,0,null,0]
[null,null,null,null,null,null,null,null,null,null,0,null,0]
[null,null,null,null,null,null,null,null,null,null,0,null,0]
[null,null,null,null,null,null,null,null,null,null,0,null,0]
[null,null,null,null,null,null,null,null,null,null,0,null,0]
[null,null,null,null,null,null,null,null,null,null,0,null,0]
[null,null,null,null,null,null,null,null,null,null,0,null,0]
[null,null,null,null,null,null,null,null,null,null,0,null,0]
[null,null,null,null,null,null,null,null,null,null,0,null,0]
[null,null,null,null,null,null,null,null,null,null,0,null,0]
[null,null,null,null,null,null,null,null,null,null,0,null,0]
[null,null,null,null,null,null,null,null,null,null,0,null,0]
[null,null,null,null,null,null,null,null,null,null,0,null,0]
[null,null,null,null,null,null,null,null,null,null,0,null,0]
[null,null,null,null,null,null,null,null,null,null,0,null,0]
[null,null,null,null,null,null,null,null,null,null,0,null,0]
[null,null,null,null,null,null,null,null,null,null,0,null,0]
[null,null,null,null,null,null,null,null,null,null,0,null,0]
[null,null,null,null,null,null,null,null,null,null,0,null,0]
[null,null,null,null,null,null,null,null,null,null,0,null,0]
[null,null,null,null,null,null,null,null,null,null,0,null,0]
[null,null,null,null,null,null,null,null,null,null,0,null,0]
[null,null,null,null,null,null,null,null,null,null,0,null,0]
[null,null,null,null,null,null,null,null,null,null,0,null,0]
[null,null,null,null,null,null,null,null,null,null,0,null,0]
[null,null,null,null,null,null,null,null,null,null,0,null,0]
[null,null,null,null,null,null,null,null,null,null,0,null,0]
[null,null,null,null,null,null,null,null,null,null,0,null,0]
[null,null,null,null,null,null,null,null,null,null,0,null,0]
[null,null,null,null,null,null,null,null,null,null,{"$f":"J517*G517","v":0},null,{"$f":"L517*G517","v":0}]
[null,null,null,null,null,null,null,null,null,null,0,null,0]
[null,null,null,null,null,null,null,null,null,null,0,null,0]
[null,null,null,null,null,null,null,null,null,null,0,null,0]
[null,null,null,null,null,null,null,null,null,null,0,null,0]
[null,null,null,null,null,null,null,null,null,null,0,null,0]
[null,null,null,null,null,null,null,null,null,null,0,null,0]
[null,null,null,null,null,null,null,null,null,null,0,null,0]
[null,null,null,null,null,null,null,null,null,null,0,null,0]
[null,null,null,null,null,null,null,null,null,null,0,null,0]
[null,null,null,null,null,null,null,null,null,null,0,null,0]
[null,null,null,null,null,null,null,null,null,null,0,null,0]
[null,null,null,null,null,null,null,null,null,null,0,null,0]
[null,null,null,null,null,null,null,null,null,null,0,null,0]
[null,null,null,null,null,null,null,null,null,null,0,null,0]
[null,null,null,null,null,null,null,null,null,null,0,null,0]
[null,null,null,null,null,null,null,null,null,null,0,null,0]
[null,null,null,null,null,null,null,null,null,null,0,null,0]
[null,null,null,null,null,null,null,null,null,null,0,null,0]
[null,null,null,null,null,null,null,null,null,null,0,null,0]
[null,null,null,null,null,null,null,null,null,null,0,null,0]
[null,null,null,null,null,null,null,null,null,null,0,null,0]
[null,null,null,null,null,null,null,null,null,null,0,null,0]
[null,null,null,null,null,null,null,null,null,null,0,null,0]
[null,null,null,null,null,null,null,null,null,null,0,null,0]
[null,null,null,null,null,null,null,null,null,null,0,null,0]
[null,null,null,null,null,null,null,null,null,null,0,null,0]
[null,null,null,null,null,null,null,null,null,null,0,null,0]
[null,null,null,null,null,null,null,null,null,null,0,null,0]
[null,null,null,null,null,null,null,null,null,null,0,null,0]
[null,null,null,null,null,null,null,null,null,null,0,null,0]
[null,null,null,null,null,null,null,null,null,null,0,null,0]
[null,null,null,null,null,null,null,null,null,null,0,null,0]
[null,null,null,null,null,null,null,null,null,null,0,null,0]
[null,null,null,null,null,null,null,null,null,null,0,null,0]
[null,null,null,null,null,null,null,null,null,null,0,null,0]
[null,null,null,null,null,null,null,null,null,null,0,null,0]
[null,null,null,null,null,null,null,null,null,null,0,null,0]
[null,null,null,null,null,null,null,null,null,null,0,null,0]
[null,null,null,null,null,null,null,null,null,null,0,null,0]
[null,null,null,null,null,null,null,null,null,null,0,null,0]
[null,null,null,null,null,null,null,null,null,null,0,null,0]
[null,null,null,null,null,null,null,null,null,null,0,null,0]
[null,null,null,null,null,null,null,null,null,null,0,null,0]
[null,null,null,null,null,null,null,null,null,null,0,null,0]
[null,null,null,null,null,null,null,null,null,null,0,null,0]
[null,null,null,null,null,null,null,null,null,null,0,null,0]
[null,null,null,null,null,null,null,null,null,null,0,null,0]
[null,null,null,null,null,null,null,null,null,null,0,null,0]
[null,null,null,null,null,null,null,null,null,null,0,null,0]
[null,null,null,null,null,null,null,null,null,null,0,null,0]
[null,null,null,null,null,null,null,null,null,null,0,null,0]
[null,null,null,null,null,null,null,null,null,null,0,null,0]
[null,null,null,null,null,null,null,null,null,null,0,null,0]
[null,null,null,null,null,null,null,null,null,null,0,null,0]
[null,null,null,null,null,null,null,null,null,null,0,null,0]
[null,null,null,null,null,null,null,null,null,null,0,null,0]
[null,null,null,null,null,null,null,null,null,null,0,null,0]
[null,null,null,null,null,null,null,null,null,null,0,null,0]
[null,null,null,null,null,null,null,null,null,null,0,null,0]
[null,null,null,null,null,null,null,null,null,null,0,null,0]
[null,null,null,null,null,null,null,null,null,null,0,null,0]
[null,null,null,null,null,null,null,null,null,null,0,null,0]
[null,null,null,null,null,null,null,null,null,null,0,null,0]
[null,null,null,null,null,null,null,null,null,null,{"$f":"J581*G581","v":0},null,{"$f":"L581*G581","v":0}]
[null,null,null,null,null,null,null,null,null,null,0,null,0]
[null,null,null,null,null,null,null,null,null,null,0,null,0]
[null,null,null,null,null,null,null,null,null,null,0,null,0]
[null,null,null,null,null,null,null,null,null,null,0,null,0]
[null,null,null,null,null,null,null,null,null,null,0,null,0]
[null,null,null,null,null,null,null,null,null,null,0,null,0]
[null,null,null,null,null,null,null,null,null,null,0,null,0]
[null,null,null,null,null,null,null,null,null,null,0,null,0]
[null,null,null,null,null,null,null,null,null,null,0,null,0]
[null,null,null,null,null,null,null,null,null,null,0,null,0]
[null,null,null,null,null,null,null,null,null,null,0,null,0]
[null,null,null,null,null,null,null,null,null,null,0,null,0]
[null,null,null,null,null,null,null,null,null,null,0,null,0]
[null,null,null,null,null,null,null,null,null,null,0,null,0]
[null,null,null,null,null,null,null,null,null,null,0,null,0]
[null,null,null,null,null,null,null,null,null,null,0,null,0]
[null,null,null,null,null,null,null,null,null,null,0,null,0]
[null,null,null,null,null,null,null,null,null,null,0,null,0]
[null,null,null,null,null,null,null,null,null,null,0,null,0]
[null,null,null,null,null,null,null,null,null,null,0,null,0]
[null,null,null,null,null,null,null,null,null,null,0,null,0]
[null,null,null,null,null,null,null,null,null,null,0,null,0]
[null,null,null,null,null,null,null,null,null,null,0,null,0]
[null,null,null,null,null,null,null,null,null,null,0,null,0]
[null,null,null,null,null,null,null,null,null,null,0,null,0]
[null,null,null,null,null,null,null,null,null,null,0,null,0]
[null,null,null,null,null,null,null,null,null,null,0,null,0]
[null,null,null,null,null,null,null,null,null,null,0,null,0]
[null,null,null,null,null,null,null,null,null,null,0,null,0]
[null,null,null,null,null,null,null,null,null,null,0,null,0]
[null,null,null,null,null,null,null,null,null,null,0,null,0]
[null,null,null,null,null,null,null,null,null,null,0,null,0]
[null,null,null,null,null,null,null,null,null,null,0,null,0]
[null,null,null,null,null,null,null,null,null,null,0,null,0]
[null,null,null,null,null,null,null,null,null,null,0,null,0]
[null,null,null,null,null,null,null,null,null,null,0,null,0]
[null,null,null,null,null,null,null,null,null,null,0,null,0]
[null,null,null,null,null,null,null,null,null,null,0,null,0]
[null,null,null,null,null,null,null,null,null,null,0,null,0]
[null,null,null,null,null,null,null,null,null,null,0,null,0]
[null,null,null,null,null,null,null,null,null,null,0,null,0]
[null,null,null,null,null,null,null,null,null,null,0,null,0]
[null,null,null,null,null,null,null,null,null,null,0,null,0]
[null,null,null,null,null,null,null,null,null,null,0,null,0]
[null,null,null,null,null,null,null,null,null,null,0,null,0]
[null,null,null,null,null,null,null,null,null,null,0,null,0]
[null,null,null,null,null,null,null,null,null,null,0,null,0]
[null,null,null,null,null,null,null,null,null,null,0,null,0]
[null,null,null,null,null,null,null,null,null,null,0,null,0]
[null,null,null,null,null,null,null,null,null,null,0,null,0]
[null,null,null,null,null,null,null,null,null,null,0,null,0]
[null,null,null,null,null,null,null,null,null,null,0,null,0]
[null,null,null,null,null,null,null,null,null,null,0,null,0]
[null,null,null,null,null,null,null,null,null,null,0,null,0]
[null,null,null,null,null,null,null,null,null,null,0,null,0]
[null,null,null,null,null,null,null,null,null,null,0,null,0]
[null,null,null,null,null,null,null,null,null,null,0,null,0]
[null,null,null,null,null,null,null,null,null,null,0,null,0]
[null,null,null,null,null,null,null,null,null,null,0,null,0]
[null,null,null,null,null,null,null,null,null,null,0,null,0]
[null,null,null,null,null,null,null,null,null,null,0,null,0]
[null,null,null,null,null,null,null,null,null,null,0,null,0]
[null,null,null,null,null,null,null,null,null,null,0,null,0]
[null,null,null,null,null,null,null,null,null,null,{"$f":"J645*G645","v":0},null,{"$f":"L645*G645","v":0}]
[null,null,null,null,null,null,null,null,null,null,0,null,0]
[null,null,null,null,null,null,null,null,null,null,0,null,0]
[null,null,null,null,null,null,null,null,null,null,0,null,0]
[null,null,null,null,null,null,null,null,null,null,0,null,0]
[null,null,null,null,null,null,null,null,null,null,0,null,0]
[null,null,null,null,null,null,null,null,null,null,0,null,0]
[null,null,null,null,null,null,null,null,null,null,0,null,0]
[null,null,null,null,null,null,null,null,null,null,0,null,0]
[null,null,null,null,null,null,null,null,null,null,0,null,0]
[null,null,null,null,null,null,null,null,null,null,0,null,0]
[null,null,null,null,null,null,null,null,null,null,0,null,0]
[null,null,null,null,null,null,null,null,null,null,0,null,0]
[null,null,null,null,null,null,null,null,null,null,0,null,0]
[null,null,null,null,null,null,null,null,null,null,0,null,0]
[null,null,null,null,null,null,null,null,null,null,0,null,0]
[null,null,null,null,null,null,null,null,null,null,0,null,0]
[null,null,null,null,null,null,null,null,null,null,0,null,0]
[null,null,null,null,null,null,null,null,null,null,0,null,0]
[null,null,null,null,null,null,null,null,null,null,0,null,0]
[null,null,null,null,null,null,null,null,null,null,0,null,0]
[null,null,null,null,null,null,null,null,null,null,0,null,0]
[null,null,null,null,null,null,null,null,null,null,0,null,0]
[null,null,null,null,null,null,null,null,null,null,0,null,0]
[null,null,null,null,null,null,null,null,null,null,0,null,0]
[null,null,null,null,null,null,null,null,null,null,0,null,0]
[null,null,null,null,null,null,null,null,null,null,0,null,0]
[null,null,null,null,null,null,null,null,null,null,0,null,0]
[null,null,null,null,null,null,null,null,null,null,0,null,0]
[null,null,null,null,null,null,null,null,null,null,0,null,0]
[null,null,null,null,null,null,null,null,null,null,0,null,0]
[null,null,null,null,null,null,null,null,null,null,0,null,0]
[null,null,null,null,null,null,null,null,null,null,0,null,0]
[null,null,null,null,null,null,null,null,null,null,0,null,0]
[null,null,null,null,null,null,null,null,null,null,0,null,0]
[null,null,null,null,null,null,null,null,null,null,0,null,0]
[null,null,null,null,null,null,null,null,null,null,0,null,0]
[null,null,null,null,null,null,null,null,null,null,0,null,0]
[null,null,null,null,null,null,null,null,null,null,0,null,0]
[null,null,null,null,null,null,null,null,null,null,0,null,0]
[null,null,null,null,null,null,null,null,null,null,0,null,0]
[null,null,null,null,null,null,null,null,null,null,0,null,0]
[null,null,null,null,null,null,null,null,null,null,0,null,0]
[null,null,null,null,null,null,null,null,null,null,0,null,0]
[null,null,null,null,null,null,null,null,null,null,0,null,0]
[null,null,null,null,null,null,null,null,null,null,0,null,0]
[null,null,null,null,null,null,null,null,null,null,0,null,0]
[null,null,null,null,null,null,null,null,null,null,0,null,0]
[null,null,null,null,null,null,null,null,null,null,0,null,0]
[null,null,null,null,null,null,null,null,null,null,0,null,0]
[null,null,null,null,null,null,null,null,null,null,0,null,0]
[null,null,null,null,null,null,null,null,null,null,0,null,0]
[null,null,null,null,null,null,null,null,null,null,0,null,0]
[null,null,null,null,null,null,null,null,null,null,0,null,0]
[null,null,null,null,null,null,null,null,null,null,0,null,0]
[null,null,null,null,null,null,null,null,null,null,0,null,0]
[null,null,null,null,null,null,null,null,null,null,0,null,0]
[null,null,null,null,null,null,null,null,null,null,0,null,0]
[null,null,null,null,null,null,null,null,null,null,0,null,0]
[null,null,null,null,null,null,null,null,null,null,0,null,0]
[null,null,null,null,null,null,null,null,null,null,0,null,0]
[null,null,null,null,null,null,null,null,null,null,0,null,0]
[null,null,null,null,null,null,null,null,null,null,0,null,0]
[null,null,null,null,null,null,null,null,null,null,0,null,0]
[null,null,null,null,null,null,null,null,null,null,{"$f":"J709*G709","v":0},null,{"$f":"L709*G709","v":0}]
[null,null,null,null,null,null,null,null,null,null,0,null,0]
[null,null,null,null,null,null,null,null,null,null,0,null,0]
[null,null,null,null,null,null,null,null,null,null,0,null,0]
[null,null,null,null,null,null,null,null,null,null,0,null,0]
[null,null,null,null,null,null,null,null,null,null,0,null,0]
[null,null,null,null,null,null,null,null,null,null,0,null,0]
[null,null,null,null,null,null,null,null,null,null,0,null,0]
[null,null,null,null,null,null,null,null,null,null,0,null,0]
[null,null,null,null,null,null,null,null,null,null,0,null,0]
[null,null,null,null,null,null,null,null,null,null,0,null,0]
[null,null,null,null,null,null,null,null,null,null,0,null,0]
[null,null,null,null,null,null,null,null,null,null,0,null,0]
[null,null,null,null,null,null,null,null,null,null,0,null,0]
[null,null,null,null,null,null,null,null,null,null,0,null,0]
[null,null,null,null,null,null,null,null,null,null,0,null,0]
[null,null,null,null,null,null,null,null,null,null,0,null,0]
[null,null,null,null,null,null,null,null,null,null,0,null,0]
[null,null,null,null,null,null,null,null,null,null,0,null,0]
[null,null,null,null,null,null,null,null,null,null,0,null,0]
[null,null,null,null,null,null,null,null,null,null,0,null,0]
[null,null,null,null,null,null,null,null,null,null,0,null,0]
[null,null,null,null,null,null,null,null,null,null,0,null,0]
[null,null,null,null,null,null,null,null,null,null,0,null,0]
[null,null,null,null,null,null,null,null,null,null,0,null,0]
[null,null,null,null,null,null,null,null,null,null,0,null,0]
[null,null,null,null,null,null,null,null,null,null,0,null,0]
[null,null,null,null,null,null,null,null,null,null,0,null,0]
[null,null,null,null,null,null,null,null,null,null,0,null,0]
[null,null,null,null,null,null,null,null,null,null,0,null,0]
[null,null,null,null,null,null,null,null,null,null,0,null,0]
[null,null,null,null,null,null,null,null,null,null,0,null,0]
[null,null,null,null,null,null,null,null,null,null,0,null,0]
[null,null,null,null,null,null,null,null,null,null,0,null,0]
[null,null,null,null,null,null,null,null,null,null,0,null,0]
[null,null,null,null,null,null,null,null,null,null,0,null,0]
[null,null,null,null,null,null,null,null,null,null,0,null,0]
[null,null,null,null,null,null,null,null,null,null,0,null,0]
[null,null,null,null,null,null,null,null,null,null,0,null,0]
[null,null,null,null,null,null,null,null,null,null,0,null,0]
[null,null,null,null,null,null,null,null,null,null,0,null,0]
[null,null,null,null,null,null,null,null,null,null,0,null,0]
[null,null,null,null,null,null,null,null,null,null,0,null,0]
[null,null,null,null,null,null,null,null,null,null,0,null,0]
[null,null,null,null,null,null,null,null,null,null,0,null,0]
[null,null,null,null,null,null,null,null,null,null,0,null,0]
[null,null,null,null,null,null,null,null,null,null,0,null,0]
[null,null,null,null,null,null,null,null,null,null,0,null,0]
[null,null,null,null,null,null,null,null,null,null,0,null,0]
[null,null,null,null,null,null,null,null,null,null,0,null,0]
[null,null,null,null,null,null,null,null,null,null,0,null,0]
[null,null,null,null,null,null,null,null,null,null,0,null,0]
[null,null,null,null,null,null,null,null,null,null,0,null,0]
[null,null,null,null,null,null,null,null,null,null,0,null,0]
[null,null,null,null,null,null,null,null,null,null,0,null,0]
[null,null,null,null,null,null,null,null,null,null,0,null,0]
[null,null,null,null,null,null,null,null,null,null,0,null,0]
[null,null,null,null,null,null,null,null,null,null,0,null,0]
[null,null,null,null,null,null,null,null,null,null,0,null,0]
[null,null,null,null,null,null,null,null,null,null,0,null,0]
[null,null,null,null,null,null,null,null,null,null,0,null,0]
[null,null,null,null,null,null,null,null,null,null,0,null,0]
[null,null,null,null,null,null,null,null,null,null,0,null,0]
[null,null,null,null,null,null,null,null,null,null,0,null,0]
[null,null,null,null,null,null,null,null,null,null,{"$f":"J773*G773","v":0},null,{"$f":"L773*G773","v":0}]
[null,null,null,null,null,null,null,null,null,null,0,null,0]
[null,null,null,null,null,null,null,null,null,null,0,null,0]
[null,null,null,null,null,null,null,null,null,null,0,null,0]
[null,null,null,null,null,null,null,null,null,null,0,null,0]
[null,null,null,null,null,null,null,null,null,null,0,null,0]
[null,null,null,null,null,null,null,null,null,null,0,null,0]
[null,null,null,null,null,null,null,null,null,null,0,null,0]
[null,null,null,null,null,null,null,null,null,null,0,null,0]
[null,null,null,null,null,null,null,null,null,null,0,null,0]
[null,null,null,null,null,null,null,null,null,null,0,null,0]
[null,null,null,null,null,null,null,null,null,null,0,null,0]
[null,null,null,null,null,null,null,null,null,null,0,null,0]
[null,null,null,null,null,null,null,null,null,null,0,null,0]
[null,null,null,null,null,null,null,null,null,null,0,null,0]
[null,null,null,null,null,null,null,null,null,null,0,null,0]
[null,null,null,null,null,null,null,null,null,null,0,null,0]
[null,null,null,null,null,null,null,null,null,null,0,null,0]
[null,null,null,null,null,null,null,null,null,null,0,null,0]
[null,null,null,null,null,null,null,null,null,null,0,null,0]
[null,null,null,null,null,null,null,null,null,null,0,null,0]
[null,null,null,null,null,null,null,null,null,null,0,null,0]
[null,null,null,null,null,null,null,null,null,null,0,null,0]
[null,null,null,null,null,null,null,null,null,null,0,null,0]
[null,null,null,null,null,null,null,null,null,null,0,null,0]
[null,null,null,null,null,null,null,null,null,null,0,null,0]
[null,null,null,null,null,null,null,null,null,null,0,null,0]
[null,null,null,null,null,null,null,null,null,null,0,null,0]
[null,null,null,null,null,null,null,null,null,null,0,null,0]
[null,null,null,null,null,null,null,null,null,null,0,null,0]
[null,null,null,null,null,null,null,null,null,null,0,null,0]
[null,null,null,null,null,null,null,null,null,null,0,null,0]
[null,null,null,null,null,null,null,null,null,null,0,null,0]
[null,null,null,null,null,null,null,null,null,null,0,null,0]
[null,null,null,null,null,null,null,null,null,null,0,null,0]
[null,null,null,null,null,null,null,null,null,null,0,null,0]
[null,null,null,null,null,null,null,null,null,null,0,null,0]
[null,null,null,null,null,null,null,null,null,null,0,null,0]
[null,null,null,null,null,null,null,null,null,null,0,null,0]
[null,null,null,null,null,null,null,null,null,null,0,null,0]
[null,null,null,null,null,null,null,null,null,null,0,null,0]
[null,null,null,null,null,null,null,null,null,null,0,null,0]
[null,null,null,null,null,null,null,null,null,null,0,null,0]
[null,null,null,null,null,null,null,null,null,null,0,null,0]
[null,null,null,null,null,null,null,null,null,null,0,null,0]
[null,null,null,null,null,null,null,null,null,null,0,null,0]
[null,null,null,null,null,null,null,null,null,null,0,null,0]
[null,null,null,null,null,null,null,null,null,null,0,null,0]
[null,null,null,null,null,null,null,null,null,null,0,null,0]
[null,null,null,null,null,null,null,null,null,null,0,null,0]
[null,null,null,null,null,null,null,null,null,null,0,null,0]
[null,null,null,null,null,null,null,null,null,null,0,null,0]
[null,null,null,null,null,null,null,null,null,null,0,null,0]
[null,null,null,null,null,null,null,null,null,null,0,null,0]
[null,null,null,null,null,null,null,null,null,null,0,null,0]
[null,null,null,null,null,null,null,null,null,null,0,null,0]
[null,null,null,null,null,null,null,null,null,null,0,null,0]
[null,null,null,null,null,null,null,null,null,null,0,null,0]
[null,null,null,null,null,null,null,null,null,null,0,null,0]
[null,null,null,null,null,null,null,null,null,null,0,null,0]
[null,null,null,null,null,null,null,null,null,null,0,null,0]
[null,null,null,null,null,null,null,null,null,null,0,null,0]
[null,null,null,null,null,null,null,null,null,null,0,null,0]
[null,null,null,null,null,null,null,null,null,null,0,null,0]
[null,null,null,null,null,null,null,null,null,null,{"$f":"J837*G837","v":0},null,{"$f":"L837*G837","v":0}]
[null,null,null,null,null,null,null,null,null,null,0,null,0]
[null,null,null,null,null,null,null,null,null,null,0,null,0]
[null,null,null,null,null,null,null,null,null,null,0,null,0]
[null,null,null,null,null,null,null,null,null,null,0,null,0]
[null,null,null,null,null,null,null,null,null,null,0,null,0]
[null,null,null,null,null,null,null,null,null,null,0,null,0]
[null,null,null,null,null,null,null,null,null,null,0,null,0]
[null,null,null,null,null,null,null,null,null,null,0,null,0]
[null,null,null,null,null,null,null,null,null,null,0,null,0]
[null,null,null,null,null,null,null,null,null,null,0,null,0]
[null,null,null,null,null,null,null,null,null,null,0,null,0]
[null,null,null,null,null,null,null,null,null,null,0,null,0]
[null,null,null,null,null,null,null,null,null,null,0,null,0]
[null,null,null,null,null,null,null,null,null,null,0,null,0]
[null,null,null,null,null,null,null,null,null,null,0,null,0]
[null,null,null,null,null,null,null,null,null,null,0,null,0]
[null,null,null,null,null,null,null,null,null,null,0,null,0]
[null,null,null,null,null,null,null,null,null,null,0,null,0]
[null,null,null,null,null,null,null,null,null,null,0,null,0]
[null,null,null,null,null,null,null,null,null,null,0,null,0]
[null,null,null,null,null,null,null,null,null,null,0,null,0]
[null,null,null,null,null,null,null,null,null,null,0,null,0]
[null,null,null,null,null,null,null,null,null,null,0,null,0]
[null,null,null,null,null,null,null,null,null,null,0,null,0]
[null,null,null,null,null,null,null,null,null,null,0,null,0]
[null,null,null,null,null,null,null,null,null,null,0,null,0]
[null,null,null,null,null,null,null,null,null,null,0,null,0]
[null,null,null,null,null,null,null,null,null,null,0,null,0]
[null,null,null,null,null,null,null,null,null,null,0,null,0]
[null,null,null,null,null,null,null,null,null,null,0,null,0]
[null,null,null,null,null,null,null,null,null,null,0,null,0]
[null,null,null,null,null,null,null,null,null,null,0,null,0]
[null,null,null,null,null,null,null,null,null,null,0,null,0]
[null,null,null,null,null,null,null,null,null,null,0,null,0]
[null,null,null,null,null,null,null,null,null,null,0,null,0]
[null,null,null,null,null,null,null,null,null,null,0,null,0]
[null,null,null,null,null,null,null,null,null,null,0,null,0]
[null,null,null,null,null,null,null,null,null,null,0,null,0]
[null,null,null,null,null,null,null,null,null,null,0,null,0]
[null,null,null,null,null,null,null,null,null,null,0,null,0]
[null,null,null,null,null,null,null,null,null,null,0,null,0]
[null,null,null,null,null,null,null,null,null,null,0,null,0]
[null,null,null,null,null,null,null,null,null,null,0,null,0]
[null,null,null,null,null,null,null,null,null,null,0,null,0]
[null,null,null,null,null,null,null,null,null,null,0,null,0]
[null,null,null,null,null,null,null,null,null,null,0,null,0]
[null,null,null,null,null,null,null,null,null,null,0,null,0]
[null,null,null,null,null,null,null,null,null,null,0,null,0]
[null,null,null,null,null,null,null,null,null,null,0,null,0]
[null,null,null,null,null,null,null,null,null,null,0,null,0]
[null,null,null,null,null,null,null,null,null,null,0,null,0]
[null,null,null,null,null,null,null,null,null,null,0,null,0]
[null,null,null,null,null,null,null,null,null,null,0,null,0]
[null,null,null,null,null,null,null,null,null,null,0,null,0]
[null,null,null,null,null,null,null,null,null,null,0,null,0]
[null,null,null,null,null,null,null,null,null,null,0,null,0]
[null,null,null,null,null,null,null,null,null,null,0,null,0]
[null,null,null,null,null,null,null,null,null,null,0,null,0]
[null,null,null,null,null,null,null,null,null,null,0,null,0]
[null,null,null,null,null,null,null,null,null,null,0,null,0]
[null,null,null,null,null,null,null,null,null,null,0,null,0]
[null,null,null,null,null,null,null,null,null,null,0,null,0]
[null,null,null,null,null,null,null,null,null,null,0,null,0]
[null,null,null,null,null,null,null,null,null,null,{"$f":"J901*G901","v":0},null,{"$f":"L901*G901","v":0}]
[null,null,null,null,null,null,null,null,null,null,0,null,0]
[null,null,null,null,null,null,null,null,null,null,0,null,0]
[null,null,null,null,null,null,null,null,null,null,0,null,0]
[null,null,null,null,null,null,null,null,null,null,0,null,0]
[null,null,null,null,null,null,null,null,null,null,0,null,0]
[null,null,null,null,null,null,null,null,null,null,0,null,0]
[null,null,null,null,null,null,null,null,null,null,0,null,0]
[null,null,null,null,null,null,null,null,null,null,0,null,0]
[null,null,null,null,null,null,null,null,null,null,0,null,0]
[null,null,null,null,null,null,null,null,null,null,0,null,0]
[null,null,null,null,null,null,null,null,null,null,0,null,0]
[null,null,null,null,null,null,null,null,null,null,0,null,0]
[null,null,null,null,null,null,null,null,null,null,0,null,0]
[null,null,null,null,null,null,null,null,null,null,0,null,0]
[null,null,null,null,null,null,null,null,null,null,0,null,0]
[null,null,null,null,null,null,null,null,null,null,0,null,0]
[null,null,null,null,null,null,null,null,null,null,0,null,0]
[null,null,null,null,null,null,null,null,null,null,0,null,0]
[null,null,null,null,null,null,null,null,null,null,0,null,0]
[null,null,null,null,null,null,null,null,null,null,0,null,0]
[null,null,null,null,null,null,null,null,null,null,0,null,0]
[null,null,null,null,null,null,null,null,null,null,0,null,0]
[null,null,null,null,null,null,null,null,null,null,0,null,0]
[null,null,null,null,null,null,null,null,null,null,0,null,0]
[null,null,null,null,null,null,null,null,null,null,0,null,0]
[null,null,null,null,null,null,null,null,null,null,0,null,0]
[null,null,null,null,null,null,null,null,null,null,0,null,0]
[null,null,null,null,null,null,null,null,null,null,0,null,0]
[null,null,null,null,null,null,null,null,null,null,0,null,0]
[null,null,null,null,null,null,null,null,null,null,0,null,0]
[null,null,null,null,null,null,null,null,null,null,0,null,0]
[null,null,null,null,null,null,null,null,null,null,0,null,0]
[null,null,null,null,null,null,null,null,null,null,0,null,0]
[null,null,null,null,null,null,null,null,null,null,0,null,0]
[null,null,null,null,null,null,null,null,null,null,0,null,0]
[null,null,null,null,null,null,null,null,null,null,0,null,0]
[null,null,null,null,null,null,null,null,null,null,0,null,0]
[null,null,null,null,null,null,null,null,null,null,0,null,0]
[null,null,null,null,null,null,null,null,null,null,0,null,0]
[null,null,null,null,null,null,null,null,null,null,0,null,0]
[null,null,null,null,null,null,null,null,null,null,0,null,0]
[null,null,null,null,null,null,null,null,null,null,0,null,0]
[null,null,null,null,null,null,null,null,null,null,0,null,0]
[null,null,null,null,null,null,null,null,null,null,0,null,0]
[null,null,null,null,null,null,null,null,null,null,0,null,0]
[null,null,null,null,null,null,null,null,null,null,0,null,0]
[null,null,null,null,null,null,null,null,null,null,0,null,0]
[null,null,null,null,null,null,null,null,null,null,0,null,0]
[null,null,null,null,null,null,null,null,null,null,0,null,0]
[null,null,null,null,null,null,null,null,null,null,0,null,0]
[null,null,null,null,null,null,null,null,null,null,0,null,0]
[null,null,null,null,null,null,null,null,null,null,0,null,0]
[null,null,null,null,null,null,null,null,null,null,0,null,0]
[null,null,null,null,null,null,null,null,null,null,0,null,0]
[null,null,null,null,null,null,null,null,null,null,0,null,0]
[null,null,null,null,null,null,null,null,null,null,0,null,0]
[null,null,null,null,null,null,null,null,null,null,0,null,0]
[null,null,null,null,null,null,null,null,null,null,0,null,0]
[null,null,null,null,null,null,null,null,null,null,0,null,0]
[null,null,null,null,null,null,null,null,null,null,0,null,0]
[null,null,null,null,null,null,null,null,null,null,0,null,0]
[null,null,null,null,null,null,null,null,null,null,0,null,0]
[null,null,null,null,null,null,null,null,null,null,0,null,0]
[null,null,null,null,null,null,null,null,null,null,{"$f":"J965*G965","v":0},null,{"$f":"L965*G965","v":0}]
[null,null,null,null,null,null,null,null,null,null,0,null,0]
[null,null,null,null,null,null,null,null,null,null,0,null,0]
[null,null,null,null,null,null,null,null,null,null,0,null,0]
[null,null,null,null,null,null,null,null,null,null,0,null,0]
[null,null,null,null,null,null,null,null,null,null,0,null,0]
[null,null,null,null,null,null,null,null,null,null,0,null,0]
[null,null,null,null,null,null,null,null,null,null,0,null,0]
[null,null,null,null,null,null,null,null,null,null,0,null,0]
[null,null,null,null,null,null,null,null,null,null,0,null,0]
[null,null,null,null,null,null,null,null,null,null,0,null,0]
[null,null,null,null,null,null,null,null,null,null,0,null,0]
[null,null,null,null,null,null,null,null,null,null,0,null,0]
[null,null,null,null,null,null,null,null,null,null,0,null,0]
[null,null,null,null,null,null,null,null,null,null,0,null,0]
[null,null,null,null,null,null,null,null,null,null,0,null,0]
[null,null,null,null,null,null,null,null,null,null,0,null,0]
[null,null,null,null,null,null,null,null,null,null,0,null,0]
[null,null,null,null,null,null,null,null,null,null,0,null,0]
[null,null,null,null,null,null,null,null,null,null,0,null,0]
[null,null,null,null,null,null,null,null,null,null,0,null,0]
[null,null,null,null,null,null,null,null,null,null,0,null,0]
[null,null,null,null,null,null,null,null,null,null,0,null,0]
[null,null,null,null,null,null,null,null,null,null,0,null,0]
[null,null,null,null,null,null,null,null,null,null,0,null,0]
[null,null,null,null,null,null,null,null,null,null,0,null,0]
[null,null,null,null,null,null,null,null,null,null,0,null,0]
[null,null,null,null,null,null,null,null,null,null,0,null,0]
[null,null,null,null,null,null,null,null,null,null,0,null,0]
[null,null,null,null,null,null,null,null,null,null,0,null,0]
[null,null,null,null,null,null,null,null,null,null,0,null,0]
[null,null,null,null,null,null,null,null,null,null,0,null,0]
[null,null,null,null,null,null,null,null,null,null,0,null,0]
[null,null,null,null,null,null,null,null,null,null,0,null,0]
[null,null,null,null,null,null,null,null,null,null,0,null,0]
[null,null,null,null,null,null,null,null,null,null,0,null,0]
[null,null,null,null,null,null,null,null,null,null,0,null,0]
[null,null,null,null,null,null,null,null,null,null,0,null,0]
[null,null,null,null,null,null,null,null,null,null,0,null,0]
[null,null,null,null,null,null,null,null,null,null,0,null,0]
[null,null,null,null,null,null,null,null,null,null,0,null,0]
[null,null,null,null,null,null,null,null,null,null,0,null,0]
[null,null,null,null,null,null,null,null,null,null,0,null,0]
[null,null,null,null,null,null,null,null,null,null,0,null,0]
[null,null,null,null,null,null,null,null,null,null,0,null,0]
[null,null,null,null,null,null,null,null,null,null,0,null,0]
[null,null,null,null,null,null,null,null,null,null,0,null,0]
[null,null,null,null,null,null,null,null,null,null,0,null,0]
[null,null,null,null,null,null,null,null,null,null,0,null,0]
[null,null,null,null,null,null,null,null,null,null,0,null,0]
[null,null,null,null,null,null,null,null,null,null,0,null,0]
[null,null,null,null,null,null,null,null,null,null,0,null,0]
[null,null,null,null,null,null,null,null,null,null,0,null,0]
[null,null,null,null,null,null,null,null,null,null,0,null,0]
[null,null,null,null,null,null,null,null,null,null,0,null,0]
[null,null,null,null,null,null,null,null,null,null,0,null,0]
[null,null,null,null,null,null,null,null,null,null,0,null,0]
[null,null,null,null,null,null,null,null,null,null,0,null,0]
[null,null,null,null,null,null,null,null,null,null,0,null,0]
[null,null,null,null,null,null,null,null,null,null,0,null,0]
[null,null,null,null,null,null,null,null,null,null,0,null,0]
[null,null,null,null,null,null,null,null,null,null,0,null,0]
[null,null,null,null,null,null,null,null,null,null,0,null,0]
[null,null,null,null,null,null,null,null,null,null,0,null,0]
[null,null,null,null,null,null,null,null,null,null,{"$f":"J1029*G1029","v":0},null,{"$f":"L1029*G1029","v":0}]
[null,null,null,null,null,null,null,null,null,null,0,null,0]
[null,null,null,null,null,null,null,null,null,null,0,null,0]
[null,null,null,null,null,null,null,null,null,null,0,null,0]
[null,null,null,null,null,null,null,null,null,null,0,null,0]
[null,null,null,null,null,null,null,null,null,null,0,null,0]
[null,null,null,null,null,null,null,null,null,null,0,null,0]
[null,null,null,null,null,null,null,null,null,null,0,null,0]
[null,null,null,null,null,null,null,null,null,null,0,null,0]
[null,null,null,null,null,null,null,null,null,null,0,null,0]
[null,null,null,null,null,null,null,null,null,null,0,null,0]
[null,null,null,null,null,null,null,null,null,null,0,null,0]
[null,null,null,null,null,null,null,null,null,null,0,null,0]
[null,null,null,null,null,null,null,null,null,null,0,null,0]
[null,null,null,null,null,null,null,null,null,null,0,null,0]
[null,null,null,null,null,null,null,null,null,null,0,null,0]
[null,null,null,null,null,null,null,null,null,null,0,null,0]
[null,null,null,null,null,null,null,null,null,null,0,null,0]
[null,null,null,null,null,null,null,null,null,null,0,null,0]
[null,null,null,null,null,null,null,null,null,null,0,null,0]
[null,null,null,null,null,null,null,null,null,null,0,null,0]
[null,null,null,null,null,null,null,null,null,null,0,null,0]
[null,null,null,null,null,null,null,null,null,null,0,null,0]
[null,null,null,null,null,null,null,null,null,null,0,null,0]
[null,null,null,null,null,null,null,null,null,null,0,null,0]
[null,null,null,null,null,null,null,null,null,null,0,null,0]
[null,null,null,null,null,null,null,null,null,null,0,null,0]
[null,null,null,null,null,null,null,null,null,null,0,null,0]
[null,null,null,null,null,null,null,null,null,null,0,null,0]
[null,null,null,null,null,null,null,null,null,null,0,null,0]
[null,null,null,null,null,null,null,null,null,null,0,null,0]
[null,null,null,null,null,null,null,null,null,null,0,null,0]
[null,null,null,null,null,null,null,null,null,null,0,null,0]
[null,null,null,null,null,null,null,null,null,null,0,null,0]
[null,null,null,null,null,null,null,null,null,null,0,null,0]
[null,null,null,null,null,null,null,null,null,null,0,null,0]
[null,null,null,null,null,null,null,null,null,null,0,null,0]
[null,null,null,null,null,null,null,null,null,null,0,null,0]
[null,null,null,null,null,null,null,null,null,null,0,null,0]
[null,null,null,null,null,null,null,null,null,null,0,null,0]
[null,null,null,null,null,null,null,null,null,null,0,null,0]
[null,null,null,null,null,null,null,null,null,null,0,null,0]
[null,null,null,null,null,null,null,null,null,null,0,null,0]
[null,null,null,null,null,null,null,null,null,null,0,null,0]
[null,null,null,null,null,null,null,null,null,null,0,null,0]
[null,null,null,null,null,null,null,null,null,null,0,null,0]
[null,null,null,null,null,null,null,null,null,null,0,null,0]
[null,null,null,null,null,null,null,null,null,null,0,null,0]
[null,null,null,null,null,null,null,null,null,null,0,null,0]
[null,null,null,null,null,null,null,null,null,null,0,null,0]
[null,null,null,null,null,null,null,null,null,null,0,null,0]
[null,null,null,null,null,null,null,null,null,null,0,null,0]
[null,null,null,null,null,null,null,null,null,null,0,null,0]
[null,null,null,null,null,null,null,null,null,null,0,null,0]
[null,null,null,null,null,null,null,null,null,null,0,null,0]
[null,null,null,null,null,null,null,null,null,null,0,null,0]
[null,null,null,null,null,null,null,null,null,null,0,null,0]
[null,null,null,null,null,null,null,null,null,null,0,null,0]
[null,null,null,null,null,null,null,null,null,null,0,null,0]
[null,null,null,null,null,null,null,null,null,null,0,null,0]
[null,null,null,null,null,null,null,null,null,null,0,null,0]
[null,null,null,null,null,null,null,null,null,null,0,null,0]
[null,null,null,null,null,null,null,null,null,null,0,null,0]
[null,null,null,null,null,null,null,null,null,null,0,null,0]
[null,null,null,null,null,null,null,null,null,null,{"$f":"J1093*G1093","v":0},null,{"$f":"L1093*G1093","v":0}]
[null,null,null,null,null,null,null,null,null,null,0,null,0]
[null,null,null,null,null,null,null,null,null,null,0,null,0]
[null,null,null,null,null,null,null,null,null,null,0,null,0]
[null,null,null,null,null,null,null,null,null,null,0,null,0]
[null,null,null,null,null,null,null,null,null,null,0,null,0]
[null,null,null,null,null,null,null,null,null,null,0,null,0]
[null,null,null,null,null,null,null,null,null,null,0,null,0]
[null,null,null,null,null,null,null,null,null,null,0,null,0]
[null,null,null,null,null,null,null,null,null,null,0,null,0]
[null,null,null,null,null,null,null,null,null,null,0,null,0]
[null,null,null,null,null,null,null,null,null,null,0,null,0]
[null,null,null,null,null,null,null,null,null,null,0,null,0]
[null,null,null,null,null,null,null,null,null,null,0,null,0]
[null,null,null,null,null,null,null,null,null,null,0,null,0]
[null,null,null,null,null,null,null,null,null,null,0,null,0]
[null,null,null,null,null,null,null,null,null,null,0,null,0]
[null,null,null,null,null,null,null,null,null,null,0,null,0]
[null,null,null,null,null,null,null,null,null,null,0,null,0]
[null,null,null,null,null,null,null,null,null,null,0,null,0]
[null,null,null,null,null,null,null,null,null,null,0,null,0]
[null,null,null,null,null,null,null,null,null,null,0,null,0]
[null,null,null,null,null,null,null,null,null,null,0,null,0]
[null,null,null,null,null,null,null,null,null,null,0,null,0]
[null,null,null,null,null,null,null,null,null,null,0,null,0]
[null,null,null,null,null,null,null,null,null,null,0,null,0]
[null,null,null,null,null,null,null,null,null,null,0,null,0]
[null,null,null,null,null,null,null,null,null,null,0,null,0]
[null,null,null,null,null,null,null,null,null,null,0,null,0]
[null,null,null,null,null,null,null,null,null,null,0,null,0]
[null,null,null,null,null,null,null,null,null,null,0,null,0]
[null,null,null,null,null,null,null,null,null,null,0,null,0]
[null,null,null,null,null,null,null,null,null,null,0,null,0]
[null,null,null,null,null,null,null,null,null,null,0,null,0]
[null,null,null,null,null,null,null,null,null,null,0,null,0]
[null,null,null,null,null,null,null,null,null,null,0,null,0]
[null,null,null,null,null,null,null,null,null,null,0,null,0]
[null,null,null,null,null,null,null,null,null,null,0,null,0]
[null,null,null,null,null,null,null,null,null,null,0,null,0]
[null,null,null,null,null,null,null,null,null,null,0,null,0]
[null,null,null,null,null,null,null,null,null,null,0,null,0]
[null,null,null,null,null,null,null,null,null,null,0,null,0]
[null,null,null,null,null,null,null,null,null,null,0,null,0]
[null,null,null,null,null,null,null,null,null,null,0,null,0]
[null,null,null,null,null,null,null,null,null,null,0,null,0]
[null,null,null,null,null,null,null,null,null,null,0,null,0]
[null,null,null,null,null,null,null,null,null,null,0,null,0]
[null,null,null,null,null,null,null,null,null,null,0,null,0]
[null,null,null,null,null,null,null,null,null,null,0,null,0]
[null,null,null,null,null,null,null,null,null,null,0,null,0]
[null,null,null,null,null,null,null,null,null,null,0,null,0]
[null,null,null,null,null,null,null,null,null,null,0,null,0]
[null,null,null,null,null,null,null,null,null,null,0,null,0]
[null,null,null,null,null,null,null,null,null,null,0,null,0]
[null,null,null,null,null,null,null,null,null,null,0,null,0]
[null,null,null,null,null,null,null,null,null,null,0,null,0]
[null,null,null,null,null,null,null,null,null,null,0,null,0]
[null,null,null,null,null,null,null,null,null,null,0,null,0]
[null,null,null,null,null,null,null,null,null,null,0,null,0]
[null,null,null,null,null,null,null,null,null,null,0,null,0]
[null,null,null,null,null,null,null,null,null,null,0,null,0]
[null,null,null,null,null,null,null,null,null,null,0,null,0]
[null,null,null,null,null,null,null,null,null,null,0,null,0]
[null,null,null,null,null,null,null,null,null,null,0,null,0]
[null,null,null,null,null,null,null,null,null,null,{"$f":"J1157*G1157","v":0},null,{"$f":"L1157*G1157","v":0}]
[null,null,null,null,null,null,null,null,null,null,0,null,0]
[null,null,null,null,null,null,null,null,null,null,0,null,0]
[null,null,null,null,null,null,null,null,null,null,0,null,0]
[null,null,null,null,null,null,null,null,null,null,0,null,0]
[null,null,null,null,null,null,null,null,null,null,0,null,0]
[null,null,null,null,null,null,null,null,null,null,0,null,0]
[null,null,null,null,null,null,null,null,null,null,0,null,0]
[null,null,null,null,null,null,null,null,null,null,0,null,0]
[null,null,null,null,null,null,null,null,null,null,0,null,0]
[null,null,null,null,null,null,null,null,null,null,0,null,0]
[null,null,null,null,null,null,null,null,null,null,0,null,0]
[null,null,null,null,null,null,null,null,null,null,0,null,0]
[null,null,null,null,null,null,null,null,null,null,0,null,0]
[null,null,null,null,null,null,null,null,null,null,0,null,0]
[null,null,null,null,null,null,null,null,null,null,0,null,0]
[null,null,null,null,null,null,null,null,null,null,0,null,0]
[null,null,null,null,null,null,null,null,null,null,0,null,0]
[null,null,null,null,null,null,null,null,null,null,0,null,0]
[null,null,null,null,null,null,null,null,null,null,0,null,0]
[null,null,null,null,null,null,null,null,null,null,0,null,0]
[null,null,null,null,null,null,null,null,null,null,0,null,0]
[null,null,null,null,null,null,null,null,null,null,0,null,0]
[null,null,null,null,null,null,null,null,null,null,0,null,0]
[null,null,null,null,null,null,null,null,null,null,0,null,0]
[null,null,null,null,null,null,null,null,null,null,0,null,0]
[null,null,null,null,null,null,null,null,null,null,0,null,0]
[null,null,null,null,null,null,null,null,null,null,0,null,0]
[null,null,null,null,null,null,null,null,null,null,0,null,0]
[null,null,null,null,null,null,null,null,null,null,0,null,0]
[null,null,null,null,null,null,null,null,null,null,0,null,0]
[null,null,null,null,null,null,null,null,null,null,0,null,0]
[null,null,null,null,null,null,null,null,null,null,0,null,0]
[null,null,null,null,null,null,null,null,null,null,0,null,0]
[null,null,null,null,null,null,null,null,null,null,0,null,0]
[null,null,null,null,null,null,null,null,null,null,0,null,0]
[null,null,null,null,null,null,null,null,null,null,0,null,0]
[null,null,null,null,null,null,null,null,null,null,0,null,0]
[null,null,null,null,null,null,null,null,null,null,0,null,0]
[null,null,null,null,null,null,null,null,null,null,0,null,0]
[null,null,null,null,null,null,null,null,null,null,0,null,0]
[null,null,null,null,null,null,null,null,null,null,0,null,0]
[null,null,null,null,null,null,null,null,null,null,0,null,0]
[null,null,null,null,null,null,null,null,null,null,0,null,0]
[null,null,null,null,null,null,null,null,null,null,0,null,0]
[null,null,null,null,null,null,null,null,null,null,0,null,0]
[null,null,null,null,null,null,null,null,null,null,0,null,0]
[null,null,null,null,null,null,null,null,null,null,0,null,0]
[null,null,null,null,null,null,null,null,null,null,0,null,0]
[null,null,null,null,null,null,null,null,null,null,0,null,0]
[null,null,null,null,null,null,null,null,null,null,0,null,0]
[null,null,null,null,null,null,null,null,null,null,0,null,0]
[null,null,null,null,null,null,null,null,null,null,0,null,0]
[null,null,null,null,null,null,null,null,null,null,0,null,0]
[null,null,null,null,null,null,null,null,null,null,0,null,0]
[null,null,null,null,null,null,null,null,null,null,0,null,0]
[null,null,null,null,null,null,null,null,null,null,0,null,0]
[null,null,null,null,null,null,null,null,null,null,0,null,0]
[null,null,null,null,null,null,null,null,null,null,0,null,0]
[null,null,null,null,null,null,null,null,null,null,0,null,0]
[null,null,null,null,null,null,null,null,null,null,0,null,0]
[null,null,null,null,null,null,null,null,null,null,0,null,0]
[null,null,null,null,null,null,null,null,null,null,0,null,0]
[null,null,null,null,null,null,null,null,null,null,0,null,0]
[null,null,null,null,null,null,null,null,null,null,{"$f":"J1221*G1221","v":0},null,{"$f":"L1221*G1221","v":0}]
[null,null,null,null,null,null,null,null,null,null,0,null,0]
[null,null,null,null,null,null,null,null,null,null,0,null,0]
[null,null,null,null,null,null,null,null,null,null,0,null,0]
[null,null,null,null,null,null,null,null,null,null,0,null,0]
[null,null,null,null,null,null,null,null,null,null,0,null,0]
[null,null,null,null,null,null,null,null,null,null,0,null,0]
[null,null,null,null,null,null,null,null,null,null,0,null,0]
[null,null,null,null,null,null,null,null,null,null,0,null,0]
[null,null,null,null,null,null,null,null,null,null,0,null,0]
[null,null,null,null,null,null,null,null,null,null,0,null,0]
[null,null,null,null,null,null,null,null,null,null,0,null,0]
[null,null,null,null,null,null,null,null,null,null,0,null,0]
[null,null,null,null,null,null,null,null,null,null,0,null,0]
[null,null,null,null,null,null,null,null,null,null,0,null,0]
[null,null,null,null,null,null,null,null,null,null,0,null,0]
[null,null,null,null,null,null,null,null,null,null,0,null,0]
[null,null,null,null,null,null,null,null,null,null,0,null,0]
[null,null,null,null,null,null,null,null,null,null,0,null,0]
[null,null,null,null,null,null,null,null,null,null,0,null,0]
[null,null,null,null,null,null,null,null,null,null,0,null,0]
[null,null,null,null,null,null,null,null,null,null,0,null,0]
[null,null,null,null,null,null,null,null,null,null,0,null,0]
[null,null,null,null,null,null,null,null,null,null,0,null,0]
[null,null,null,null,null,null,null,null,null,null,0,null,0]
[null,null,null,null,null,null,null,null,null,null,0,null,0]
[null,null,null,null,null,null,null,null,null,null,0,null,0]
[null,null,null,null,null,null,null,null,null,null,0,null,0]
[null,null,null,null,null,null,null,null,null,null,0,null,0]
[null,null,null,null,null,null,null,null,null,null,0,null,0]
[null,null,null,null,null,null,null,null,null,null,0,null,0]
[null,null,null,null,null,null,null,null,null,null,0,null,0]
[null,null,null,null,null,null,null,null,null,null,0,null,0]
[null,null,null,null,null,null,null,null,null,null,0,null,0]
[null,null,null,null,null,null,null,null,null,null,0,null,0]
[null,null,null,null,null,null,null,null,null,null,0,null,0]
[null,null,null,null,null,null,null,null,null,null,0,null,0]
[null,null,null,null,null,null,null,null,null,null,0,null,0]
[null,null,null,null,null,null,null,null,null,null,0,null,0]
[null,null,null,null,null,null,null,null,null,null,0,null,0]
[null,null,null,null,null,null,null,null,null,null,0,null,0]
[null,null,null,null,null,null,null,null,null,null,0,null,0]
[null,null,null,null,null,null,null,null,null,null,0,null,0]
[null,null,null,null,null,null,null,null,null,null,0,null,0]
[null,null,null,null,null,null,null,null,null,null,0,null,0]
[null,null,null,null,null,null,null,null,null,null,0,null,0]
[null,null,null,null,null,null,null,null,null,null,0,null,0]
[null,null,null,null,null,null,null,null,null,null,0,null,0]
[null,null,null,null,null,null,null,null,null,null,0,null,0]
[null,null,null,null,null,null,null,null,null,null,0,null,0]
[null,null,null,null,null,null,null,null,null,null,0,null,0]
[null,null,null,null,null,null,null,null,null,null,0,null,0]
[null,null,null,null,null,null,null,null,null,null,0,null,0]
[null,null,null,null,null,null,null,null,null,null,0,null,0]
[null,null,null,null,null,null,null,null,null,null,0,null,0]
[null,null,null,null,null,null,null,null,null,null,0,null,0]
[null,null,null,null,null,null,null,null,null,null,0,null,0]
[null,null,null,null,null,null,null,null,null,null,0,null,0]
[null,null,null,null,null,null,null,null,null,null,0,null,0]
[null,null,null,null,null,null,null,null,null,null,0,null,0]
[null,null,null,null,null,null,null,null,null,null,0,null,0]
[null,null,null,null,null,null,null,null,null,null,0,null,0]
[null,null,null,null,null,null,null,null,null,null,0,null,0]
[null,null,null,null,null,null,null,null,null,null,0,null,0]
[null,null,null,null,null,null,null,null,null,null,{"$f":"J1285*G1285","v":0},null,{"$f":"L1285*G1285","v":0}]
[null,null,null,null,null,null,null,null,null,null,0,null,0]
[null,null,null,null,null,null,null,null,null,null,0,null,0]
[null,null,null,null,null,null,null,null,null,null,0,null,0]
[null,null,null,null,null,null,null,null,null,null,0,null,0]
[null,null,null,null,null,null,null,null,null,null,0,null,0]
[null,null,null,null,null,null,null,null,null,null,0,null,0]
[null,null,null,null,null,null,null,null,null,null,0,null,0]
[null,null,null,null,null,null,null,null,null,null,0,null,0]
[null,null,null,null,null,null,null,null,null,null,0,null,0]
[null,null,null,null,null,null,null,null,null,null,0,null,0]
[null,null,null,null,null,null,null,null,null,null,0,null,0]
[null,null,null,null,null,null,null,null,null,null,0,null,0]
[null,null,null,null,null,null,null,null,null,null,0,null,0]
[null,null,null,null,null,null,null,null,null,null,0,null,0]
[null,null,null,null,null,null,null,null,null,null,0,null,0]
[null,null,null,null,null,null,null,null,null,null,0,null,0]
[null,null,null,null,null,null,null,null,null,null,0,null,0]
[null,null,null,null,null,null,null,null,null,null,0,null,0]
[null,null,null,null,null,null,null,null,null,null,0,null,0]
[null,null,null,null,null,null,null,null,null,null,0,null,0]
[null,null,null,null,null,null,null,null,null,null,0,null,0]
[null,null,null,null,null,null,null,null,null,null,0,null,0]
[null,null,null,null,null,null,null,null,null,null,0,null,0]
[null,null,null,null,null,null,null,null,null,null,0,null,0]
[null,null,null,null,null,null,null,null,null,null,0,null,0]
[null,null,null,null,null,null,null,null,null,null,0,null,0]
[null,null,null,null,null,null,null,null,null,null,0,null,0]
[null,null,null,null,null,null,null,null,null,null,0,null,0]
[null,null,null,null,null,null,null,null,null,null,0,null,0]
[null,null,null,null,null,null,null,null,null,null,0,null,0]
[null,null,null,null,null,null,null,null,null,null,0,null,0]
[null,null,null,null,null,null,null,null,null,null,0,null,0]
[null,null,null,null,null,null,null,null,null,null,0,null,0]
[null,null,null,null,null,null,null,null,null,null,0,null,0]
[null,null,null,null,null,null,null,null,null,null,0,null,0]
[null,null,null,null,null,null,null,null,null,null,0,null,0]
[null,null,null,null,null,null,null,null,null,null,0,null,0]
[null,null,null,null,null,null,null,null,null,null,0,null,0]
[null,null,null,null,null,null,null,null,null,null,0,null,0]
[null,null,null,null,null,null,null,null,null,null,0,null,0]
[null,null,null,null,null,null,null,null,null,null,0,null,0]
[null,null,null,null,null,null,null,null,null,null,0,null,0]
[null,null,null,null,null,null,null,null,null,null,0,null,0]
[null,null,null,null,null,null,null,null,null,null,0,null,0]
[null,null,null,null,null,null,null,null,null,null,0,null,0]
[null,null,null,null,null,null,null,null,null,null,0,null,0]
[null,null,null,null,null,null,null,null,null,null,0,null,0]
[null,null,null,null,null,null,null,null,null,null,0,null,0]
[null,null,null,null,null,null,null,null,null,null,0,null,0]
[null,null,null,null,null,null,null,null,null,null,0,null,0]
[null,null,null,null,null,null,null,null,null,null,0,null,0]
[null,null,null,null,null,null,null,null,null,null,0,null,0]
[null,null,null,null,null,null,null,null,null,null,0,null,0]
[null,null,null,null,null,null,null,null,null,null,0,null,0]
[null,null,null,null,null,null,null,null,null,null,0,null,0]
[null,null,null,null,null,null,null,null,null,null,0,null,0]
[null,null,null,null,null,null,null,null,null,null,0,null,0]
[null,null,null,null,null,null,null,null,null,null,0,null,0]
[null,null,null,null,null,null,null,null,null,null,0,null,0]
[null,null,null,null,null,null,null,null,null,null,0,null,0]
[null,null,null,null,null,null,null,null,null,null,0,null,0]
[null,null,null,null,null,null,null,null,null,null,0,null,0]
[null,null,null,null,null,null,null,null,null,null,0,null,0]
[null,null,null,null,null,null,null,null,null,null,{"$f":"J1349*G1349","v":0},null,{"$f":"L1349*G1349","v":0}]
[null,null,null,null,null,null,null,null,null,null,0,null,0]
[null,null,null,null,null,null,null,null,null,null,0,null,0]
[null,null,null,null,null,null,null,null,null,null,0,null,0]
[null,null,null,null,null,null,null,null,null,null,0,null,0]
[null,null,null,null,null,null,null,null,null,null,0,null,0]
[null,null,null,null,null,null,null,null,null,null,0,null,0]
[null,null,null,null,null,null,null,null,null,null,0,null,0]
[null,null,null,null,null,null,null,null,null,null,0,null,0]
[null,null,null,null,null,null,null,null,null,null,0,null,0]
[null,null,null,null,null,null,null,null,null,null,0,null,0]
[null,null,null,null,null,null,null,null,null,null,0,null,0]
[null,null,null,null,null,null,null,null,null,null,0,null,0]
[null,null,null,null,null,null,null,null,null,null,0,null,0]
[null,null,null,null,null,null,null,null,null,null,0,null,0]
[null,null,null,null,null,null,null,null,null,null,0,null,0]
[null,null,null,null,null,null,null,null,null,null,0,null,0]
[null,null,null,null,null,null,null,null,null,null,0,null,0]
[null,null,null,null,null,null,null,null,null,null,0,null,0]
[null,null,null,null,null,null,null,null,null,null,0,null,0]
[null,null,null,null,null,null,null,null,null,null,0,null,0]
[null,null,null,null,null,null,null,null,null,null,0,null,0]
[null,null,null,null,null,null,null,null,null,null,0,null,0]
[null,null,null,null,null,null,null,null,null,null,0,null,0]
[null,null,null,null,null,null,null,null,null,null,0,null,0]
[null,null,null,null,null,null,null,null,null,null,0,null,0]
[null,null,null,null,null,null,null,null,null,null,0,null,0]
[null,null,null,null,null,null,null,null,null,null,0,null,0]
[null,null,null,null,null,null,null,null,null,null,0,null,0]
[null,null,null,null,null,null,null,null,null,null,0,null,0]
[null,null,null,null,null,null,null,null,null,null,0,null,0]
[null,null,null,null,null,null,null,null,null,null,0,null,0]
[null,null,null,null,null,null,null,null,null,null,0,null,0]
[null,null,null,null,null,null,null,null,null,null,0,null,0]
[null,null,null,null,null,null,null,null,null,null,0,null,0]
[null,null,null,null,null,null,null,null,null,null,0,null,0]
[null,null,null,null,null,null,null,null,null,null,0,null,0]
[null,null,null,null,null,null,null,null,null,null,0,null,0]
[null,null,null,null,null,null,null,null,null,null,0,null,0]
[null,null,null,null,null,null,null,null,null,null,0,null,0]
[null,null,null,null,null,null,null,null,null,null,0,null,0]
[null,null,null,null,null,null,null,null,null,null,0,null,0]
[null,null,null,null,null,null,null,null,null,null,0,null,0]
[null,null,null,null,null,null,null,null,null,null,0,null,0]
[null,null,null,null,null,null,null,null,null,null,0,null,0]
[null,null,null,null,null,null,null,null,null,null,0,null,0]
[null,null,null,null,null,null,null,null,null,null,0,null,0]
[null,null,null,null,null,null,null,null,null,null,0,null,0]
[null,null,null,null,null,null,null,null,null,null,0,null,0]
[null,null,null,null,null,null,null,null,null,null,0,null,0]
[null,null,null,null,null,null,null,null,null,null,0,null,0]
[null,null,null,null,null,null,null,null,null,null,0,null,0]
[null,null,null,null,null,null,null,null,null,null,0,null,0]
[null,null,null,null,null,null,null,null,null,null,0,null,0]
[null,null,null,null,null,null,null,null,null,null,0,null,0]
[null,null,null,null,null,null,null,null,null,null,0,null,0]
[null,null,null,null,null,null,null,null,null,null,0,null,0]
[null,null,null,null,null,null,null,null,null,null,0,null,0]
[null,null,null,null,null,null,null,null,null,null,0,null,0]
[null,null,null,null,null,null,null,null,null,null,0,null,0]
[null,null,null,null,null,null,null,null,null,null,0,null,0]
[null,null,null,null,null,null,null,null,null,null,0,null,0]
[null,null,null,null,null,null,null,null,null,null,0,null,0]
[null,null,null,null,null,null,null,null,null,null,0,null,0]
[null,null,null,null,null,null,null,null,null,null,{"$f":"J1413*G1413","v":0},null,{"$f":"L1413*G1413","v":0}]
[null,null,null,null,null,null,null,null,null,null,0,null,0]
[null,null,null,null,null,null,null,null,null,null,0,null,0]
[null,null,null,null,null,null,null,null,null,null,0,null,0]
[null,null,null,null,null,null,null,null,null,null,0,null,0]
[null,null,null,null,null,null,null,null,null,null,0,null,0]
[null,null,null,null,null,null,null,null,null,null,0,null,0]
[null,null,null,null,null,null,null,null,null,null,0,null,0]
[null,null,null,null,null,null,null,null,null,null,0,null,0]
[null,null,null,null,null,null,null,null,null,null,0,null,0]
[null,null,null,null,null,null,null,null,null,null,0,null,0]
[null,null,null,null,null,null,null,null,null,null,0,null,0]
[null,null,null,null,null,null,null,null,null,null,0,null,0]
[null,null,null,null,null,null,null,null,null,null,0,null,0]
[null,null,null,null,null,null,null,null,null,null,0,null,0]
[null,null,null,null,null,null,null,null,null,null,0,null,0]
[null,null,null,null,null,null,null,null,null,null,0,null,0]
[null,null,null,null,null,null,null,null,null,null,0,null,0]
[null,null,null,null,null,null,null,null,null,null,0,null,0]
[null,null,null,null,null,null,null,null,null,null,0,null,0]
[null,null,null,null,null,null,null,null,null,null,0,null,0]
[null,null,null,null,null,null,null,null,null,null,0,null,0]
[null,null,null,null,null,null,null,null,null,null,0,null,0]
[null,null,null,null,null,null,null,null,null,null,0,null,0]
[null,null,null,null,null,null,null,null,null,null,0,null,0]
[null,null,null,null,null,null,null,null,null,null,0,null,0]
[null,null,null,null,null,null,null,null,null,null,0,null,0]
[null,null,null,null,null,null,null,null,null,null,0,null,0]
[null,null,null,null,null,null,null,null,null,null,0,null,0]
[null,null,null,null,null,null,null,null,null,null,0,null,0]
[null,null,null,null,null,null,null,null,null,null,0,null,0]
[null,null,null,null,null,null,null,null,null,null,0,null,0]
[null,null,null,null,null,null,null,null,null,null,0,null,0]
[null,null,null,null,null,null,null,null,null,null,0,null,0]
[null,null,null,null,null,null,null,null,null,null,0,null,0]
[null,null,null,null,null,null,null,null,null,null,0,null,0]
[null,null,null,null,null,null,null,null,null,null,0,null,0]
[null,null,null,null,null,null,null,null,null,null,0,null,0]
[null,null,null,null,null,null,null,null,null,null,0,null,0]
[null,null,null,null,null,null,null,null,null,null,0,null,0]
[null,null,null,null,null,null,null,null,null,null,0,null,0]
[null,null,null,null,null,null,null,null,null,null,0,null,0]
[null,null,null,null,null,null,null,null,null,null,0,null,0]
[null,null,null,null,null,null,null,null,null,null,0,null,0]
[null,null,null,null,null,null,null,null,null,null,0,null,0]
[null,null,null,null,null,null,null,null,null,null,0,null,0]
[null,null,null,null,null,null,null,null,null,null,0,null,0]
[null,null,null,null,null,null,null,null,null,null,0,null,0]
[null,null,null,null,null,null,null,null,null,null,0,null,0]
[null,null,null,null,null,null,null,null,null,null,0,null,0]
[null,null,null,null,null,null,null,null,null,null,0,null,0]
[null,null,null,null,null,null,null,null,null,null,0,null,0]
[null,null,null,null,null,null,null,null,null,null,0,null,0]
[null,null,null,null,null,null,null,null,null,null,0,null,0]
[null,null,null,null,null,null,null,null,null,null,0,null,0]
[null,null,null,null,null,null,null,null,null,null,0,null,0]
[null,null,null,null,null,null,null,null,null,null,0,null,0]
[null,null,null,null,null,null,null,null,null,null,0,null,0]
[null,null,null,null,null,null,null,null,null,null,0,null,0]
[null,null,null,null,null,null,null,null,null,null,0,null,0]
[null,null,null,null,null,null,null,null,null,null,0,null,0]
[null,null,null,null,null,null,null,null,null,null,0,null,0]
[null,null,null,null,null,null,null,null,null,null,0,null,0]
[null,null,null,null,null,null,null,null,null,null,0,null,0]
[null,null,null,null,null,null,null,null,null,null,{"$f":"J1477*G1477","v":0},null,{"$f":"L1477*G1477","v":0}]
[null,null,null,null,null,null,null,null,null,null,0,null,0]
[null,null,null,null,null,null,null,null,null,null,0,null,0]
[null,null,null,null,null,null,null,null,null,null,0,null,0]
[null,null,null,null,null,null,null,null,null,null,0,null,0]
[null,null,null,null,null,null,null,null,null,null,0,null,0]
[null,null,null,null,null,null,null,null,null,null,0,null,0]
[null,null,null,null,null,null,null,null,null,null,0,null,0]
[null,null,null,null,null,null,null,null,null,null,0,null,0]
[null,null,null,null,null,null,null,null,null,null,0,null,0]
[null,null,null,null,null,null,null,null,null,null,0,null,0]
[null,null,null,null,null,null,null,null,null,null,0,null,0]
[null,null,null,null,null,null,null,null,null,null,0,null,0]
[null,null,null,null,null,null,null,null,null,null,0,null,0]
[null,null,null,null,null,null,null,null,null,null,0,null,0]
[null,null,null,null,null,null,null,null,null,null,0,null,0]
[null,null,null,null,null,null,null,null,null,null,0,null,0]
[null,null,null,null,null,null,null,null,null,null,0,null,0]
[null,null,null,null,null,null,null,null,null,null,0,null,0]
[null,null,null,null,null,null,null,null,null,null,0,null,0]
[null,null,null,null,null,null,null,null,null,null,0,null,0]
[null,null,null,null,null,null,null,null,null,null,0,null,0]
[null,null,null,null,null,null,null,null,null,null,0,null,0]
[null,null,null,null,null,null,null,null,null,null,0,null,0]
[null,null,null,null,null,null,null,null,null,null,0,null,0]
[null,null,null,null,null,null,null,null,null,null,0,null,0]
[null,null,null,null,null,null,null,null,null,null,0,null,0]
[null,null,null,null,null,null,null,null,null,null,0,null,0]
[null,null,null,null,null,null,null,null,null,null,0,null,0]
[null,null,null,null,null,null,null,null,null,null,0,null,0]
[null,null,null,null,null,null,null,null,null,null,0,null,0]
[null,null,null,null,null,null,null,null,null,null,0,null,0]
[null,null,null,null,null,null,null,null,null,null,0,null,0]
[null,null,null,null,null,null,null,null,null,null,0,null,0]
[null,null,null,null,null,null,null,null,null,null,0,null,0]
[null,null,null,null,null,null,null,null,null,null,0,null,0]
[null,null,null,null,null,null,null,null,null,null,0,null,0]
[null,null,null,null,null,null,null,null,null,null,0,null,0]
[null,null,null,null,null,null,null,null,null,null,0,null,0]
[null,null,null,null,null,null,null,null,null,null,0,null,0]
[null,null,null,null,null,null,null,null,null,null,0,null,0]
[null,null,null,null,null,null,null,null,null,null,0,null,0]
[null,null,null,null,null,null,null,null,null,null,0,null,0]
[null,null,null,null,null,null,null,null,null,null,0,null,0]
[null,null,null,null,null,null,null,null,null,null,0,null,0]
[null,null,null,null,null,null,null,null,null,null,0,null,0]
[null,null,null,null,null,null,null,null,null,null,0,null,0]
[null,null,null,null,null,null,null,null,null,null,0,null,0]
[null,null,null,null,null,null,null,null,null,null,0,null,0]
[null,null,null,null,null,null,null,null,null,null,0,null,0]
[null,null,null,null,null,null,null,null,null,null,0,null,0]
[null,null,null,null,null,null,null,null,null,null,0,null,0]
[null,null,null,null,null,null,null,null,null,null,0,null,0]
[null,null,null,null,null,null,null,null,null,null,0,null,0]
[null,null,null,null,null,null,null,null,null,null,0,null,0]
[null,null,null,null,null,null,null,null,null,null,0,null,0]
[null,null,null,null,null,null,null,null,null,null,0,null,0]
[null,null,null,null,null,null,null,null,null,null,0,null,0]
[null,null,null,null,null,null,null,null,null,null,0,null,0]
[null,null,null,null,null,null,null,null,null,null,0,null,0]
[null,null,null,null,null,null,null,null,null,null,0,null,0]
[null,null,null,null,null,null,null,null,null,null,0,null,0]
[null,null,null,null,null,null,null,null,null,null,0,null,0]
[null,null,null,null,null,null,null,null,null,null,0,null,0]
[null,null,null,null,null,null,null,null,null,null,{"$f":"J1541*G1541","v":0},null,{"$f":"L1541*G1541","v":0}]
[null,null,null,null,null,null,null,null,null,null,0,null,0]
[null,null,null,null,null,null,null,null,null,null,0,null,0]
[null,null,null,null,null,null,null,null,null,null,0,null,0]
[null,null,null,null,null,null,null,null,null,null,0,null,0]
[null,null,null,null,null,null,null,null,null,null,0,null,0]
[null,null,null,null,null,null,null,null,null,null,0,null,0]
[null,null,null,null,null,null,null,null,null,null,0,null,0]
[null,null,null,null,null,null,null,null,null,null,0,null,0]
[null,null,null,null,null,null,null,null,null,null,0,null,0]
[null,null,null,null,null,null,null,null,null,null,0,null,0]
[null,null,null,null,null,null,null,null,null,null,0,null,0]
[null,null,null,null,null,null,null,null,null,null,0,null,0]
[null,null,null,null,null,null,null,null,null,null,0,null,0]
[null,null,null,null,null,null,null,null,null,null,0,null,0]
[null,null,null,null,null,null,null,null,null,null,0,null,0]
[null,null,null,null,null,null,null,null,null,null,0,null,0]
[null,null,null,null,null,null,null,null,null,null,0,null,0]
[null,null,null,null,null,null,null,null,null,null,0,null,0]
[null,null,null,null,null,null,null,null,null,null,0,null,0]
[null,null,null,null,null,null,null,null,null,null,0,null,0]
[null,null,null,null,null,null,null,null,null,null,0,null,0]
[null,null,null,null,null,null,null,null,null,null,0,null,0]
[null,null,null,null,null,null,null,null,null,null,0,null,0]
[null,null,null,null,null,null,null,null,null,null,0,null,0]
[null,null,null,null,null,null,null,null,null,null,0,null,0]
[null,null,null,null,null,null,null,null,null,null,0,null,0]
[null,null,null,null,null,null,null,null,null,null,0,null,0]
[null,null,null,null,null,null,null,null,null,null,0,null,0]
[null,null,null,null,null,null,null,null,null,null,0,null,0]
[null,null,null,null,null,null,null,null,null,null,0,null,0]
[null,null,null,null,null,null,null,null,null,null,0,null,0]
[null,null,null,null,null,null,null,null,null,null,0,null,0]
[null,null,null,null,null,null,null,null,null,null,0,null,0]
[null,null,null,null,null,null,null,null,null,null,0,null,0]
[null,null,null,null,null,null,null,null,null,null,0,null,0]
[null,null,null,null,null,null,null,null,null,null,0,null,0]
[null,null,null,null,null,null,null,null,null,null,0,null,0]
[null,null,null,null,null,null,null,null,null,null,0,null,0]
[null,null,null,null,null,null,null,null,null,null,0,null,0]
[null,null,null,null,null,null,null,null,null,null,0,null,0]
[null,null,null,null,null,null,null,null,null,null,0,null,0]
[null,null,null,null,null,null,null,null,null,null,0,null,0]
[null,null,null,null,null,null,null,null,null,null,0,null,0]
[null,null,null,null,null,null,null,null,null,null,0,null,0]
[null,null,null,null,null,null,null,null,null,null,0,null,0]
[null,null,null,null,null,null,null,null,null,null,0,null,0]
[null,null,null,null,null,null,null,null,null,null,0,null,0]
[null,null,null,null,null,null,null,null,null,null,0,null,0]
[null,null,null,null,null,null,null,null,null,null,0,null,0]
[null,null,null,null,null,null,null,null,null,null,0,null,0]
[null,null,null,null,null,null,null,null,null,null,0,null,0]
[null,null,null,null,null,null,null,null,null,null,0,null,0]
[null,null,null,null,null,null,null,null,null,null,0,null,0]
[null,null,null,null,null,null,null,null,null,null,0,null,0]
[null,null,null,null,null,null,null,null,null,null,0,null,0]
[null,null,null,null,null,null,null,null,null,null,0,null,0]
[null,null,null,null,null,null,null,null,null,null,0,null,0]
[null,null,null,null,null,null,null,null,null,null,0,null,0]
[null,null,null,null,null,null,null,null,null,null,0,null,0]
[null,null,null,null,null,null,null,null,null,null,0,null,0]
[null,null,null,null,null,null,null,null,null,null,0,null,0]
[null,null,null,null,null,null,null,null,null,null,0,null,0]
[null,null,null,null,null,null,null,null,null,null,0,null,0]
[null,null,null,null,null,null,null,null,null,null,{"$f":"J1605*G1605","v":0},null,{"$f":"L1605*G1605","v":0}]
[null,null,null,null,null,null,null,null,null,null,0,null,0]
[null,null,null,null,null,null,null,null,null,null,0,null,0]
[null,null,null,null,null,null,null,null,null,null,0,null,0]
[null,null,null,null,null,null,null,null,null,null,0,null,0]
[null,null,null,null,null,null,null,null,null,null,0,null,0]
[null,null,null,null,null,null,null,null,null,null,0,null,0]
[null,null,null,null,null,null,null,null,null,null,0,null,0]
[null,null,null,null,null,null,null,null,null,null,0,null,0]
[null,null,null,null,null,null,null,null,null,null,0,null,0]
[null,null,null,null,null,null,null,null,null,null,0,null,0]
[null,null,null,null,null,null,null,null,null,null,0,null,0]
[null,null,null,null,null,null,null,null,null,null,0,null,0]
[null,null,null,null,null,null,null,null,null,null,0,null,0]
[null,null,null,null,null,null,null,null,null,null,0,null,0]
[null,null,null,null,null,null,null,null,null,null,0,null,0]
[null,null,null,null,null,null,null,null,null,null,0,null,0]
[null,null,null,null,null,null,null,null,null,null,0,null,0]
[null,null,null,null,null,null,null,null,null,null,0,null,0]
[null,null,null,null,null,null,null,null,null,null,0,null,0]
[null,null,null,null,null,null,null,null,null,null,0,null,0]
[null,null,null,null,null,null,null,null,null,null,0,null,0]
[null,null,null,null,null,null,null,null,null,null,0,null,0]
[null,null,null,null,null,null,null,null,null,null,0,null,0]
[null,null,null,null,null,null,null,null,null,null,0,null,0]
[null,null,null,null,null,null,null,null,null,null,0,null,0]
[null,null,null,null,null,null,null,null,null,null,0,null,0]
[null,null,null,null,null,null,null,null,null,null,0,null,0]
[null,null,null,null,null,null,null,null,null,null,0,null,0]
[null,null,null,null,null,null,null,null,null,null,0,null,0]
[null,null,null,null,null,null,null,null,null,null,0,null,0]
[null,null,null,null,null,null,null,null,null,null,0,null,0]
[null,null,null,null,null,null,null,null,null,null,0,null,0]
[null,null,null,null,null,null,null,null,null,null,0,null,0]
[null,null,null,null,null,null,null,null,null,null,0,null,0]
[null,null,null,null,null,null,null,null,null,null,0,null,0]
[null,null,null,null,null,null,null,null,null,null,0,null,0]
[null,null,null,null,null,null,null,null,null,null,0,null,0]
[null,null,null,null,null,null,null,null,null,null,0,null,0]
[null,null,null,null,null,null,null,null,null,null,0,null,0]
[null,null,null,null,null,null,null,null,null,null,0,null,0]
[null,null,null,null,null,null,null,null,null,null,0,null,0]
[null,null,null,null,null,null,null,null,null,null,0,null,0]
[null,null,null,null,null,null,null,null,null,null,0,null,0]
[null,null,null,null,null,null,null,null,null,null,0,null,0]
[null,null,null,null,null,null,null,null,null,null,0,null,0]
[null,null,null,null,null,null,null,null,null,null,0,null,0]
[null,null,null,null,null,null,null,null,null,null,0,null,0]
[null,null,null,null,null,null,null,null,null,null,0,null,0]
[null,null,null,null,null,null,null,null,null,null,0,null,0]
[null,null,null,null,null,null,null,null,null,null,0,null,0]
[null,null,null,null,null,null,null,null,null,null,0,null,0]
[null,null,null,null,null,null,null,null,null,null,0,null,0]
[null,null,null,null,null,null,null,null,null,null,0,null,0]
[null,null,null,null,null,null,null,null,null,null,0,null,0]
[null,null,null,null,null,null,null,null,null,null,0,null,0]
[null,null,null,null,null,null,null,null,null,null,0,null,0]
[null,null,null,null,null,null,null,null,null,null,0,null,0]
[null,null,null,null,null,null,null,null,null,null,0,null,0]
[null,null,null,null,null,null,null,null,null,null,0,null,0]
[null,null,null,null,null,null,null,null,null,null,0,null,0]
[null,null,null,null,null,null,null,null,null,null,0,null,0]
[null,null,null,null,null,null,null,null,null,null,0,null,0]
[null,null,null,null,null,null,null,null,null,null,0,null,0]
[null,null,null,null,null,null,null,null,null,null,{"$f":"J1669*G1669","v":0},null,{"$f":"L1669*G1669","v":0}]
[null,null,null,null,null,null,null,null,null,null,0,null,0]
[null,null,null,null,null,null,null,null,null,null,0,null,0]
[null,null,null,null,null,null,null,null,null,null,0,null,0]
[null,null,null,null,null,null,null,null,null,null,0,null,0]
[null,null,null,null,null,null,null,null,null,null,0,null,0]
[null,null,null,null,null,null,null,null,null,null,0,null,0]
[null,null,null,null,null,null,null,null,null,null,0,null,0]
[null,null,null,null,null,null,null,null,null,null,0,null,0]
[null,null,null,null,null,null,null,null,null,null,0,null,0]
[null,null,null,null,null,null,null,null,null,null,0,null,0]
[null,null,null,null,null,null,null,null,null,null,0,null,0]
[null,null,null,null,null,null,null,null,null,null,0,null,0]
[null,null,null,null,null,null,null,null,null,null,0,null,0]
[null,null,null,null,null,null,null,null,null,null,0,null,0]
[null,null,null,null,null,null,null,null,null,null,0,null,0]
[null,null,null,null,null,null,null,null,null,null,0,null,0]
[null,null,null,null,null,null,null,null,null,null,0,null,0]
[null,null,null,null,null,null,null,null,null,null,0,null,0]
[null,null,null,null,null,null,null,null,null,null,0,null,0]
[null,null,null,null,null,null,null,null,null,null,0,null,0]
[null,null,null,null,null,null,null,null,null,null,0,null,0]
[null,null,null,null,null,null,null,null,null,null,0,null,0]
[null,null,null,null,null,null,null,null,null,null,0,null,0]
[null,null,null,null,null,null,null,null,null,null,0,null,0]
[null,null,null,null,null,null,null,null,null,null,0,null,0]
[null,null,null,null,null,null,null,null,null,null,0,null,0]
[null,null,null,null,null,null,null,null,null,null,0,null,0]
[null,null,null,null,null,null,null,null,null,null,0,null,0]
[null,null,null,null,null,null,null,null,null,null,0,null,0]
[null,null,null,null,null,null,null,null,null,null,0,null,0]
[null,null,null,null,null,null,null,null,null,null,0,null,0]
[null,null,null,null,null,null,null,null,null,null,0,null,0]
[null,null,null,null,null,null,null,null,null,null,0,null,0]
[null,null,null,null,null,null,null,null,null,null,0,null,0]
[null,null,null,null,null,null,null,null,null,null,0,null,0]
[null,null,null,null,null,null,null,null,null,null,0,null,0]
[null,null,null,null,null,null,null,null,null,null,0,null,0]
[null,null,null,null,null,null,null,null,null,null,0,null,0]
[null,null,null,null,null,null,null,null,null,null,0,null,0]
[null,null,null,null,null,null,null,null,null,null,0,null,0]
[null,null,null,null,null,null,null,null,null,null,0,null,0]
[null,null,null,null,null,null,null,null,null,null,0,null,0]
[null,null,null,null,null,null,null,null,null,null,0,null,0]
[null,null,null,null,null,null,null,null,null,null,0,null,0]
[null,null,null,null,null,null,null,null,null,null,0,null,0]
[null,null,null,null,null,null,null,null,null,null,0,null,0]
[null,null,null,null,null,null,null,null,null,null,0,null,0]
[null,null,null,null,null,null,null,null,null,null,0,null,0]
[null,null,null,null,null,null,null,null,null,null,0,null,0]
[null,null,null,null,null,null,null,null,null,null,0,null,0]
[null,null,null,null,null,null,null,null,null,null,0,null,0]
[null,null,null,null,null,null,null,null,null,null,0,null,0]
[null,null,null,null,null,null,null,null,null,null,0,null,0]
[null,null,null,null,null,null,null,null,null,null,0,null,0]
[null,null,null,null,null,null,null,null,null,null,0,null,0]
[null,null,null,null,null,null,null,null,null,null,0,null,0]
[null,null,null,null,null,null,null,null,null,null,0,null,0]
[null,null,null,null,null,null,null,null,null,null,0,null,0]
[null,null,null,null,null,null,null,null,null,null,0,null,0]
[null,null,null,null,null,null,null,null,null,null,0,null,0]
[null,null,null,null,null,null,null,null,null,null,0,null,0]
[null,null,null,null,null,null,null,null,null,null,0,null,0]
[null,null,null,null,null,null,null,null,null,null,0,null,0]
[null,null,null,null,null,null,null,null,null,null,{"$f":"J1733*G1733","v":0},null,{"$f":"L1733*G1733","v":0}]
[null,null,null,null,null,null,null,null,null,null,0,null,0]
[null,null,null,null,null,null,null,null,null,null,0,null,0]
[null,null,null,null,null,null,null,null,null,null,0,null,0]
[null,null,null,null,null,null,null,null,null,null,0,null,0]
[null,null,null,null,null,null,null,null,null,null,0,null,0]
[null,null,null,null,null,null,null,null,null,null,0,null,0]
[null,null,null,null,null,null,null,null,null,null,0,null,0]
[null,null,null,null,null,null,null,null,null,null,0,null,0]
[null,null,null,null,null,null,null,null,null,null,0,null,0]
[null,null,null,null,null,null,null,null,null,null,0,null,0]
[null,null,null,null,null,null,null,null,null,null,0,null,0]
[null,null,null,null,null,null,null,null,null,null,0,null,0]
[null,null,null,null,null,null,null,null,null,null,0,null,0]
[null,null,null,null,null,null,null,null,null,null,0,null,0]
[null,null,null,null,null,null,null,null,null,null,0,null,0]
[null,null,null,null,null,null,null,null,null,null,0,null,0]
[null,null,null,null,null,null,null,null,null,null,0,null,0]
[null,null,null,null,null,null,null,null,null,null,0,null,0]
[null,null,null,null,null,null,null,null,null,null,0,null,0]
[null,null,null,null,null,null,null,null,null,null,0,null,0]
[null,null,null,null,null,null,null,null,null,null,0,null,0]
[null,null,null,null,null,null,null,null,null,null,0,null,0]
[null,null,null,null,null,null,null,null,null,null,0,null,0]
[null,null,null,null,null,null,null,null,null,null,0,null,0]
[null,null,null,null,null,null,null,null,null,null,0,null,0]
[null,null,null,null,null,null,null,null,null,null,0,null,0]
[null,null,null,null,null,null,null,null,null,null,0,null,0]
[null,null,null,null,null,null,null,null,null,null,0,null,0]
[null,null,null,null,null,null,null,null,null,null,0,null,0]
[null,null,null,null,null,null,null,null,null,null,0,null,0]
[null,null,null,null,null,null,null,null,null,null,0,null,0]
[null,null,null,null,null,null,null,null,null,null,0,null,0]
[null,null,null,null,null,null,null,null,null,null,0,null,0]
[null,null,null,null,null,null,null,null,null,null,0,null,0]
[null,null,null,null,null,null,null,null,null,null,0,null,0]
[null,null,null,null,null,null,null,null,null,null,0,null,0]
[null,null,null,null,null,null,null,null,null,null,0,null,0]
[null,null,null,null,null,null,null,null,null,null,0,null,0]
[null,null,null,null,null,null,null,null,null,null,0,null,0]
[null,null,null,null,null,null,null,null,null,null,0,null,0]
[null,null,null,null,null,null,null,null,null,null,0,null,0]
[null,null,null,null,null,null,null,null,null,null,0,null,0]
[null,null,null,null,null,null,null,null,null,null,0,null,0]
[null,null,null,null,null,null,null,null,null,null,0,null,0]
[null,null,null,null,null,null,null,null,null,null,0,null,0]
[null,null,null,null,null,null,null,null,null,null,0,null,0]
[null,null,null,null,null,null,null,null,null,null,0,null,0]
[null,null,null,null,null,null,null,null,null,null,0,null,0]
[null,null,null,null,null,null,null,null,null,null,0,null,0]
[null,null,null,null,null,null,null,null,null,null,0,null,0]
[null,null,null,null,null,null,null,null,null,null,0,null,0]
[null,null,null,null,null,null,null,null,null,null,0,null,0]
[null,null,null,null,null,null,null,null,null,null,0,null,0]
[null,null,null,null,null,null,null,null,null,null,0,null,0]
[null,null,null,null,null,null,null,null,null,null,0,null,0]
[null,null,null,null,null,null,null,null,null,null,0,null,0]
[null,null,null,null,null,null,null,null,null,null,0,null,0]
[null,null,null,null,null,null,null,null,null,null,0,null,0]
[null,null,null,null,null,null,null,null,null,null,0,null,0]
[null,null,null,null,null,null,null,null,null,null,0,null,0]
[null,null,null,null,null,null,null,null,null,null,0,null,0]
[null,null,null,null,null,null,null,null,null,null,0,null,0]
[null,null,null,null,null,null,null,null,null,null,0,null,0]
[null,null,null,null,null,null,null,null,null,null,{"$f":"J1797*G1797","v":0},null,{"$f":"L1797*G1797","v":0}]
[null,null,null,null,null,null,null,null,null,null,0,null,0]
[null,null,null,null,null,null,null,null,null,null,0,null,0]
[null,null,null,null,null,null,null,null,null,null,0,null,0]
[null,null,null,null,null,null,null,null,null,null,0,null,0]
[null,null,null,null,null,null,null,null,null,null,0,null,0]
[null,null,null,null,null,null,null,null,null,null,0,null,0]
[null,null,null,null,null,null,null,null,null,null,0,null,0]
[null,null,null,null,null,null,null,null,null,null,0,null,0]
[null,null,null,null,null,null,null,null,null,null,0,null,0]
[null,null,null,null,null,null,null,null,null,null,0,null,0]
[null,null,null,null,null,null,null,null,null,null,0,null,0]
[null,null,null,null,null,null,null,null,null,null,0,null,0]
[null,null,null,null,null,null,null,null,null,null,0,null,0]
[null,null,null,null,null,null,null,null,null,null,0,null,0]
[null,null,null,null,null,null,null,null,null,null,0,null,0]
[null,null,null,null,null,null,null,null,null,null,0,null,0]
[null,null,null,null,null,null,null,null,null,null,0,null,0]
[null,null,null,null,null,null,null,null,null,null,0,null,0]
[null,null,null,null,null,null,null,null,null,null,0,null,0]
[null,null,null,null,null,null,null,null,null,null,0,null,0]
[null,null,null,null,null,null,null,null,null,null,0,null,0]
[null,null,null,null,null,null,null,null,null,null,0,null,0]
[null,null,null,null,null,null,null,null,null,null,0,null,0]
[null,null,null,null,null,null,null,null,null,null,0,null,0]
[null,null,null,null,null,null,null,null,null,null,0,null,0]
[null,null,null,null,null,null,null,null,null,null,0,null,0]
[null,null,null,null,null,null,null,null,null,null,0,null,0]
[null,null,null,null,null,null,null,null,null,null,0,null,0]
[null,null,null,null,null,null,null,null,null,null,0,null,0]
[null,null,null,null,null,null,null,null,null,null,0,null,0]
[null,null,null,null,null,null,null,null,null,null,0,null,0]
[null,null,null,null,null,null,null,null,null,null,0,null,0]
[null,null,null,null,null,null,null,null,null,null,0,null,0]
[null,null,null,null,null,null,null,null,null,null,0,null,0]
[null,null,null,null,null,null,null,null,null,null,0,null,0]
[null,null,null,null,null,null,null,null,null,null,0,null,0]
[null,null,null,null,null,null,null,null,null,null,0,null,0]
[null,null,null,null,null,null,null,null,null,null,0,null,0]
[null,null,null,null,null,null,null,null,null,null,0,null,0]
[null,null,null,null,null,null,null,null,null,null,0,null,0]
[null,null,null,null,null,null,null,null,null,null,0,null,0]
[null,null,null,null,null,null,null,null,null,null,0,null,0]
[null,null,null,null,null,null,null,null,null,null,0,null,0]
[null,null,null,null,null,null,null,null,null,null,0,null,0]
[null,null,null,null,null,null,null,null,null,null,0,null,0]
[null,null,null,null,null,null,null,null,null,null,0,null,0]
[null,null,null,null,null,null,null,null,null,null,0,null,0]
[null,null,null,null,null,null,null,null,null,null,0,null,0]
[null,null,null,null,null,null,null,null,null,null,0,null,0]
[null,null,null,null,null,null,null,null,null,null,0,null,0]
[null,null,null,null,null,null,null,null,null,null,0,null,0]
[null,null,null,null,null,null,null,null,null,null,0,null,0]
[null,null,null,null,null,null,null,null,null,null,0,null,0]
[null,null,null,null,null,null,null,null,null,null,0,null,0]
[null,null,null,null,null,null,null,null,null,null,0,null,0]
[null,null,null,null,null,null,null,null,null,null,0,null,0]
[null,null,null,null,null,null,null,null,null,null,0,null,0]
[null,null,null,null,null,null,null,null,null,null,0,null,0]
[null,null,null,null,null,null,null,null,null,null,0,null,0]
[null,null,null,null,null,null,null,null,null,null,0,null,0]
[null,null,null,null,null,null,null,null,null,null,0,null,0]
[null,null,null,null,null,null,null,null,null,null,0,null,0]
[null,null,null,null,null,null,null,null,null,null,0,null,0]
[null,null,null,null,null,null,null,null,null,null,{"$f":"J1861*G1861","v":0},null,{"$f":"L1861*G1861","v":0}]
[null,null,null,null,null,null,null,null,null,null,0,null,0]
[null,null,null,null,null,null,null,null,null,null,0,null,0]
[null,null,null,null,null,null,null,null,null,null,0,null,0]
[null,null,null,null,null,null,null,null,null,null,0,null,0]
[null,null,null,null,null,null,null,null,null,null,0,null,0]
[null,null,null,null,null,null,null,null,null,null,0,null,0]
[null,null,null,null,null,null,null,null,null,null,0,null,0]
[null,null,null,null,null,null,null,null,null,null,0,null,0]
[null,null,null,null,null,null,null,null,null,null,0,null,0]
[null,null,null,null,null,null,null,null,null,null,0,null,0]
[null,null,null,null,null,null,null,null,null,null,0,null,0]
[null,null,null,null,null,null,null,null,null,null,0,null,0]
[null,null,null,null,null,null,null,null,null,null,0,null,0]
[null,null,null,null,null,null,null,null,null,null,0,null,0]
[null,null,null,null,null,null,null,null,null,null,0,null,0]
[null,null,null,null,null,null,null,null,null,null,0,null,0]
[null,null,null,null,null,null,null,null,null,null,0,null,0]
[null,null,null,null,null,null,null,null,null,null,0,null,0]
[null,null,null,null,null,null,null,null,null,null,0,null,0]
[null,null,null,null,null,null,null,null,null,null,0,null,0]
[null,null,null,null,null,null,null,null,null,null,0,null,0]
[null,null,null,null,null,null,null,null,null,null,0,null,0]
[null,null,null,null,null,null,null,null,null,null,0,null,0]
[null,null,null,null,null,null,null,null,null,null,0,null,0]
[null,null,null,null,null,null,null,null,null,null,0,null,0]
[null,null,null,null,null,null,null,null,null,null,0,null,0]
[null,null,null,null,null,null,null,null,null,null,0,null,0]
[null,null,null,null,null,null,null,null,null,null,0,null,0]
[null,null,null,null,null,null,null,null,null,null,0,null,0]
[null,null,null,null,null,null,null,null,null,null,0,null,0]
[null,null,null,null,null,null,null,null,null,null,0,null,0]
[null,null,null,null,null,null,null,null,null,null,0,null,0]
[null,null,null,null,null,null,null,null,null,null,0,null,0]
[null,null,null,null,null,null,null,null,null,null,0,null,0]
[null,null,null,null,null,null,null,null,null,null,0,null,0]
[null,null,null,null,null,null,null,null,null,null,0,null,0]
[null,null,null,null,null,null,null,null,null,null,0,null,0]
[null,null,null,null,null,null,null,null,null,null,0,null,0]
[null,null,null,null,null,null,null,null,null,null,0,null,0]
[null,null,null,null,null,null,null,null,null,null,0,null,0]
[null,null,null,null,null,null,null,null,null,null,0,null,0]
[null,null,null,null,null,null,null,null,null,null,0,null,0]
[null,null,null,null,null,null,null,null,null,null,0,null,0]
[null,null,null,null,null,null,null,null,null,null,0,null,0]
[null,null,null,null,null,null,null,null,null,null,0,null,0]
[null,null,null,null,null,null,null,null,null,null,0,null,0]
[null,null,null,null,null,null,null,null,null,null,0,null,0]
[null,null,null,null,null,null,null,null,null,null,0,null,0]
[null,null,null,null,null,null,null,null,null,null,0,null,0]
[null,null,null,null,null,null,null,null,null,null,0,null,0]
[null,null,null,null,null,null,null,null,null,null,0,null,0]
[null,null,null,null,null,null,null,null,null,null,0,null,0]
[null,null,null,null,null,null,null,null,null,null,0,null,0]
[null,null,null,null,null,null,null,null,null,null,0,null,0]
[null,null,null,null,null,null,null,null,null,null,0,null,0]
[null,null,null,null,null,null,null,null,null,null,0,null,0]
[null,null,null,null,null,null,null,null,null,null,0,null,0]
[null,null,null,null,null,null,null,null,null,null,0,null,0]
[null,null,null,null,null,null,null,null,null,null,0,null,0]
[null,null,null,null,null,null,null,null,null,null,0,null,0]
[null,null,null,null,null,null,null,null,null,null,0,null,0]
[null,null,null,null,null,null,null,null,null,null,0,null,0]
[null,null,null,null,null,null,null,null,null,null,0,null,0]
[null,null,null,null,null,null,null,null,null,null,{"$f":"J1925*G1925","v":0},null,{"$f":"L1925*G1925","v":0}]
[null,null,null,null,null,null,null,null,null,null,0,null,0]
[null,null,null,null,null,null,null,null,null,null,0,null,0]
[null,null,null,null,null,null,null,null,null,null,0,null,0]
[null,null,null,null,null,null,null,null,null,null,0,null,0]
[null,null,null,null,null,null,null,null,null,null,0,null,0]
[null,null,null,null,null,null,null,null,null,null,0,null,0]
[null,null,null,null,null,null,null,null,null,null,0,null,0]
[null,null,null,null,null,null,null,null,null,null,0,null,0]
[null,null,null,null,null,null,null,null,null,null,0,null,0]
[null,null,null,null,null,null,null,null,null,null,0,null,0]
[null,null,null,null,null,null,null,null,null,null,0,null,0]
[null,null,null,null,null,null,null,null,null,null,0,null,0]
[null,null,null,null,null,null,null,null,null,null,0,null,0]
[null,null,null,null,null,null,null,null,null,null,0,null,0]
[null,null,null,null,null,null,null,null,null,null,0,null,0]
[null,null,null,null,null,null,null,null,null,null,0,null,0]
[null,null,null,null,null,null,null,null,null,null,0,null,0]
[null,null,null,null,null,null,null,null,null,null,0,null,0]
[null,null,null,null,null,null,null,null,null,null,0,null,0]
[null,null,null,null,null,null,null,null,null,null,0,null,0]
[null,null,null,null,null,null,null,null,null,null,0,null,0]
[null,null,null,null,null,null,null,null,null,null,0,null,0]
[null,null,null,null,null,null,null,null,null,null,0,null,0]
[null,null,null,null,null,null,null,null,null,null,0,null,0]
[null,null,null,null,null,null,null,null,null,null,0,null,0]
[null,null,null,null,null,null,null,null,null,null,0,null,0]
[null,null,null,null,null,null,null,null,null,null,0,null,0]
[null,null,null,null,null,null,null,null,null,null,0,null,0]
[null,null,null,null,null,null,null,null,null,null,0,null,0]
[null,null,null,null,null,null,null,null,null,null,0,null,0]
[null,null,null,null,null,null,null,null,null,null,0,null,0]
[null,null,null,null,null,null,null,null,null,null,0,null,0]
[null,null,null,null,null,null,null,null,null,null,0,null,0]
[null,null,null,null,null,null,null,null,null,null,0,null,0]
[null,null,null,null,null,null,null,null,null,null,0,null,0]
[null,null,null,null,null,null,null,null,null,null,0,null,0]
[null,null,null,null,null,null,null,null,null,null,0,null,0]
[null,null,null,null,null,null,null,null,null,null,0,null,0]
[null,null,null,null,null,null,null,null,null,null,0,null,0]
[null,null,null,null,null,null,null,null,null,null,0,null,0]
[null,null,null,null,null,null,null,null,null,null,0,null,0]
[null,null,null,null,null,null,null,null,null,null,0,null,0]
[null,null,null,null,null,null,null,null,null,null,0,null,0]
[null,null,null,null,null,null,null,null,null,null,0,null,0]
[null,null,null,null,null,null,null,null,null,null,0,null,0]
[null,null,null,null,null,null,null,null,null,null,0,null,0]
[null,null,null,null,null,null,null,null,null,null,0,null,0]
[null,null,null,null,null,null,null,null,null,null,0,null,0]
[null,null,null,null,null,null,null,null,null,null,0,null,0]
[null,null,null,null,null,null,null,null,null,null,0,null,0]
[null,null,null,null,null,null,null,null,null,null,0,null,0]
[null,null,null,null,null,null,null,null,null,null,0,null,0]
[null,null,null,null,null,null,null,null,null,null,0,null,0]
[null,null,null,null,null,null,null,null,null,null,0,null,0]
[null,null,null,null,null,null,null,null,null,null,0,null,0]
[null,null,null,null,null,null,null,null,null,null,0,null,0]
[null,null,null,null,null,null,null,null,null,null,0,null,0]
[null,null,null,null,null,null,null,null,null,null,0,null,0]
[null,null,null,null,null,null,null,null,null,null,0,null,0]
[null,null,null,null,null,null,null,null,null,null,0,null,0]
[null,null,null,null,null,null,null,null,null,null,0,null,0]
[null,null,null,null,null,null,null,null,null,null,0,null,0]
[null,null,null,null,null,null,null,null,null,null,0,null,0]
[null,null,null,null,null,null,null,null,null,null,{"$f":"J1989*G1989","v":0},null,{"$f":"L1989*G1989","v":0}]
[null,null,null,null,null,null,null,null,null,null,0,null,0]
[null,null,null,null,null,null,null,null,null,null,0,null,0]
[null,null,null,null,null,null,null,null,null,null,0,null,0]
[null,null,null,null,null,null,null,null,null,null,0,null,0]
[null,null,null,null,null,null,null,null,null,null,0,null,0]
[null,null,null,null,null,null,null,null,null,null,0,null,0]
[null,null,null,null,null,null,null,null,null,null,0,null,0]
[null,null,null,null,null,null,null,null,null,null,0,null,0]
[null,null,null,null,null,null,null,null,null,null,0,null,0]
[null,null,null,null,null,null,null,null,null,null,0,null,0]
[null,null,null,null,null,null,null,null,null,null,0,null,0]
[null,null,null,null,null,null,null,null,null,null,0,null,0]
[null,null,null,null,null,null,null,null,null,null,0,null,0]
[null,null,null,null,null,null,null,null,null,null,0,null,0]
[null,null,null,null,null,null,null,null,null,null,0,null,0]
[null,null,null,null,null,null,null,null,null,null,0,null,0]
[null,null,null,null,null,null,null,null,null,null,0,null,0]
[null,null,null,null,null,null,null,null,null,null,0,null,0]
[null,null,null,null,null,null,null,null,null,null,0,null,0]
[null,null,null,null,null,null,null,null,null,null,0,null,0]
[null,null,null,null,null,null,null,null,null,null,0,null,0]
[null,null,null,null,null,null,null,null,null,null,0,null,0]
[null,null,null,null,null,null,null,null,null,null,0,null,0]
[null,null,null,null,null,null,null,null,null,null,0,null,0]
[null,null,null,null,null,null,null,null,null,null,0,null,0]
[null,null,null,null,null,null,null,null,null,null,0,null,0]
[null,null,null,null,null,null,null,null,null,null,0,null,0]
[null,null,null,null,null,null,null,null,null,null,0,null,0]
[null,null,null,null,null,null,null,null,null,null,0,null,0]
[null,null,null,null,null,null,null,null,null,null,0,null,0]
[null,null,null,null,null,null,null,null,null,null,0,null,0]
[null,null,null,null,null,null,null,null,null,null,0,null,0]
[null,null,null,null,null,null,null,null,null,null,0,null,0]
[null,null,null,null,null,null,null,null,null,null,0,null,0]
[null,null,null,null,null,null,null,null,null,null,0,null,0]
[null,null,null,null,null,null,null,null,null,null,0,null,0]
[null,null,null,null,null,null,null,null,null,null,0,null,0]
[null,null,null,null,null,null,null,null,null,null,0,null,0]
[null,null,null,null,null,null,null,null,null,null,0,null,0]
[null,null,null,null,null,null,null,null,null,null,0,null,0]
[null,null,null,null,null,null,null,null,null,null,0,null,0]
[null,null,null,null,null,null,null,null,null,null,0,null,0]
[null,null,null,null,null,null,null,null,null,null,{"$f":"J2117*G2117","v":0},null,{"$f":"L2117*G2117","v":0}]
[null,null,null,null,null,null,null,null,null,null,0,null,0]
[null,null,null,null,null,null,null,null,null,null,0,null,0]
[null,null,null,null,null,null,null,null,null,null,0,null,0]
[null,null,null,null,null,null,null,null,null,null,0,null,0]
[null,null,null,null,null,null,null,null,null,null,0,null,0]
[null,null,null,null,null,null,null,null,null,null,0,null,0]
[null,null,null,null,null,null,null,null,null,null,0,null,0]
[null,null,null,null,null,null,null,null,null,null,0,null,0]
[null,null,null,null,null,null,null,null,null,null,0,null,0]
[null,null,null,null,null,null,null,null,null,null,0,null,0]
[null,null,null,null,null,null,null,null,null,null,0,null,0]
[null,null,null,null,null,null,null,null,null,null,0,null,0]
[null,null,null,null,null,null,null,null,null,null,0,null,0]
[null,null,null,null,null,null,null,null,null,null,0,null,0]
[null,null,null,null,null,null,null,null,null,null,0,null,0]
[null,null,null,null,null,null,null,null,null,null,0,null,0]
[null,null,null,null,null,null,null,null,null,null,0,null,0]
[null,null,null,null,null,null,null,null,null,null,0,null,0]
[null,null,null,null,null,null,null,null,null,null,0,null,0]
[null,null,null,null,null,null,null,null,null,null,0,null,0]
[null,null,null,null,null,null,null,null,null,null,0,null,0]
[null,null,null,null,null,null,null,null,null,null,0,null,0]
[null,null,null,null,null,null,null,null,null,null,0,null,0]
[null,null,null,null,null,null,null,null,null,null,0,null,0]
[null,null,null,null,null,null,null,null,null,null,0,null,0]
[null,null,null,null,null,null,null,null,null,null,0,null,0]
[null,null,null,null,null,null,null,null,null,null,0,null,0]
[null,null,null,null,null,null,null,null,null,null,0,null,0]
[null,null,null,null,null,null,null,null,null,null,0,null,0]
[null,null,null,null,null,null,null,null,null,null,0,null,0]
[null,null,null,null,null,null,null,null,null,null,0,null,0]
[null,null,null,null,null,null,null,null,null,null,0,null,0]
[null,null,null,null,null,null,null,null,null,null,0,null,0]
[null,null,null,null,null,null,null,null,null,null,0,null,0]
[null,null,null,null,null,null,null,null,null,null,0,null,0]
[null,null,null,null,null,null,null,null,null,null,0,null,0]
[null,null,null,null,null,null,null,null,null,null,0,null,0]
[null,null,null,null,null,null,null,null,null,null,0,null,0]
[null,null,null,null,null,null,null,null,null,null,0,null,0]
[null,null,null,null,null,null,null,null,null,null,0,null,0]
[null,null,null,null,null,null,null,null,null,null,0,null,0]
[null,null,null,null,null,null,null,null,null,null,0,null,0]
[null,null,null,null,null,null,null,null,null,null,0,null,0]
[null,null,null,null,null,null,null,null,null,null,0,null,0]
[null,null,null,null,null,null,null,null,null,null,0,null,0]
[null,null,null,null,null,null,null,null,null,null,0,null,0]
[null,null,null,null,null,null,null,null,null,null,0,null,0]
[null,null,null,null,null,null,null,null,null,null,0,null,0]
[null,null,null,null,null,null,null,null,null,null,0,null,0]
[null,null,null,null,null,null,null,null,null,null,0,null,0]
[null,null,null,null,null,null,null,null,null,null,0,null,0]
[null,null,null,null,null,null,null,null,null,null,0,null,0]
[null,null,null,null,null,null,null,null,null,null,0,null,0]
[null,null,null,null,null,null,null,null,null,null,0,null,0]
[null,null,null,null,null,null,null,null,null,null,0,null,0]
[null,null,null,null,null,null,null,null,null,null,0,null,0]
[null,null,null,null,null,null,null,null,null,null,0,null,0]
[null,null,null,null,null,null,null,null,null,null,0,null,0]
[null,null,null,null,null,null,null,null,null,null,0,null,0]
[null,null,null,null,null,null,null,null,null,null,0,null,0]
[null,null,null,null,null,null,null,null,null,null,0,null,0]
[null,null,null,null,null,null,null,null,null,null,0,null,0]
[null,null,null,null,null,null,null,null,null,null,0,null,0]
[null,null,null,null,null,null,null,null,null,null,0,null,0]
[null,null,null,null,null,null,null,null,null,null,0,null,0]
[null,null,null,null,null,null,null,null,null,null,0,null,0]
[null,null,null,null,null,null,null,null,null,null,0,null,0]
[null,null,null,null,null,null,null,null,null,null,0,null,0]
[null,null,null,null,null,null,null,null,null,null,0,null,0]
[null,null,null,null,null,null,null,null,null,null,0,null,0]
[null,null,null,null,null,null,null,null,null,null,0,null,0]
[null,null,null,null,null,null,null,null,null,null,0,null,0]
[null,null,null,null,null,null,null,null,null,null,0,null,0]
[null,null,null,null,null,null,null,null,null,null,0,null,0]
[null,null,null,null,null,null,null,null,null,null,0,null,0]
[null,null,null,null,null,null,null,null,null,null,0,null,0]
[null,null,null,null,null,null,null,null,null,null,0,null,0]
[null,null,null,null,null,null,null,null,null,null,0,null,0]
[null,null,null,null,null,null,null,null,null,null,0,null,0]
[null,null,null,null,null,null,null,null,null,null,0,null,0]
[null,null,null,null,null,null,null,null,null,null,0,null,0]
[null,null,null,null,null,null,null,null,null,null,0,null,0]
[null,null,null,null,null,null,null,null,null,null,0,null,0]
[null,null,null,null,null,null,null,null,null,null,0,null,0]
[null,null,null,null,null,null,null,null,null,null,{"$f":"J2437*G2437","v":0},null,{"$f":"L2437*G2437","v":0}]
[null,null,null,null,null,null,null,null,null,null,0,null,0]
[null,null,null,null,null,null,null,null,null,null,0,null,0]
[null,null,null,null,null,null,null,null,null,null,0,null,0]
[null,null,null,null,null,null,null,null,null,null,0,null,0]
[null,null,null,null,null,null,null,null,null,null,0,null,0]
[null,null,null,null,null,null,null,null,null,null,0,null,0]
[null,null,null,null,null,null,null,null,null,null,0,null,0]
[null,null,null,null,null,null,null,null,null,null,0,null,0]
[null,null,null,null,null,null,null,null,null,null,0,null,0]
[null,null,null,null,null,null,null,null,null,null,0,null,0]
[null,null,null,null,null,null,null,null,null,null,0,null,0]
[null,null,null,null,null,null,null,null,null,null,0,null,0]
[null,null,null,null,null,null,null,null,null,null,0,null,0]
[null,null,null,null,null,null,null,null,null,null,0,null,0]
[null,null,null,null,null,null,null,null,null,null,0,null,0]
[null,null,null,null,null,null,null,null,null,null,0,null,0]
[null,null,null,null,null,null,null,null,null,null,{"$f":"J2501*G2501","v":0},null,{"$f":"L2501*G2501","v":0}]
[null,null,null,null,null,null,null,null,null,null,0,null,0]
[null,null,null,null,null,null,null,null,null,null,0,null,0]
[null,null,null,null,null,null,null,null,null,null,0,null,0]
[null,null,null,null,null,null,null,null,null,null,0,null,0]
[null,null,null,null,null,null,null,null,null,null,0,null,0]
[null,null,null,null,null,null,null,null,null,null,0,null,0]
[null,null,null,null,null,null,null,null,null,null,0,null,0]
[null,null,null,null,null,null,null,null,null,null,0,null,0]
[null,null,null,null,null,null,null,null,null,null,0,null,0]
[null,null,null,null,null,null,null,null,null,null,0,null,0]
[null,null,null,null,null,null,null,null,null,null,0,null,0]
[null,null,null,null,null,null,null,null,null,null,0,null,0]
[null,null,null,null,null,null,null,null,null,null,0,null,0]
[null,null,null,null,null,null,null,null,null,null,0,null,0]
[null,null,null,null,null,null,null,null,null,null,0,null,0]
[null,null,null,null,null,null,null,null,null,null,0,null,0]
[null,null,null,null,null,null,null,null,null,null,0,null,0]
[null,null,null,null,null,null,null,null,null,null,0,null,0]
[null,null,null,null,null,null,null,null,null,null,0,null,0]
[null,null,null,null,null,null,null,null,null,null,0,null,0]
[null,null,null,null,null,null,null,null,null,null,0,null,0]
[null,null,null,null,null,null,null,null,null,null,0,null,0]
[null,null,null,null,null,null,null,null,null,null,0,null,0]
[null,null,null,null,null,null,null,null,null,null,0,null,0]
[null,null,null,null,null,null,null,null,null,null,0,null,0]
[null,null,null,null,null,null,null,null,null,null,0,null,0]
[null,null,null,null,null,null,null,null,null,null,0,null,0]
[null,null,null,null,null,null,null,null,null,null,0,null,0]
[null,null,null,null,null,null,null,null,null,null,0,null,0]
[null,null,null,null,null,null,null,null,null,null,0,null,0]
[null,null,null,null,null,null,null,null,null,null,0,null,0]
[null,null,null,null,null,null,null,null,null,null,0,null,0]
[null,null,null,null,null,null,null,null,null,null,0,null,0]
[null,null,null,null,null,null,null,null,null,null,0,null,0]
[null,null,null,null,null,null,null,null,null,null,0,null,0]
[null,null,null,null,null,null,null,null,null,null,0,null,0]
[null,null,null,null,null,null,null,null,null,null,0,null,0]
[null,null,null,null,null,null,null,null,null,null,0,null,0]
[null,null,null,null,null,null,null,null,null,null,0,null,0]
[null,null,null,null,null,null,null,null,null,null,0,null,0]
[null,null,null,null,null,null,null,null,null,null,0,null,0]
[null,null,null,null,null,null,null,null,null,null,0,null,0]
[null,null,null,null,null,null,null,null,null,null,0,null,0]
[null,null,null,null,null,null,null,null,null,null,0,null,0]
[null,null,null,null,null,null,null,null,null,null,0,null,0]
[null,null,null,null,null,null,null,null,null,null,0,null,0]
[null,null,null,null,null,null,null,null,null,null,0,null,0]
[null,null,null,null,null,null,null,null,null,null,0,null,0]
[null,null,null,null,null,null,null,null,null,null,0,null,0]
[null,null,null,null,null,null,null,null,null,null,0,null,0]
[null,null,null,null,null,null,null,null,null,null,{"$f":"J2693*G2693","v":0},null,{"$f":"L2693*G2693","v":0}]
[null,null,null,null,null,null,null,null,null,null,0,null,0]
[null,null,null,null,null,null,null,null,null,null,0,null,0]
[null,null,null,null,null,null,null,null,null,null,0,null,0]
[null,null,null,null,null,null,null,null,null,null,0,null,0]
[null,null,null,null,null,null,null,null,null,null,0,null,0]
[null,null,null,null,null,null,null,null,null,null,0,null,0]
[null,null,null,null,null,null,null,null,null,null,0,null,0]
[null,null,null,null,null,null,null,null,null,null,0,null,0]
[null,null,null,null,null,null,null,null,null,null,0,null,0]
[null,null,null,null,null,null,null,null,null,null,0,null,0]
[null,null,null,null,null,null,null,null,null,null,0,null,0]
[null,null,null,null,null,null,null,null,null,null,0,null,0]
[null,null,null,null,null,null,null,null,null,null,0,null,0]
[null,null,null,null,null,null,null,null,null,null,0,null,0]
[null,null,null,null,null,null,null,null,null,null,0,null,0]
[null,null,null,null,null,null,null,null,null,null,0,null,0]
[null,null,null,null,null,null,null,null,null,null,0,null,0]
[null,null,null,null,null,null,null,null,null,null,0,null,0]
[null,null,null,null,null,null,null,null,null,null,0,null,0]
[null,null,null,null,null,null,null,null,null,null,0,null,0]
[null,null,null,null,null,null,null,null,null,null,0,null,0]
[null,null,null,null,null,null,null,null,null,null,0,null,0]
[null,null,null,null,null,null,null,null,null,null,0,null,0]
[null,null,null,null,null,null,null,null,null,null,0,null,0]
[null,null,null,null,null,null,null,null,null,null,0,null,0]
[null,null,null,null,null,null,null,null,null,null,0,null,0]
[null,null,null,null,null,null,null,null,null,null,0,null,0]
[null,null,null,null,null,null,null,null,null,null,0,null,0]
[null,null,null,null,null,null,null,null,null,null,0,null,0]
[null,null,null,null,null,null,null,null,null,null,0,null,0]
[null,null,null,null,null,null,null,null,null,null,0,null,0]
[null,null,null,null,null,null,null,null,null,null,0,null,0]
[null,null,null,null,null,null,null,null,null,null,0,null,0]
[null,null,null,null,null,null,null,null,null,null,0,null,0]
[null,null,null,null,null,null,null,null,null,null,0,null,0]
[null,null,null,null,null,null,null,null,null,null,0,null,0]
[null,null,null,null,null,null,null,null,null,null,0,null,0]
[null,null,null,null,null,null,null,null,null,null,0,null,0]
[null,null,null,null,null,null,null,null,null,null,0,null,0]
[null,null,null,null,null,null,null,null,null,null,0,null,0]
[null,null,null,null,null,null,null,null,null,null,0,null,0]
[null,null,null,null,null,null,null,null,null,null,0,null,0]
[null,null,null,null,null,null,null,null,null,null,0,null,0]
[null,null,null,null,null,null,null,null,null,null,0,null,0]
[null,null,null,null,null,null,null,null,null,null,0,null,0]
[null,null,null,null,null,null,null,null,null,null,0,null,0]
[null,null,null,null,null,null,null,null,null,null,0,null,0]
[null,null,null,null,null,null,null,null,null,null,0,null,0]
[null,null,null,null,null,null,null,null,null,null,0,null,0]
[null,null,null,null,null,null,null,null,null,null,0,null,0]
[null,null,null,null,null,null,null,null,null,null,0,null,0]
[null,null,null,null,null,null,null,null,null,null,0,null,0]
[null,null,null,null,null,null,null,null,null,null,0,null,0]
[null,null,null,null,null,null,null,null,null,null,0,null,0]
[null,null,null,null,null,null,null,null,null,null,0,null,0]
[null,null,null,null,null,null,null,null,null,null,0,null,0]
[null,null,null,null,null,null,null,null,null,null,0,null,0]
[null,null,null,null,null,null,null,null,null,null,0,null,0]
[null,null,null,null,null,null,null,null,null,null,0,null,0]
[null,null,null,null,null,null,null,null,null,null,0,null,0]
[null,null,null,null,null,null,null,null,null,null,0,null,0]
[null,null,null,null,null,null,null,null,null,null,0,null,0]
[null,null,null,null,null,null,null,null,null,null,0,null,0]
[null,null,null,null,null,null,null,null,null,null,0,null,0]
[null,null,null,null,null,null,null,null,null,null,0,null,0]
[null,null,null,null,null,null,null,null,null,null,0,null,0]
[null,null,null,null,null,null,null,null,null,null,0,null,0]
[null,null,null,null,null,null,null,null,null,null,{"$f":"J2949*G2949","v":0},null,{"$f":"L2949*G2949","v":0}]
[null,null,null,null,null,null,null,null,null,null,0,null,0]
[null,null,null,null,null,null,null,null,null,null,0,null,0]
[null,null,null,null,null,null,null,null,null,null,0,null,0]
[null,null,null,null,null,null,null,null,null,null,0,null,0]
[null,null,null,null,null,null,null,null,null,null,0,null,0]
[null,null,null,null,null,null,null,null,null,null,0,null,0]
[null,null,null,null,null,null,null,null,null,null,0,null,0]
[null,null,null,null,null,null,null,null,null,null,0,null,0]
[null,null,null,null,null,null,null,null,null,null,0,null,0]
[null,null,null,null,null,null,null,null,null,null,0,null,0]
[null,null,null,null,null,null,null,null,null,null,0,null,0]
[null,null,null,null,null,null,null,null,null,null,0,null,0]
[null,null,null,null,null,null,null,null,null,null,0,null,0]
[null,null,null,null,null,null,null,null,null,null,0,null,0]
[null,null,null,null,null,null,null,null,null,null,0,null,0]
[null,null,null,null,null,null,null,null,null,null,0,null,0]
[null,null,null,null,null,null,null,null,null,null,0,null,0]
[null,null,null,null,null,null,null,null,null,null,0,null,0]
[null,null,null,null,null,null,null,null,null,null,0,null,0]
[null,null,null,null,null,null,null,null,null,null,0,null,0]
[null,null,null,null,null,null,null,null,null,null,0,null,0]
[null,null,null,null,null,null,null,null,null,null,0,null,0]
[null,null,null,null,null,null,null,null,null,null,0,null,0]
[null,null,null,null,null,null,null,null,null,null,0,null,0]
[null,null,null,null,null,null,null,null,null,null,0,null,0]
[null,null,null,null,null,null,null,null,null,null,0,null,0]
[null,null,null,null,null,null,null,null,null,null,0,null,0]
[null,null,null,null,null,null,null,null,null,null,0,null,0]
[null,null,null,null,null,null,null,null,null,null,0,null,0]
[null,null,null,null,null,null,null,null,null,null,0,null,0]
[null,null,null,null,null,null,null,null,null,null,0,null,0]
[null,null,null,null,null,null,null,null,null,null,0,null,0]
[null,null,null,null,null,null,null,null,null,null,0,null,0]
[null,null,null,null,null,null,null,null,null,null,0,null,0]
[null,null,null,null,null,null,null,null,null,null,0,null,0]
[null,null,null,null,null,null,null,null,null,null,0,null,0]
[null,null,null,null,null,null,null,null,null,null,0,null,0]
[null,null,null,null,null,null,null,null,null,null,0,null,0]
[null,null,null,null,null,null,null,null,null,null,0,null,0]
[null,null,null,null,null,null,null,null,null,null,0,null,0]
[null,null,null,null,null,null,null,null,null,null,0,null,0]
[null,null,null,null,null,null,null,null,null,null,0,null,0]
[null,null,null,null,null,null,null,null,null,null,0,null,0]
[null,null,null,null,null,null,null,null,null,null,0,null,0]
[null,null,null,null,null,null,null,null,null,null,0,null,0]
[null,null,null,null,null,null,null,null,null,null,0,null,0]
[null,null,null,null,null,null,null,null,null,null,0,null,0]
[null,null,null,null,null,null,null,null,null,null,0,null,0]
[null,null,null,null,null,null,null,null,null,null,0,null,0]
[null,null,null,null,null,null,null,null,null,null,0,null,0]
[null,null,null,null,null,null,null,null,null,null,0,null,0]
[null,null,null,null,null,null,null,null,null,null,0,null,0]
[null,null,null,null,null,null,null,null,null,null,0,null,0]
[null,null,null,null,null,null,null,null,null,null,0,null,0]
[null,null,null,null,null,null,null,null,null,null,0,null,0]
[null,null,null,null,null,null,null,null,null,null,0,null,0]
[null,null,null,null,null,null,null,null,null,null,0,null,0]
[null,null,null,null,null,null,null,null,null,null,0,null,0]
[null,null,null,null,null,null,null,null,null,null,0,null,0]
[null,null,null,null,null,null,null,null,null,null,0,null,0]
[null,null,null,null,null,null,null,null,null,null,0,null,0]
[null,null,null,null,null,null,null,null,null,null,0,null,0]
[null,null,null,null,null,null,null,null,null,null,0,null,0]
[null,null,null,null,null,null,null,null,null,null,0,null,0]
[null,null,null,null,null,null,null,null,null,null,0,null,0]
[null,null,null,null,null,null,null,null,null,null,0,null,0]
[null,null,null,null,null,null,null,null,null,null,0,null,0]
[null,null,null,null,null,null,null,null,null,null,0,null,0]
[null,null,null,null,null,null,null,null,null,null,0,null,0]
[null,null,null,null,null,null,null,null,null,null,0,null,0]
[null,null,null,null,null,null,null,null,null,null,0,null,0]
[null,null,null,null,null,null,null,null,null,null,0,null,0]
[null,null,null,null,null,null,null,null,null,null,0,null,0]
[null,null,null,null,null,null,null,null,null,null,0,null,0]
[null,null,null,null,null,null,null,null,null,null,0,null,0]
[null,null,null,null,null,null,null,null,null,null,0,null,0]
[null,null,null,null,null,null,null,null,null,null,0,null,0]
[null,null,null,null,null,null,null,null,null,null,0,null,0]
[null,null,null,null,null,null,null,null,null,null,0,null,0]
[null,null,null,null,null,null,null,null,null,null,0,null,0]
[null,null,null,null,null,null,null,null,null,null,0,null,0]
[null,null,null,null,null,null,null,null,null,null,0,null,0]
[null,null,null,null,null,null,null,null,null,null,0,null,0]
[null,null,null,null,null,null,null,null,null,null,0,null,0]
[null,null,null,null,null,null,null,null,null,null,{"$f":"J3269*G3269","v":0},null,{"$f":"L3269*G3269","v":0}]
[null,null,null,null,null,null,null,null,null,null,0,null,0]
[null,null,null,null,null,null,null,null,null,null,0,null,0]
[null,null,null,null,null,null,null,null,null,null,0,null,0]
[null,null,null,null,null,null,null,null,null,null,0,null,0]
[null,null,null,null,null,null,null,null,null,null,0,null,0]
[null,null,null,null,null,null,null,null,null,null,0,null,0]
[null,null,null,null,null,null,null,null,null,null,0,null,0]
[null,null,null,null,null,null,null,null,null,null,0,null,0]
[null,null,null,null,null,null,null,null,null,null,0,null,0]
[null,null,null,null,null,null,null,null,null,null,0,null,0]
[null,null,null,null,null,null,null,null,null,null,0,null,0]
[null,null,null,null,null,null,null,null,null,null,0,null,0]
[null,null,null,null,null,null,null,null,null,null,0,null,0]
[null,null,null,null,null,null,null,null,null,null,0,null,0]
[null,null,null,null,null,null,null,null,null,null,0,null,0]
[null,null,null,null,null,null,null,null,null,null,0,null,0]
[null,null,null,null,null,null,null,null,null,null,0,null,0]
[null,null,null,null,null,null,null,null,null,null,0,null,0]
[null,null,null,null,null,null,null,null,null,null,0,null,0]
[null,null,null,null,null,null,null,null,null,null,0,null,0]
[null,null,null,null,null,null,null,null,null,null,0,null,0]
[null,null,null,null,null,null,null,null,null,null,0,null,0]
[null,null,null,null,null,null,null,null,null,null,0,null,0]
[null,null,null,null,null,null,null,null,null,null,0,null,0]
[null,null,null,null,null,null,null,null,null,null,0,null,0]
[null,null,null,null,null,null,null,null,null,null,0,null,0]
[null,null,null,null,null,null,null,null,null,null,0,null,0]
[null,null,null,null,null,null,null,null,null,null,0,null,0]
[null,null,null,null,null,null,null,null,null,null,0,null,0]
[null,null,null,null,null,null,null,null,null,null,0,null,0]
[null,null,null,null,null,null,null,null,null,null,0,null,0]
[null,null,null,null,null,null,null,null,null,null,0,null,0]
[null,null,null,null,null,null,null,null,null,null,0,null,0]
[null,null,null,null,null,null,null,null,null,null,0,null,0]
[null,null,null,null,null,null,null,null,null,null,0,null,0]
[null,null,null,null,null,null,null,null,null,null,0,null,0]
[null,null,null,null,null,null,null,null,null,null,0,null,0]
[null,null,null,null,null,null,null,null,null,null,0,null,0]
[null,null,null,null,null,null,null,null,null,null,0,null,0]
[null,null,null,null,null,null,null,null,null,null,0,null,0]
[null,null,null,null,null,null,null,null,null,null,0,null,0]
[null,null,null,null,null,null,null,null,null,null,0,null,0]
[null,null,null,null,null,null,null,null,null,null,0,null,0]
[null,null,null,null,null,null,null,null,null,null,0,null,0]
[null,null,null,null,null,null,null,null,null,null,0,null,0]
[null,null,null,null,null,null,null,null,null,null,0,null,0]
[null,null,null,null,null,null,null,null,null,null,0,null,0]
[null,null,null,null,null,null,null,null,null,null,0,null,0]
[null,null,null,null,null,null,null,null,null,null,0,null,0]
[null,null,null,null,null,null,null,null,null,null,0,null,0]
[null,null,null,null,null,null,null,null,null,null,0,null,0]
[null,null,null,null,null,null,null,null,null,null,0,null,0]
[null,null,null,null,null,null,null,null,null,null,0,null,0]
[null,null,null,null,null,null,null,null,null,null,0,null,0]
[null,null,null,null,null,null,null,null,null,null,0,null,0]
[null,null,null,null,null,null,null,null,null,null,0,null,0]
[null,null,null,null,null,null,null,null,null,null,0,null,0]
[null,null,null,null,null,null,null,null,null,null,0,null,0]
[null,null,null,null,null,null,null,null,null,null,0,null,0]
[null,null,null,null,null,null,null,null,null,null,0,null,0]
[null,null,null,null,null,null,null,null,null,null,0,null,0]
[null,null,null,null,null,null,null,null,null,null,0,null,0]
[null,null,null,null,null,null,null,null,null,null,0,null,0]
[null,null,null,null,null,null,null,null,null,null,0,null,0]
[null,null,null,null,null,null,null,null,null,null,0,null,0]
[null,null,null,null,null,null,null,null,null,null,0,null,0]
[null,null,null,null,null,null,null,null,null,null,0,null,0]
[null,null,null,null,null,null,null,null,null,null,{"$f":"J3525*G3525","v":0},null,{"$f":"L3525*G3525","v":0}]
[null,null,null,null,null,null,null,null,null,null,0,null,0]
[null,null,null,null,null,null,null,null,null,null,0,null,0]
[null,null,null,null,null,null,null,null,null,null,0,null,0]
[null,null,null,null,null,null,null,null,null,null,0,null,0]
[null,null,null,null,null,null,null,null,null,null,0,null,0]
[null,null,null,null,null,null,null,null,null,null,0,null,0]
[null,null,null,null,null,null,null,null,null,null,0,null,0]
[null,null,null,null,null,null,null,null,null,null,0,null,0]
[null,null,null,null,null,null,null,null,null,null,0,null,0]
[null,null,null,null,null,null,null,null,null,null,0,null,0]
[null,null,null,null,null,null,null,null,null,null,0,null,0]
[null,null,null,null,null,null,null,null,null,null,0,null,0]
[null,null,null,null,null,null,null,null,null,null,0,null,0]
[null,null,null,null,null,null,null,null,null,null,0,null,0]
[null,null,null,null,null,null,null,null,null,null,0,null,0]
[null,null,null,null,null,null,null,null,null,null,0,null,0]
[null,null,null,null,null,null,null,null,null,null,0,null,0]
[null,null,null,null,null,null,null,null,null,null,0,null,0]
[null,null,null,null,null,null,null,null,null,null,0,null,0]
[null,null,null,null,null,null,null,null,null,null,0,null,0]
[null,null,null,null,null,null,null,null,null,null,0,null,0]
[null,null,null,null,null,null,null,null,null,null,0,null,0]
[null,null,null,null,null,null,null,null,null,null,0,null,0]
[null,null,null,null,null,null,null,null,null,null,0,null,0]
[null,null,null,null,null,null,null,null,null,null,0,null,0]
[null,null,null,null,null,null,null,null,null,null,0,null,0]
[null,null,null,null,null,null,null,null,null,null,0,null,0]
[null,null,null,null,null,null,null,null,null,null,0,null,0]
[null,null,null,null,null,null,null,null,null,null,0,null,0]
[null,null,null,null,null,null,null,null,null,null,0,null,0]
[null,null,null,null,null,null,null,null,null,null,0,null,0]
[null,null,null,null,null,null,null,null,null,null,0,null,0]
[null,null,null,null,null,null,null,null,null,null,0,null,0]
[null,null,null,null,null,null,null,null,null,null,0,null,0]
[null,null,null,null,null,null,null,null,null,null,0,null,0]
[null,null,null,null,null,null,null,null,null,null,0,null,0]
[null,null,null,null,null,null,null,null,null,null,0,null,0]
[null,null,null,null,null,null,null,null,null,null,0,null,0]
[null,null,null,null,null,null,null,null,null,null,0,null,0]
[null,null,null,null,null,null,null,null,null,null,0,null,0]
[null,null,null,null,null,null,null,null,null,null,0,null,0]
[null,null,null,null,null,null,null,null,null,null,0,null,0]
[null,null,null,null,null,null,null,null,null,null,0,null,0]
[null,null,null,null,null,null,null,null,null,null,0,null,0]
[null,null,null,null,null,null,null,null,null,null,0,null,0]
[null,null,null,null,null,null,null,null,null,null,0,null,0]
[null,null,null,null,null,null,null,null,null,null,0,null,0]
[null,null,null,null,null,null,null,null,null,null,0,null,0]
[null,null,null,null,null,null,null,null,null,null,0,null,0]
[null,null,null,null,null,null,null,null,null,null,0,null,0]
[null,null,null,null,null,null,null,null,null,null,0,null,0]
[null,null,null,null,null,null,null,null,null,null,0,null,0]
[null,null,null,null,null,null,null,null,null,null,0,null,0]
[null,null,null,null,null,null,null,null,null,null,0,null,0]
[null,null,null,null,null,null,null,null,null,null,0,null,0]
[null,null,null,null,null,null,null,null,null,null,0,null,0]
[null,null,null,null,null,null,null,null,null,null,0,null,0]
[null,null,null,null,null,null,null,null,null,null,0,null,0]
[null,null,null,null,null,null,null,null,null,null,0,null,0]
[null,null,null,null,null,null,null,null,null,null,0,null,0]
[null,null,null,null,null,null,null,null,null,null,0,null,0]
[null,null,null,null,null,null,null,null,null,null,0,null,0]
[null,null,null,null,null,null,null,null,null,null,0,null,0]
[null,null,null,null,null,null,null,null,null,null,0,null,0]
[null,null,null,null,null,null,null,null,null,null,0,null,0]
[null,null,null,null,null,null,null,null,null,null,0,null,0]
[null,null,null,null,null,null,null,null,null,null,0,null,0]
[null,null,null,null,null,null,null,null,null,null,{"$f":"J3781*G3781","v":0},null,{"$f":"L3781*G3781","v":0}]
[null,null,null,null,null,null,null,null,null,null,0,null,0]
[null,null,null,null,null,null,null,null,null,null,0,null,0]
[null,null,null,null,null,null,null,null,null,null,0,null,0]
[null,null,null,null,null,null,null,null,null,null,0,null,0]
[null,null,null,null,null,null,null,null,null,null,0,null,0]
[null,null,null,null,null,null,null,null,null,null,0,null,0]
[null,null,null,null,null,null,null,null,null,null,0,null,0]
[null,null,null,null,null,null,null,null,null,null,0,null,0]
[null,null,null,null,null,null,null,null,null,null,0,null,0]
[null,null,null,null,null,null,null,null,null,null,0,null,0]
[null,null,null,null,null,null,null,null,null,null,0,null,0]
[null,null,null,null,null,null,null,null,null,null,0,null,0]
[null,null,null,null,null,null,null,null,null,null,0,null,0]
[null,null,null,null,null,null,null,null,null,null,0,null,0]
[null,null,null,null,null,null,null,null,null,null,0,null,0]
[null,null,null,null,null,null,null,null,null,null,0,null,0]
[null,null,null,null,null,null,null,null,null,null,{"$f":"J3845*G3845","v":0},null,{"$f":"L3845*G3845","v":0}]
[null,null,null,null,null,null,null,null,null,null,0,null,0]
[null,null,null,null,null,null,null,null,null,null,0,null,0]
[null,null,null,null,null,null,null,null,null,null,0,null,0]
[null,null,null,null,null,null,null,null,null,null,0,null,0]
[null,null,null,null,null,null,null,null,null,null,0,null,0]
[null,null,null,null,null,null,null,null,null,null,0,null,0]
[null,null,null,null,null,null,null,null,null,null,0,null,0]
[null,null,null,null,null,null,null,null,null,null,0,null,0]
[null,null,null,null,null,null,null,null,null,null,0,null,0]
[null,null,null,null,null,null,null,null,null,null,0,null,0]
[null,null,null,null,null,null,null,null,null,null,0,null,0]
[null,null,null,null,null,null,null,null,null,null,0,null,0]
[null,null,null,null,null,null,null,null,null,null,0,null,0]
[null,null,null,null,null,null,null,null,null,null,0,null,0]
[null,null,null,null,null,null,null,null,null,null,0,null,0]
[null,null,null,null,null,null,null,null,null,null,0,null,0]
[null,null,null,null,null,null,null,null,null,null,{"$f":"J3909*G3909","v":0},null,{"$f":"L3909*G3909","v":0}]
[null,null,null,null,null,null,null,null,null,null,0,null,0]
[null,null,null,null,null,null,null,null,null,null,0,null,0]
[null,null,null,null,null,null,null,null,null,null,0,null,0]
[null,null,null,null,null,null,null,null,null,null,0,null,0]
[null,null,null,null,null,null,null,null,null,null,0,null,0]
[null,null,null,null,null,null,null,null,null,null,0,null,0]
[null,null,null,null,null,null,null,null,null,null,0,null,0]
[null,null,null,null,null,null,null,null,null,null,0,null,0]
[null,null,null,null,null,null,null,null,null,null,0,null,0]
[null,null,null,null,null,null,null,null,null,null,0,null,0]
[null,null,null,null,null,null,null,null,null,null,0,null,0]
[null,null,null,null,null,null,null,null,null,null,0,null,0]
[null,null,null,null,null,null,null,null,null,null,0,null,0]
[null,null,null,null,null,null,null,null,null,null,0,null,0]
[null,null,null,null,null,null,null,null,null,null,0,null,0]
[null,null,null,null,null,null,null,null,null,null,0,null,0]
[null,null,null,null,null,null,null,null,null,null,0,null,0]
[null,null,null,null,null,null,null,null,null,null,0,null,0]
[null,null,null,null,null,null,null,null,null,null,0,null,0]
[null,null,null,null,null,null,null,null,null,null,0,null,0]
[null,null,null,null,null,null,null,null,null,null,0,null,0]
[null,null,null,null,null,null,null,null,null,null,0,null,0]
[null,null,null,null,null,null,null,null,null,null,0,null,0]
[null,null,null,null,null,null,null,null,null,null,0,null,0]
[null,null,null,null,null,null,null,null,null,null,0,null,0]
[null,null,null,null,null,null,null,null,null,null,0,null,0]
[null,null,null,null,null,null,null,null,null,null,0,null,0]
[null,null,null,null,null,null,null,null,null,null,0,null,0]
[null,null,null,null,null,null,null,null,null,null,0,null,0]
[null,null,null,null,null,null,null,null,null,null,0,null,0]
[null,null,null,null,null,null,null,null,null,null,0,null,0]
[null,null,null,null,null,null,null,null,null,null,0,null,0]
[null,null,null,null,null,null,null,null,null,null,0,null,0]
[null,null,null,null,null,null,null,null,null,null,0,null,0]
[null,null,null,null,null,null,null,null,null,null,0,null,0]
[null,null,null,null,null,null,null,null,null,null,0,null,0]
[null,null,null,null,null,null,null,null,null,null,0,null,0]
[null,null,null,null,null,null,null,null,null,null,0,null,0]
[null,null,null,null,null,null,null,null,null,null,0,null,0]
[null,null,null,null,null,null,null,null,null,null,0,null,0]
[null,null,null,null,null,null,null,null,null,null,0,null,0]
[null,null,null,null,null,null,null,null,null,null,0,null,0]
[null,null,null,null,null,null,null,null,null,null,0,null,0]
[null,null,null,null,null,null,null,null,null,null,0,null,0]
[null,null,null,null,null,null,null,null,null,null,0,null,0]
[null,null,null,null,null,null,null,null,null,null,0,null,0]
[null,null,null,null,null,null,null,null,null,null,0,null,0]
[null,null,null,null,null,null,null,null,null,null,0,null,0]
[null,null,null,null,null,null,null,null,null,null,0,null,0]
[null,null,null,null,null,null,null,null,null,null,0,null,0]
[null,null,null,null,null,null,null,null,null,null,{"$f":"J4101*G4101","v":0},null,{"$f":"L4101*G4101","v":0}]
[null,null,null,null,null,null,null,null,null,null,0,null,0]
[null,null,null,null,null,null,null,null,null,null,0,null,0]
[null,null,null,null,null,null,null,null,null,null,0,null,0]
[null,null,null,null,null,null,null,null,null,null,0,null,0]
[null,null,null,null,null,null,null,null,null,null,0,null,0]
[null,null,null,null,null,null,null,null,null,null,0,null,0]
[null,null,null,null,null,null,null,null,null,null,0,null,0]
[null,null,null,null,null,null,null,null,null,null,0,null,0]
[null,null,null,null,null,null,null,null,null,null,0,null,0]
[null,null,null,null,null,null,null,null,null,null,0,null,0]
[null,null,null,null,null,null,null,null,null,null,0,null,0]
[null,null,null,null,null,null,null,null,null,null,0,null,0]
[null,null,null,null,null,null,null,null,null,null,0,null,0]
[null,null,null,null,null,null,null,null,null,null,0,null,0]
[null,null,null,null,null,null,null,null,null,null,0,null,0]
[null,null,null,null,null,null,null,null,null,null,0,null,0]
[null,null,null,null,null,null,null,null,null,null,0,null,0]
[null,null,null,null,null,null,null,null,null,null,0,null,0]
[null,null,null,null,null,null,null,null,null,null,0,null,0]
[null,null,null,null,null,null,null,null,null,null,0,null,0]
[null,null,null,null,null,null,null,null,null,null,0,null,0]
[null,null,null,null,null,null,null,null,null,null,0,null,0]
[null,null,null,null,null,null,null,null,null,null,0,null,0]
[null,null,null,null,null,null,null,null,null,null,0,null,0]
[null,null,null,null,null,null,null,null,null,null,0,null,0]
[null,null,null,null,null,null,null,null,null,null,0,null,0]
[null,null,null,null,null,null,null,null,null,null,0,null,0]
[null,null,null,null,null,null,null,null,null,null,0,null,0]
[null,null,null,null,null,null,null,null,null,null,0,null,0]
[null,null,null,null,null,null,null,null,null,null,0,null,0]
[null,null,null,null,null,null,null,null,null,null,0,null,0]
[null,null,null,null,null,null,null,null,null,null,0,null,0]
[null,null,null,null,null,null,null,null,null,null,0,null,0]
[null,null,null,null,null,null,null,null,null,null,0,null,0]
[null,null,null,null,null,null,null,null,null,null,0,null,0]
[null,null,null,null,null,null,null,null,null,null,0,null,0]
[null,null,null,null,null,null,null,null,null,null,0,null,0]
[null,null,null,null,null,null,null,null,null,null,0,null,0]
[null,null,null,null,null,null,null,null,null,null,0,null,0]
[null,null,null,null,null,null,null,null,null,null,0,null,0]
[null,null,null,null,null,null,null,null,null,null,0,null,0]
[null,null,null,null,null,null,null,null,null,null,0,null,0]
[null,null,null,null,null,null,null,null,null,null,0,null,0]
[null,null,null,null,null,null,null,null,null,null,0,null,0]
[null,null,null,null,null,null,null,null,null,null,0,null,0]
[null,null,null,null,null,null,null,null,null,null,0,null,0]
[null,null,null,null,null,null,null,null,null,null,0,null,0]
[null,null,null,null,null,null,null,null,null,null,0,null,0]
[null,null,null,null,null,null,null,null,null,null,0,null,0]
[null,null,null,null,null,null,null,null,null,null,0,null,0]
[null,null,null,null,null,null,null,null,null,null,0,null,0]
[null,null,null,null,null,null,null,null,null,null,0,null,0]
[null,null,null,null,null,null,null,null,null,null,0,null,0]
[null,null,null,null,null,null,null,null,null,null,0,null,0]
[null,null,null,null,null,null,null,null,null,null,0,null,0]
[null,null,null,null,null,null,null,null,null,null,0,null,0]
[null,null,null,null,null,null,null,null,null,null,0,null,0]
[null,null,null,null,null,null,null,null,null,null,0,null,0]
[null,null,null,null,null,null,null,null,null,null,0,null,0]
[null,null,null,null,null,null,null,null,null,null,0,null,0]
[null,null,null,null,null,null,null,null,null,null,0,null,0]
[null,null,null,null,null,null,null,null,null,null,0,null,0]
[null,null,null,null,null,null,null,null,null,null,0,null,0]
[null,null,null,null,null,null,null,null,null,null,0,null,0]
[null,null,null,null,null,null,null,null,null,null,0,null,0]
[null,null,null,null,null,null,null,null,null,null,0,null,0]
[null,null,null,null,null,null,null,null,null,null,0,null,0]
[null,null,null,null,null,null,null,null,null,null,{"$f":"J4357*G4357","v":0},null,{"$f":"L4357*G4357","v":0}]
[null,null,null,null,null,null,null,null,null,null,0,null,0]
[null,null,null,null,null,null,null,null,null,null,0,null,0]
[null,null,null,null,null,null,null,null,null,null,0,null,0]
[null,null,null,null,null,null,null,null,null,null,0,null,0]
[null,null,null,null,null,null,null,null,null,null,0,null,0]
[null,null,null,null,null,null,null,null,null,null,0,null,0]
[null,null,null,null,null,null,null,null,null,null,0,null,0]
[null,null,null,null,null,null,null,null,null,null,0,null,0]
[null,null,null,null,null,null,null,null,null,null,0,null,0]
[null,null,null,null,null,null,null,null,null,null,0,null,0]
[null,null,null,null,null,null,null,null,null,null,0,null,0]
[null,null,null,null,null,null,null,null,null,null,0,null,0]
[null,null,null,null,null,null,null,null,null,null,0,null,0]
[null,null,null,null,null,null,null,null,null,null,0,null,0]
[null,null,null,null,null,null,null,null,null,null,0,null,0]
[null,null,null,null,null,null,null,null,null,null,0,null,0]
[null,null,null,null,null,null,null,null,null,null,0,null,0]
[null,null,null,null,null,null,null,null,null,null,0,null,0]
[null,null,null,null,null,null,null,null,null,null,0,null,0]
[null,null,null,null,null,null,null,null,null,null,0,null,0]
[null,null,null,null,null,null,null,null,null,null,0,null,0]
[null,null,null,null,null,null,null,null,null,null,0,null,0]
[null,null,null,null,null,null,null,null,null,null,0,null,0]
[null,null,null,null,null,null,null,null,null,null,0,null,0]
[null,null,null,null,null,null,null,null,null,null,0,null,0]
[null,null,null,null,null,null,null,null,null,null,0,null,0]
[null,null,null,null,null,null,null,null,null,null,0,null,0]
[null,null,null,null,null,null,null,null,null,null,0,null,0]
[null,null,null,null,null,null,null,null,null,null,0,null,0]
[null,null,null,null,null,null,null,null,null,null,0,null,0]
[null,null,null,null,null,null,null,null,null,null,0,null,0]
[null,null,null,null,null,null,null,null,null,null,0,null,0]
[null,null,null,null,null,null,null,null,null,null,0,null,0]
[null,null,null,null,null,null,null,null,null,null,0,null,0]
[null,null,null,null,null,null,null,null,null,null,0,null,0]
[null,null,null,null,null,null,null,null,null,null,0,null,0]
[null,null,null,null,null,null,null,null,null,null,0,null,0]
[null,null,null,null,null,null,null,null,null,null,0,null,0]
[null,null,null,null,null,null,null,null,null,null,0,null,0]
[null,null,null,null,null,null,null,null,null,null,0,null,0]
[null,null,null,null,null,null,null,null,null,null,0,null,0]
[null,null,null,null,null,null,null,null,null,null,0,null,0]
[null,null,null,null,null,null,null,null,null,null,0,null,0]
[null,null,null,null,null,null,null,null,null,null,0,null,0]
[null,null,null,null,null,null,null,null,null,null,0,null,0]
[null,null,null,null,null,null,null,null,null,null,0,null,0]
[null,null,null,null,null,null,null,null,null,null,0,null,0]
[null,null,null,null,null,null,null,null,null,null,0,null,0]
[null,null,null,null,null,null,null,null,null,null,0,null,0]
[null,null,null,null,null,null,null,null,null,null,0,null,0]
[null,null,null,null,null,null,null,null,null,null,0,null,0]
[null,null,null,null,null,null,null,null,null,null,0,null,0]
[null,null,null,null,null,null,null,null,null,null,0,null,0]
[null,null,null,null,null,null,null,null,null,null,0,null,0]
[null,null,null,null,null,null,null,null,null,null,0,null,0]
[null,null,null,null,null,null,null,null,null,null,0,null,0]
[null,null,null,null,null,null,null,null,null,null,0,null,0]
[null,null,null,null,null,null,null,null,null,null,0,null,0]
[null,null,null,null,null,null,null,null,null,null,0,null,0]
[null,null,null,null,null,null,null,null,null,null,0,null,0]
[null,null,null,null,null,null,null,null,null,null,0,null,0]
[null,null,null,null,null,null,null,null,null,null,0,null,0]
[null,null,null,null,null,null,null,null,null,null,0,null,0]
[null,null,null,null,null,null,null,null,null,null,0,null,0]
[null,null,null,null,null,null,null,null,null,null,0,null,0]
[null,null,null,null,null,null,null,null,null,null,0,null,0]
[null,null,null,null,null,null,null,null,null,null,0,null,0]
[null,null,null,null,null,null,null,null,null,null,0,null,0]
[null,null,null,null,null,null,null,null,null,null,{"$f":"J4613*G4613","v":0},null,{"$f":"L4613*G4613","v":0}]
[null,null,null,null,null,null,null,null,null,null,0,null,0]
[null,null,null,null,null,null,null,null,null,null,0,null,0]
[null,null,null,null,null,null,null,null,null,null,0,null,0]
[null,null,null,null,null,null,null,null,null,null,0,null,0]
[null,null,null,null,null,null,null,null,null,null,0,null,0]
[null,null,null,null,null,null,null,null,null,null,0,null,0]
[null,null,null,null,null,null,null,null,null,null,0,null,0]
[null,null,null,null,null,null,null,null,null,null,0,null,0]
[null,null,null,null,null,null,null,null,null,null,0,null,0]
[null,null,null,null,null,null,null,null,null,null,0,null,0]
[null,null,null,null,null,null,null,null,null,null,0,null,0]
[null,null,null,null,null,null,null,null,null,null,0,null,0]
[null,null,null,null,null,null,null,null,null,null,0,null,0]
[null,null,null,null,null,null,null,null,null,null,0,null,0]
[null,null,null,null,null,null,null,null,null,null,0,null,0]
[null,null,null,null,null,null,null,null,null,null,0,null,0]
[null,null,null,null,null,null,null,null,null,null,0,null,0]
[null,null,null,null,null,null,null,null,null,null,0,null,0]
[null,null,null,null,null,null,null,null,null,null,0,null,0]
[null,null,null,null,null,null,null,null,null,null,0,null,0]
[null,null,null,null,null,null,null,null,null,null,0,null,0]
[null,null,null,null,null,null,null,null,null,null,0,null,0]
[null,null,null,null,null,null,null,null,null,null,0,null,0]
[null,null,null,null,null,null,null,null,null,null,0,null,0]
[null,null,null,null,null,null,null,null,null,null,0,null,0]
[null,null,null,null,null,null,null,null,null,null,0,null,0]
[null,null,null,null,null,null,null,null,null,null,0,null,0]
[null,null,null,null,null,null,null,null,null,null,0,null,0]
[null,null,null,null,null,null,null,null,null,null,0,null,0]
[null,null,null,null,null,null,null,null,null,null,0,null,0]
[null,null,null,null,null,null,null,null,null,null,0,null,0]
[null,null,null,null,null,null,null,null,null,null,0,null,0]
[null,null,null,null,null,null,null,null,null,null,0,null,0]
[null,null,null,null,null,null,null,null,null,null,0,null,0]
[null,null,null,null,null,null,null,null,null,null,0,null,0]
[null,null,null,null,null,null,null,null,null,null,0,null,0]
[null,null,null,null,null,null,null,null,null,null,0,null,0]
[null,null,null,null,null,null,null,null,null,null,0,null,0]
[null,null,null,null,null,null,null,null,null,null,0,null,0]
[null,null,null,null,null,null,null,null,null,null,0,null,0]
[null,null,null,null,null,null,null,null,null,null,0,null,0]
[null,null,null,null,null,null,null,null,null,null,0,null,0]
[null,null,null,null,null,null,null,null,null,null,0,null,0]
[null,null,null,null,null,null,null,null,null,null,0,null,0]
[null,null,null,null,null,null,null,null,null,null,0,null,0]
[null,null,null,null,null,null,null,null,null,null,0,null,0]
[null,null,null,null,null,null,null,null,null,null,0,null,0]
[null,null,null,null,null,null,null,null,null,null,0,null,0]
[null,null,null,null,null,null,null,null,null,null,0,null,0]
[null,null,null,null,null,null,null,null,null,null,0,null,0]
[null,null,null,null,null,null,null,null,null,null,0,null,0]
[null,null,null,null,null,null,null,null,null,null,0,null,0]
[null,null,null,null,null,null,null,null,null,null,0,null,0]
[null,null,null,null,null,null,null,null,null,null,0,null,0]
[null,null,null,null,null,null,null,null,null,null,0,null,0]
[null,null,null,null,null,null,null,null,null,null,0,null,0]
[null,null,null,null,null,null,null,null,null,null,0,null,0]
[null,null,null,null,null,null,null,null,null,null,0,null,0]
[null,null,null,null,null,null,null,null,null,null,0,null,0]
[null,null,null,null,null,null,null,null,null,null,0,null,0]
[null,null,null,null,null,null,null,null,null,null,0,null,0]
[null,null,null,null,null,null,null,null,null,null,0,null,0]
[null,null,null,null,null,null,null,null,null,null,0,null,0]
[null,null,null,null,null,null,null,null,null,null,0,null,0]
[null,null,null,null,null,null,null,null,null,null,0,null,0]
[null,null,null,null,null,null,null,null,null,null,0,null,0]
[null,null,null,null,null,null,null,null,null,null,0,null,0]
[null,null,null,null,null,null,null,null,null,null,{"$f":"J4869*G4869","v":0},null,{"$f":"L4869*G4869","v":0}]
[null,null,null,null,null,null,null,null,null,null,0,null,0]
[null,null,null,null,null,null,null,null,null,null,0,null,0]
[null,null,null,null,null,null,null,null,null,null,0,null,0]
[null,null,null,null,null,null,null,null,null,null,0,null,0]
[null,null,null,null,null,null,null,null,null,null,0,null,0]
[null,null,null,null,null,null,null,null,null,null,0,null,0]
[null,null,null,null,null,null,null,null,null,null,0,null,0]
[null,null,null,null,null,null,null,null,null,null,0,null,0]
[null,null,null,null,null,null,null,null,null,null,0,null,0]
[null,null,null,null,null,null,null,null,null,null,0,null,0]
[null,null,null,null,null,null,null,null,null,null,0,null,0]
[null,null,null,null,null,null,null,null,null,null,0,null,0]
[null,null,null,null,null,null,null,null,null,null,0,null,0]
[null,null,null,null,null,null,null,null,null,null,0,null,0]
[null,null,null,null,null,null,null,null,null,null,0,null,0]
[null,null,null,null,null,null,null,null,null,null,0,null,0]
[null,null,null,null,null,null,null,null,null,null,0,null,0]
[null,null,null,null,null,null,null,null,null,null,0,null,0]
[null,null,null,null,null,null,null,null,null,null,0,null,0]
[null,null,null,null,null,null,null,null,null,null,0,null,0]
[null,null,null,null,null,null,null,null,null,null,0,null,0]
[null,null,null,null,null,null,null,null,null,null,0,null,0]
[null,null,null,null,null,null,null,null,null,null,0,null,0]
[null,null,null,null,null,null,null,null,null,null,0,null,0]
[null,null,null,null,null,null,null,null,null,null,0,null,0]
[null,null,null,null,null,null,null,null,null,null,0,null,0]
[null,null,null,null,null,null,null,null,null,null,0,null,0]
[null,null,null,null,null,null,null,null,null,null,0,null,0]
[null,null,null,null,null,null,null,null,null,null,0,null,0]
[null,null,null,null,null,null,null,null,null,null,0,null,0]
[null,null,null,null,null,null,null,null,null,null,0,null,0]
[null,null,null,null,null,null,null,null,null,null,0,null,0]
[null,null,null,null,null,null,null,null,null,null,0,null,0]
[null,null,null,null,null,null,null,null,null,null,0,null,0]
[null,null,null,null,null,null,null,null,null,null,0,null,0]
[null,null,null,null,null,null,null,null,null,null,0,null,0]
[null,null,null,null,null,null,null,null,null,null,0,null,0]
[null,null,null,null,null,null,null,null,null,null,0,null,0]
[null,null,null,null,null,null,null,null,null,null,0,null,0]
[null,null,null,null,null,null,null,null,null,null,0,null,0]
[null,null,null,null,null,null,null,null,null,null,0,null,0]
[null,null,null,null,null,null,null,null,null,null,0,null,0]
[null,null,null,null,null,null,null,null,null,null,0,null,0]
[null,null,null,null,null,null,null,null,null,null,0,null,0]
[null,null,null,null,null,null,null,null,null,null,0,null,0]
[null,null,null,null,null,null,null,null,null,null,0,null,0]
[null,null,null,null,null,null,null,null,null,null,0,null,0]
[null,null,null,null,null,null,null,null,null,null,0,null,0]
[null,null,null,null,null,null,null,null,null,null,0,null,0]
[null,null,null,null,null,null,null,null,null,null,0,null,0]
[null,null,null,null,null,null,null,null,null,null,0,null,0]
[null,null,null,null,null,null,null,null,null,null,0,null,0]
[null,null,null,null,null,null,null,null,null,null,0,null,0]
[null,null,null,null,null,null,null,null,null,null,0,null,0]
[null,null,null,null,null,null,null,null,null,null,0,null,0]
[null,null,null,null,null,null,null,null,null,null,0,null,0]
[null,null,null,null,null,null,null,null,null,null,0,null,0]
[null,null,null,null,null,null,null,null,null,null,0,null,0]
[null,null,null,null,null,null,null,null,null,null,0,null,0]
[null,null,null,null,null,null,null,null,null,null,0,null,0]
[null,null,null,null,null,null,null,null,null,null,0,null,0]
[null,null,null,null,null,null,null,null,null,null,0,null,0]
[null,null,null,null,null,null,null,null,null,null,0,null,0]
[null,null,null,null,null,null,null,null,null,null,0,null,0]
[null,null,null,null,null,null,null,null,null,null,0,null,0]
[null,null,null,null,null,null,null,null,null,null,0,null,0]
[null,null,null,null,null,null,null,null,null,null,0,null,0]
[null,null,null,null,null,null,null,null,null,null,{"$f":"J5125*G5125","v":0},null,{"$f":"L5125*G5125","v":0}]
[null,null,null,null,null,null,null,null,null,null,0,null,0]
[null,null,null,null,null,null,null,null,null,null,0,null,0]
[null,null,null,null,null,null,null,null,null,null,0,null,0]
[null,null,null,null,null,null,null,null,null,null,0,null,0]
[null,null,null,null,null,null,null,null,null,null,0,null,0]
[null,null,null,null,null,null,null,null,null,null,0,null,0]
[null,null,null,null,null,null,null,null,null,null,0,null,0]
[null,null,null,null,null,null,null,null,null,null,0,null,0]
[null,null,null,null,null,null,null,null,null,null,0,null,0]
[null,null,null,null,null,null,null,null,null,null,0,null,0]
[null,null,null,null,null,null,null,null,null,null,0,null,0]
[null,null,null,null,null,null,null,null,null,null,0,null,0]
[null,null,null,null,null,null,null,null,null,null,0,null,0]
[null,null,null,null,null,null,null,null,null,null,0,null,0]
[null,null,null,null,null,null,null,null,null,null,0,null,0]
[null,null,null,null,null,null,null,null,null,null,0,null,0]
[null,null,null,null,null,null,null,null,null,null,{"$f":"J5189*G5189","v":0},null,{"$f":"L5189*G5189","v":0}]
[null,null,null,null,null,null,null,null,null,null,0,null,0]
[null,null,null,null,null,null,null,null,null,null,0,null,0]
[null,null,null,null,null,null,null,null,null,null,0,null,0]
[null,null,null,null,null,null,null,null,null,null,0,null,0]
[null,null,null,null,null,null,null,null,null,null,0,null,0]
[null,null,null,null,null,null,null,null,null,null,0,null,0]
[null,null,null,null,null,null,null,null,null,null,0,null,0]
[null,null,null,null,null,null,null,null,null,null,0,null,0]
[null,null,null,null,null,null,null,null,null,null,0,null,0]
[null,null,null,null,null,null,null,null,null,null,0,null,0]
[null,null,null,null,null,null,null,null,null,null,0,null,0]
[null,null,null,null,null,null,null,null,null,null,0,null,0]
[null,null,null,null,null,null,null,null,null,null,0,null,0]
[null,null,null,null,null,null,null,null,null,null,0,null,0]
[null,null,null,null,null,null,null,null,null,null,0,null,0]
[null,null,null,null,null,null,null,null,null,null,0,null,0]
[null,null,null,null,null,null,null,null,null,null,0,null,0]
[null,null,null,null,null,null,null,null,null,null,0,null,0]
[null,null,null,null,null,null,null,null,null,null,0,null,0]
[null,null,null,null,null,null,null,null,null,null,0,null,0]
[null,null,null,null,null,null,null,null,null,null,0,null,0]
[null,null,null,null,null,null,null,null,null,null,0,null,0]
[null,null,null,null,null,null,null,null,null,null,0,null,0]
[null,null,null,null,null,null,null,null,null,null,0,null,0]
[null,null,null,null,null,null,null,null,null,null,0,null,0]
[null,null,null,null,null,null,null,null,null,null,0,null,0]
[null,null,null,null,null,null,null,null,null,null,0,null,0]
[null,null,null,null,null,null,null,null,null,null,0,null,0]
[null,null,null,null,null,null,null,null,null,null,0,null,0]
[null,null,null,null,null,null,null,null,null,null,0,null,0]
[null,null,null,null,null,null,null,null,null,null,0,null,0]
[null,null,null,null,null,null,null,null,null,null,0,null,0]
[null,null,null,null,null,null,null,null,null,null,0,null,0]
[null,null,null,null,null,null,null,null,null,null,0,null,0]
[null,null,null,null,null,null,null,null,null,null,0,null,0]
[null,null,null,null,null,null,null,null,null,null,0,null,0]
[null,null,null,null,null,null,null,null,null,null,0,null,0]
[null,null,null,null,null,null,null,null,null,null,0,null,0]
[null,null,null,null,null,null,null,null,null,null,0,null,0]
[null,null,null,null,null,null,null,null,null,null,0,null,0]
[null,null,null,null,null,null,null,null,null,null,0,null,0]
[null,null,null,null,null,null,null,null,null,null,0,null,0]
[null,null,null,null,null,null,null,null,null,null,0,null,0]
[null,null,null,null,null,null,null,null,null,null,0,null,0]
[null,null,null,null,null,null,null,null,null,null,0,null,0]
[null,null,null,null,null,null,null,null,null,null,0,null,0]
[null,null,null,null,null,null,null,null,null,null,0,null,0]
[null,null,null,null,null,null,null,null,null,null,0,null,0]
[null,null,null,null,null,null,null,null,null,null,0,null,0]
[null,null,null,null,null,null,null,null,null,null,0,null,0]
[null,null,null,null,null,null,null,null,null,null,0,null,0]
[null,null,null,null,null,null,null,null,null,null,0,null,0]
[null,null,null,null,null,null,null,null,null,null,0,null,0]
[null,null,null,null,null,null,null,null,null,null,0,null,0]
[null,null,null,null,null,null,null,null,null,null,0,null,0]
[null,null,null,null,null,null,null,null,null,null,0,null,0]
[null,null,null,null,null,null,null,null,null,null,0,null,0]
[null,null,null,null,null,null,null,null,null,null,0,null,0]
[null,null,null,null,null,null,null,null,null,null,0,null,0]
[null,null,null,null,null,null,null,null,null,null,0,null,0]
[null,null,null,null,null,null,null,null,null,null,0,null,0]
[null,null,null,null,null,null,null,null,null,null,0,null,0]
[null,null,null,null,null,null,null,null,null,null,0,null,0]
[null,null,null,null,null,null,null,null,null,null,0,null,0]
[null,null,null,null,null,null,null,null,null,null,0,null,0]
[null,null,null,null,null,null,null,null,null,null,0,null,0]
[null,null,null,null,null,null,null,null,null,null,0,null,0]
[null,null,null,null,null,null,null,null,null,null,{"$f":"J5445*G5445","v":0},null,{"$f":"L5445*G5445","v":0}]
[null,null,null,null,null,null,null,null,null,null,0,null,0]
[null,null,null,null,null,null,null,null,null,null,0,null,0]
[null,null,null,null,null,null,null,null,null,null,0,null,0]
[null,null,null,null,null,null,null,null,null,null,0,null,0]
[null,null,null,null,null,null,null,null,null,null,0,null,0]
[null,null,null,null,null,null,null,null,null,null,0,null,0]
[null,null,null,null,null,null,null,null,null,null,0,null,0]
[null,null,null,null,null,null,null,null,null,null,0,null,0]
[null,null,null,null,null,null,null,null,null,null,0,null,0]
[null,null,null,null,null,null,null,null,null,null,0,null,0]
[null,null,null,null,null,null,null,null,null,null,0,null,0]
[null,null,null,null,null,null,null,null,null,null,0,null,0]
[null,null,null,null,null,null,null,null,null,null,0,null,0]
[null,null,null,null,null,null,null,null,null,null,0,null,0]
[null,null,null,null,null,null,null,null,null,null,0,null,0]
[null,null,null,null,null,null,null,null,null,null,0,null,0]
[null,null,null,null,null,null,null,null,null,null,0,null,0]
[null,null,null,null,null,null,null,null,null,null,0,null,0]
[null,null,null,null,null,null,null,null,null,null,0,null,0]
[null,null,null,null,null,null,null,null,null,null,0,null,0]
[null,null,null,null,null,null,null,null,null,null,0,null,0]
[null,null,null,null,null,null,null,null,null,null,0,null,0]
[null,null,null,null,null,null,null,null,null,null,0,null,0]
[null,null,null,null,null,null,null,null,null,null,0,null,0]
[null,null,null,null,null,null,null,null,null,null,0,null,0]
[null,null,null,null,null,null,null,null,null,null,0,null,0]
[null,null,null,null,null,null,null,null,null,null,0,null,0]
[null,null,null,null,null,null,null,null,null,null,0,null,0]
[null,null,null,null,null,null,null,null,null,null,0,null,0]
[null,null,null,null,null,null,null,null,null,null,0,null,0]
[null,null,null,null,null,null,null,null,null,null,0,null,0]
[null,null,null,null,null,null,null,null,null,null,0,null,0]
[null,null,null,null,null,null,null,null,null,null,0,null,0]
[null,null,null,null,null,null,null,null,null,null,0,null,0]
[null,null,null,null,null,null,null,null,null,null,0,null,0]
[null,null,null,null,null,null,null,null,null,null,0,null,0]
[null,null,null,null,null,null,null,null,null,null,0,null,0]
[null,null,null,null,null,null,null,null,null,null,0,null,0]
[null,null,null,null,null,null,null,null,null,null,0,null,0]
[null,null,null,null,null,null,null,null,null,null,0,null,0]
[null,null,null,null,null,null,null,null,null,null,0,null,0]
[null,null,null,null,null,null,null,null,null,null,0,null,0]
[null,null,null,null,null,null,null,null,null,null,0,null,0]
[null,null,null,null,null,null,null,null,null,null,0,null,0]
[null,null,null,null,null,null,null,null,null,null,0,null,0]
[null,null,null,null,null,null,null,null,null,null,0,null,0]
[null,null,null,null,null,null,null,null,null,null,0,null,0]
[null,null,null,null,null,null,null,null,null,null,0,null,0]
[null,null,null,null,null,null,null,null,null,null,0,null,0]
[null,null,null,null,null,null,null,null,null,null,0,null,0]
[null,null,null,null,null,null,null,null,null,null,0,null,0]
[null,null,null,null,null,null,null,null,null,null,0,null,0]
[null,null,null,null,null,null,null,null,null,null,0,null,0]
[null,null,null,null,null,null,null,null,null,null,0,null,0]
[null,null,null,null,null,null,null,null,null,null,0,null,0]
[null,null,null,null,null,null,null,null,null,null,0,null,0]
[null,null,null,null,null,null,null,null,null,null,0,null,0]
[null,null,null,null,null,null,null,null,null,null,0,null,0]
[null,null,null,null,null,null,null,null,null,null,0,null,0]
[null,null,null,null,null,null,null,null,null,null,0,null,0]
[null,null,null,null,null,null,null,null,null,null,0,null,0]
[null,null,null,null,null,null,null,null,null,null,0,null,0]
[null,null,null,null,null,null,null,null,null,null,0,null,0]
[null,null,null,null,null,null,null,null,null,null,0,null,0]
[null,null,null,null,null,null,null,null,null,null,0,null,0]
[null,null,null,null,null,null,null,null,null,null,0,null,0]
[null,null,null,null,null,null,null,null,null,null,0,null,0]
[null,null,null,null,null,null,null,null,null,null,{"$f":"J5701*G5701","v":0},null,{"$f":"L5701*G5701","v":0}]
[null,null,null,null,null,null,null,null,null,null,0,null,0]
[null,null,null,null,null,null,null,null,null,null,0,null,0]
[null,null,null,null,null,null,null,null,null,null,0,null,0]
[null,null,null,null,null,null,null,null,null,null,0,null,0]
[null,null,null,null,null,null,null,null,null,null,0,null,0]
[null,null,null,null,null,null,null,null,null,null,0,null,0]
[null,null,null,null,null,null,null,null,null,null,0,null,0]
[null,null,null,null,null,null,null,null,null,null,0,null,0]
[null,null,null,null,null,null,null,null,null,null,0,null,0]
[null,null,null,null,null,null,null,null,null,null,0,null,0]
[null,null,null,null,null,null,null,null,null,null,0,null,0]
[null,null,null,null,null,null,null,null,null,null,0,null,0]
[null,null,null,null,null,null,null,null,null,null,0,null,0]
[null,null,null,null,null,null,null,null,null,null,0,null,0]
[null,null,null,null,null,null,null,null,null,null,0,null,0]
[null,null,null,null,null,null,null,null,null,null,0,null,0]
[null,null,null,null,null,null,null,null,null,null,0,null,0]
[null,null,null,null,null,null,null,null,null,null,0,null,0]
[null,null,null,null,null,null,null,null,null,null,0,null,0]
[null,null,null,null,null,null,null,null,null,null,0,null,0]
[null,null,null,null,null,null,null,null,null,null,0,null,0]
[null,null,null,null,null,null,null,null,null,null,0,null,0]
[null,null,null,null,null,null,null,null,null,null,0,null,0]
[null,null,null,null,null,null,null,null,null,null,0,null,0]
[null,null,null,null,null,null,null,null,null,null,0,null,0]
[null,null,null,null,null,null,null,null,null,null,0,null,0]
[null,null,null,null,null,null,null,null,null,null,0,null,0]
[null,null,null,null,null,null,null,null,null,null,0,null,0]
[null,null,null,null,null,null,null,null,null,null,0,null,0]
[null,null,null,null,null,null,null,null,null,null,0,null,0]
[null,null,null,null,null,null,null,null,null,null,0,null,0]
[null,null,null,null,null,null,null,null,null,null,0,null,0]
[null,null,null,null,null,null,null,null,null,null,0,null,0]
[null,null,null,null,null,null,null,null,null,null,0,null,0]
[null,null,null,null,null,null,null,null,null,null,0,null,0]
[null,null,null,null,null,null,null,null,null,null,0,null,0]
[null,null,null,null,null,null,null,null,null,null,0,null,0]
[null,null,null,null,null,null,null,null,null,null,0,null,0]
[null,null,null,null,null,null,null,null,null,null,0,null,0]
[null,null,null,null,null,null,null,null,null,null,0,null,0]
[null,null,null,null,null,null,null,null,null,null,0,null,0]
[null,null,null,null,null,null,null,null,null,null,0,null,0]
[null,null,null,null,null,null,null,null,null,null,0,null,0]
[null,null,null,null,null,null,null,null,null,null,0,null,0]
[null,null,null,null,null,null,null,null,null,null,0,null,0]
[null,null,null,null,null,null,null,null,null,null,0,null,0]
[null,null,null,null,null,null,null,null,null,null,0,null,0]
[null,null,null,null,null,null,null,null,null,null,0,null,0]
[null,null,null,null,null,null,null,null,null,null,0,null,0]
[null,null,null,null,null,null,null,null,null,null,0,null,0]
[null,null,null,null,null,null,null,null,null,null,0,null,0]
[null,null,null,null,null,null,null,null,null,null,0,null,0]
[null,null,null,null,null,null,null,null,null,null,0,null,0]
[null,null,null,null,null,null,null,null,null,null,0,null,0]
[null,null,null,null,null,null,null,null,null,null,0,null,0]
[null,null,null,null,null,null,null,null,null,null,0,null,0]
[null,null,null,null,null,null,null,null,null,null,0,null,0]
[null,null,null,null,null,null,null,null,null,null,0,null,0]
[null,null,null,null,null,null,null,null,null,null,0,null,0]
[null,null,null,null,null,null,null,null,null,null,0,null,0]
[null,null,null,null,null,null,null,null,null,null,0,null,0]
[null,null,null,null,null,null,null,null,null,null,0,null,0]
[null,null,null,null,null,null,null,null,null,null,0,null,0]
[null,null,null,null,null,null,null,null,null,null,0,null,0]
[null,null,null,null,null,null,null,null,null,null,0,null,0]
[null,null,null,null,null,null,null,null,null,null,0,null,0]
[null,null,null,null,null,null,null,null,null,null,0,null,0]
[null,null,null,null,null,null,null,null,null,null,0,null,0]
[null,null,null,null,null,null,null,null,null,null,0,null,0]
[null,null,null,null,null,null,null,null,null,null,0,null,0]
[null,null,null,null,null,null,null,null,null,null,0,null,0]
[null,null,null,null,null,null,null,null,null,null,0,null,0]
[null,null,null,null,null,null,null,null,null,null,0,null,0]
[null,null,null,null,null,null,null,null,null,null,0,null,0]
[null,null,null,null,null,null,null,null,null,null,0,null,0]
[null,null,null,null,null,null,null,null,null,null,0,null,0]
[null,null,null,null,null,null,null,null,null,null,0,null,0]
[null,null,null,null,null,null,null,null,null,null,0,null,0]
[null,null,null,null,null,null,null,null,null,null,0,null,0]
[null,null,null,null,null,null,null,null,null,null,0,null,0]
[null,null,null,null,null,null,null,null,null,null,0,null,0]
[null,null,null,null,null,null,null,null,null,null,0,null,0]
[null,null,null,null,null,null,null,null,null,null,0,null,0]
[null,null,null,null,null,null,null,null,null,null,0,null,0]
[null,null,null,null,null,null,null,null,null,null,{"$f":"J6021*G6021","v":0},null,{"$f":"L6021*G6021","v":0}]
[null,null,null,null,null,null,null,null,null,null,0,null,0]
[null,null,null,null,null,null,null,null,null,null,0,null,0]
[null,null,null,null,null,null,null,null,null,null,0,null,0]
[null,null,null,null,null,null,null,null,null,null,0,null,0]
[null,null,null,null,null,null,null,null,null,null,0,null,0]
[null,null,null,null,null,null,null,null,null,null,0,null,0]
[null,null,null,null,null,null,null,null,null,null,0,null,0]
[null,null,null,null,null,null,null,null,null,null,0,null,0]
[null,null,null,null,null,null,null,null,null,null,0,null,0]
[null,null,null,null,null,null,null,null,null,null,0,null,0]
[null,null,null,null,null,null,null,null,null,null,0,null,0]
[null,null,null,null,null,null,null,null,null,null,0,null,0]
[null,null,null,null,null,null,null,null,null,null,0,null,0]
[null,null,null,null,null,null,null,null,null,null,0,null,0]
[null,null,null,null,null,null,null,null,null,null,0,null,0]
[null,null,null,null,null,null,null,null,null,null,0,null,0]
[null,null,null,null,null,null,null,null,null,null,0,null,0]
[null,null,null,null,null,null,null,null,null,null,0,null,0]
[null,null,null,null,null,null,null,null,null,null,0,null,0]
[null,null,null,null,null,null,null,null,null,null,0,null,0]
[null,null,null,null,null,null,null,null,null,null,0,null,0]
[null,null,null,null,null,null,null,null,null,null,0,null,0]
[null,null,null,null,null,null,null,null,null,null,0,null,0]
[null,null,null,null,null,null,null,null,null,null,0,null,0]
[null,null,null,null,null,null,null,null,null,null,0,null,0]
[null,null,null,null,null,null,null,null,null,null,0,null,0]
[null,null,null,null,null,null,null,null,null,null,0,null,0]
[null,null,null,null,null,null,null,null,null,null,0,null,0]
[null,null,null,null,null,null,null,null,null,null,0,null,0]
[null,null,null,null,null,null,null,null,null,null,0,null,0]
[null,null,null,null,null,null,null,null,null,null,0,null,0]
[null,null,null,null,null,null,null,null,null,null,0,null,0]
[null,null,null,null,null,null,null,null,null,null,0,null,0]
[null,null,null,null,null,null,null,null,null,null,0,null,0]
[null,null,null,null,null,null,null,null,null,null,0,null,0]
[null,null,null,null,null,null,null,null,null,null,0,null,0]
[null,null,null,null,null,null,null,null,null,null,0,null,0]
[null,null,null,null,null,null,null,null,null,null,0,null,0]
[null,null,null,null,null,null,null,null,null,null,0,null,0]
[null,null,null,null,null,null,null,null,null,null,0,null,0]
[null,null,null,null,null,null,null,null,null,null,0,null,0]
[null,null,null,null,null,null,null,null,null,null,0,null,0]
[null,null,null,null,null,null,null,null,null,null,0,null,0]
[null,null,null,null,null,null,null,null,null,null,0,null,0]
[null,null,null,null,null,null,null,null,null,null,0,null,0]
[null,null,null,null,null,null,null,null,null,null,0,null,0]
[null,null,null,null,null,null,null,null,null,null,0,null,0]
[null,null,null,null,null,null,null,null,null,null,0,null,0]
[null,null,null,null,null,null,null,null,null,null,0,null,0]
[null,null,null,null,null,null,null,null,null,null,0,null,0]
[null,null,null,null,null,null,null,null,null,null,0,null,0]
[null,null,null,null,null,null,null,null,null,null,0,null,0]
[null,null,null,null,null,null,null,null,null,null,0,null,0]
[null,null,null,null,null,null,null,null,null,null,0,null,0]
[null,null,null,null,null,null,null,null,null,null,0,null,0]
[null,null,null,null,null,null,null,null,null,null,0,null,0]
[null,null,null,null,null,null,null,null,null,null,0,null,0]
[null,null,null,null,null,null,null,null,null,null,0,null,0]
[null,null,null,null,null,null,null,null,null,null,0,null,0]
[null,null,null,null,null,null,null,null,null,null,0,null,0]
[null,null,null,null,null,null,null,null,null,null,0,null,0]
[null,null,null,null,null,null,null,null,null,null,0,null,0]
[null,null,null,null,null,null,null,null,null,null,0,null,0]
[null,null,null,null,null,null,null,null,null,null,0,null,0]
[null,null,null,null,null,null,null,null,null,null,0,null,0]
[null,null,null,null,null,null,null,null,null,null,0,null,0]
[null,null,null,null,null,null,null,null,null,null,0,null,0]
[null,null,null,null,null,null,null,null,null,null,{"$f":"J6277*G6277","v":0},null,{"$f":"L6277*G6277","v":0}]
[null,null,null,null,null,null,null,null,null,null,0,null,0]
[null,null,null,null,null,null,null,null,null,null,0,null,0]
[null,null,null,null,null,null,null,null,null,null,0,null,0]
[null,null,null,null,null,null,null,null,null,null,0,null,0]
[null,null,null,null,null,null,null,null,null,null,0,null,0]
[null,null,null,null,null,null,null,null,null,null,0,null,0]
[null,null,null,null,null,null,null,null,null,null,0,null,0]
[null,null,null,null,null,null,null,null,null,null,0,null,0]
[null,null,null,null,null,null,null,null,null,null,0,null,0]
[null,null,null,null,null,null,null,null,null,null,0,null,0]
[null,null,null,null,null,null,null,null,null,null,0,null,0]
[null,null,null,null,null,null,null,null,null,null,0,null,0]
[null,null,null,null,null,null,null,null,null,null,0,null,0]
[null,null,null,null,null,null,null,null,null,null,0,null,0]
[null,null,null,null,null,null,null,null,null,null,0,null,0]
[null,null,null,null,null,null,null,null,null,null,0,null,0]
[null,null,null,null,null,null,null,null,null,null,0,null,0]
[null,null,null,null,null,null,null,null,null,null,0,null,0]
[null,null,null,null,null,null,null,null,null,null,0,null,0]
[null,null,null,null,null,null,null,null,null,null,0,null,0]
[null,null,null,null,null,null,null,null,null,null,0,null,0]
[null,null,null,null,null,null,null,null,null,null,0,null,0]
[null,null,null,null,null,null,null,null,null,null,0,null,0]
[null,null,null,null,null,null,null,null,null,null,0,null,0]
[null,null,null,null,null,null,null,null,null,null,0,null,0]
[null,null,null,null,null,null,null,null,null,null,0,null,0]
[null,null,null,null,null,null,null,null,null,null,0,null,0]
[null,null,null,null,null,null,null,null,null,null,0,null,0]
[null,null,null,null,null,null,null,null,null,null,0,null,0]
[null,null,null,null,null,null,null,null,null,null,0,null,0]
[null,null,null,null,null,null,null,null,null,null,0,null,0]
[null,null,null,null,null,null,null,null,null,null,0,null,0]
[null,null,null,null,null,null,null,null,null,null,0,null,0]
[null,null,null,null,null,null,null,null,null,null,0,null,0]
[null,null,null,null,null,null,null,null,null,null,0,null,0]
[null,null,null,null,null,null,null,null,null,null,0,null,0]
[null,null,null,null,null,null,null,null,null,null,0,null,0]
[null,null,null,null,null,null,null,null,null,null,0,null,0]
[null,null,null,null,null,null,null,null,null,null,0,null,0]
[null,null,null,null,null,null,null,null,null,null,0,null,0]
[null,null,null,null,null,null,null,null,null,null,0,null,0]
[null,null,null,null,null,null,null,null,null,null,0,null,0]
[null,null,null,null,null,null,null,null,null,null,0,null,0]
[null,null,null,null,null,null,null,null,null,null,0,null,0]
[null,null,null,null,null,null,null,null,null,null,0,null,0]
[null,null,null,null,null,null,null,null,null,null,0,null,0]
[null,null,null,null,null,null,null,null,null,null,0,null,0]
[null,null,null,null,null,null,null,null,null,null,0,null,0]
[null,null,null,null,null,null,null,null,null,null,0,null,0]
[null,null,null,null,null,null,null,null,null,null,0,null,0]
[null,null,null,null,null,null,null,null,null,null,0,null,0]
[null,null,null,null,null,null,null,null,null,null,0,null,0]
[null,null,null,null,null,null,null,null,null,null,0,null,0]
[null,null,null,null,null,null,null,null,null,null,0,null,0]
[null,null,null,null,null,null,null,null,null,null,0,null,0]
[null,null,null,null,null,null,null,null,null,null,0,null,0]
[null,null,null,null,null,null,null,null,null,null,0,null,0]
[null,null,null,null,null,null,null,null,null,null,0,null,0]
[null,null,null,null,null,null,null,null,null,null,0,null,0]
[null,null,null,null,null,null,null,null,null,null,0,null,0]
[null,null,null,null,null,null,null,null,null,null,0,null,0]
[null,null,null,null,null,null,null,null,null,null,0,null,0]
[null,null,null,null,null,null,null,null,null,null,0,null,0]
[null,null,null,null,null,null,null,null,null,null,0,null,0]
[null,null,null,null,null,null,null,null,null,null,0,null,0]
[null,null,null,null,null,null,null,null,null,null,0,null,0]
[null,null,null,null,null,null,null,null,null,null,0,null,0]
[null,null,null,null,null,null,null,null,null,null,{"$f":"J6533*G6533","v":0},null,{"$f":"L6533*G6533","v":0}]
[null,null,null,null,null,null,null,null,null,null,0,null,0]
[null,null,null,null,null,null,null,null,null,null,0,null,0]
[null,null,null,null,null,null,null,null,null,null,0,null,0]
[null,null,null,null,null,null,null,null,null,null,0,null,0]
[null,null,null,null,null,null,null,null,null,null,0,null,0]
[null,null,null,null,null,null,null,null,null,null,0,null,0]
[null,null,null,null,null,null,null,null,null,null,0,null,0]
[null,null,null,null,null,null,null,null,null,null,0,null,0]
[null,null,null,null,null,null,null,null,null,null,0,null,0]
[null,null,null,null,null,null,null,null,null,null,0,null,0]
[null,null,null,null,null,null,null,null,null,null,0,null,0]
[null,null,null,null,null,null,null,null,null,null,0,null,0]
[null,null,null,null,null,null,null,null,null,null,0,null,0]
[null,null,null,null,null,null,null,null,null,null,0,null,0]
[null,null,null,null,null,null,null,null,null,null,0,null,0]
[null,null,null,null,null,null,null,null,null,null,0,null,0]
[null,null,null,null,null,null,null,null,null,null,{"$f":"J6597*G6597","v":0},null,{"$f":"L6597*G6597","v":0}]
[null,null,null,null,null,null,null,null,null,null,0,null,0]
[null,null,null,null,null,null,null,null,null,null,0,null,0]
[null,null,null,null,null,null,null,null,null,null,0,null,0]
[null,null,null,null,null,null,null,null,null,null,0,null,0]
[null,null,null,null,null,null,null,null,null,null,0,null,0]
[null,null,null,null,null,null,null,null,null,null,0,null,0]
[null,null,null,null,null,null,null,null,null,null,0,null,0]
[null,null,null,null,null,null,null,null,null,null,0,null,0]
[null,null,null,null,null,null,null,null,null,null,0,null,0]
[null,null,null,null,null,null,null,null,null,null,0,null,0]
[null,null,null,null,null,null,null,null,null,null,0,null,0]
[null,null,null,null,null,null,null,null,null,null,0,null,0]
[null,null,null,null,null,null,null,null,null,null,0,null,0]
[null,null,null,null,null,null,null,null,null,null,0,null,0]
[null,null,null,null,null,null,null,null,null,null,0,null,0]
[null,null,null,null,null,null,null,null,null,null,0,null,0]
[null,null,null,null,null,null,null,null,null,null,0,null,0]
[null,null,null,null,null,null,null,null,null,null,0,null,0]
[null,null,null,null,null,null,null,null,null,null,0,null,0]
[null,null,null,null,null,null,null,null,null,null,0,null,0]
[null,null,null,null,null,null,null,null,null,null,0,null,0]
[null,null,null,null,null,null,null,null,null,null,0,null,0]
[null,null,null,null,null,null,null,null,null,null,0,null,0]
[null,null,null,null,null,null,null,null,null,null,0,null,0]
[null,null,null,null,null,null,null,null,null,null,0,null,0]
[null,null,null,null,null,null,null,null,null,null,0,null,0]
[null,null,null,null,null,null,null,null,null,null,0,null,0]
[null,null,null,null,null,null,null,null,null,null,0,null,0]
[null,null,null,null,null,null,null,null,null,null,0,null,0]
[null,null,null,null,null,null,null,null,null,null,0,null,0]
[null,null,null,null,null,null,null,null,null,null,0,null,0]
[null,null,null,null,null,null,null,null,null,null,0,null,0]
[null,null,null,null,null,null,null,null,null,null,0,null,0]
[null,null,null,null,null,null,null,null,null,null,0,null,0]
[null,null,null,null,null,null,null,null,null,null,0,null,0]
[null,null,null,null,null,null,null,null,null,null,0,null,0]
[null,null,null,null,null,null,null,null,null,null,0,null,0]
[null,null,null,null,null,null,null,null,null,null,0,null,0]
[null,null,null,null,null,null,null,null,null,null,0,null,0]
[null,null,null,null,null,null,null,null,null,null,0,null,0]
[null,null,null,null,null,null,null,null,null,null,0,null,0]
[null,null,null,null,null,null,null,null,null,null,0,null,0]
[null,null,null,null,null,null,null,null,null,null,0,null,0]
[null,null,null,null,null,null,null,null,null,null,0,null,0]
[null,null,null,null,null,null,null,null,null,null,0,null,0]
[null,null,null,null,null,null,null,null,null,null,0,null,0]
[null,null,null,null,null,null,null,null,null,null,0,null,0]
[null,null,null,null,null,null,null,null,null,null,0,null,0]
[null,null,null,null,null,null,null,null,null,null,0,null,0]
[null,null,null,null,null,null,null,null,null,null,0,null,0]
[null,null,null,null,null,null,null,null,null,null,0,null,0]
[null,null,null,null,null,null,null,null,null,null,0,null,0]
[null,null,null,null,null,null,null,null,null,null,0,null,0]
[null,null,null,null,null,null,null,null,null,null,0,null,0]
[null,null,null,null,null,null,null,null,null,null,0,null,0]
[null,null,null,null,null,null,null,null,null,null,0,null,0]
[null,null,null,null,null,null,null,null,null,null,0,null,0]
[null,null,null,null,null,null,null,null,null,null,0,null,0]
[null,null,null,null,null,null,null,null,null,null,0,null,0]
[null,null,null,null,null,null,null,null,null,null,0,null,0]
[null,null,null,null,null,null,null,null,null,null,0,null,0]
[null,null,null,null,null,null,null,null,null,null,0,null,0]
[null,null,null,null,null,null,null,null,null,null,0,null,0]
[null,null,null,null,null,null,null,null,null,null,0,null,0]
[null,null,null,null,null,null,null,null,null,null,0,null,0]
[null,null,null,null,null,null,null,null,null,null,0,null,0]
[null,null,null,null,null,null,null,null,null,null,0,null,0]
[null,null,null,null,null,null,null,null,null,null,{"$f":"J6853*G6853","v":0},null,{"$f":"L6853*G6853","v":0}]
[null,null,null,null,null,null,null,null,null,null,0,null,0]
[null,null,null,null,null,null,null,null,null,null,0,null,0]
[null,null,null,null,null,null,null,null,null,null,0,null,0]
[null,null,null,null,null,null,null,null,null,null,0,null,0]
[null,null,null,null,null,null,null,null,null,null,0,null,0]
[null,null,null,null,null,null,null,null,null,null,0,null,0]
[null,null,null,null,null,null,null,null,null,null,0,null,0]
[null,null,null,null,null,null,null,null,null,null,0,null,0]
[null,null,null,null,null,null,null,null,null,null,0,null,0]
[null,null,null,null,null,null,null,null,null,null,0,null,0]
[null,null,null,null,null,null,null,null,null,null,0,null,0]
[null,null,null,null,null,null,null,null,null,null,0,null,0]
[null,null,null,null,null,null,null,null,null,null,0,null,0]
[null,null,null,null,null,null,null,null,null,null,0,null,0]
[null,null,null,null,null,null,null,null,null,null,0,null,0]
[null,null,null,null,null,null,null,null,null,null,0,null,0]
[null,null,null,null,null,null,null,null,null,null,0,null,0]
[null,null,null,null,null,null,null,null,null,null,0,null,0]
[null,null,null,null,null,null,null,null,null,null,0,null,0]
[null,null,null,null,null,null,null,null,null,null,0,null,0]
[null,null,null,null,null,null,null,null,null,null,0,null,0]
[null,null,null,null,null,null,null,null,null,null,0,null,0]
[null,null,null,null,null,null,null,null,null,null,0,null,0]
[null,null,null,null,null,null,null,null,null,null,0,null,0]
[null,null,null,null,null,null,null,null,null,null,0,null,0]
[null,null,null,null,null,null,null,null,null,null,0,null,0]
[null,null,null,null,null,null,null,null,null,null,0,null,0]
[null,null,null,null,null,null,null,null,null,null,0,null,0]
[null,null,null,null,null,null,null,null,null,null,0,null,0]
[null,null,null,null,null,null,null,null,null,null,0,null,0]
[null,null,null,null,null,null,null,null,null,null,0,null,0]
[null,null,null,null,null,null,null,null,null,null,0,null,0]
[null,null,null,null,null,null,null,null,null,null,0,null,0]
[null,null,null,null,null,null,null,null,null,null,0,null,0]
[null,null,null,null,null,null,null,null,null,null,0,null,0]
[null,null,null,null,null,null,null,null,null,null,0,null,0]
[null,null,null,null,null,null,null,null,null,null,0,null,0]
[null,null,null,null,null,null,null,null,null,null,0,null,0]
[null,null,null,null,null,null,null,null,null,null,0,null,0]
[null,null,null,null,null,null,null,null,null,null,0,null,0]
[null,null,null,null,null,null,null,null,null,null,0,null,0]
[null,null,null,null,null,null,null,null,null,null,0,null,0]
[null,null,null,null,null,null,null,null,null,null,0,null,0]
[null,null,null,null,null,null,null,null,null,null,0,null,0]
[null,null,null,null,null,null,null,null,null,null,0,null,0]
[null,null,null,null,null,null,null,null,null,null,0,null,0]
[null,null,null,null,null,null,null,null,null,null,0,null,0]
[null,null,null,null,null,null,null,null,null,null,0,null,0]
[null,null,null,null,null,null,null,null,null,null,0,null,0]
[null,null,null,null,null,null,null,null,null,null,0,null,0]
[null,null,null,null,null,null,null,null,null,null,0,null,0]
[null,null,null,null,null,null,null,null,null,null,0,null,0]
[null,null,null,null,null,null,null,null,null,null,0,null,0]
[null,null,null,null,null,null,null,null,null,null,0,null,0]
[null,null,null,null,null,null,null,null,null,null,0,null,0]
[null,null,null,null,null,null,null,null,null,null,0,null,0]
[null,null,null,null,null,null,null,null,null,null,0,null,0]
[null,null,null,null,null,null,null,null,null,null,0,null,0]
[null,null,null,null,null,null,null,null,null,null,0,null,0]
[null,null,null,null,null,null,null,null,null,null,0,null,0]
[null,null,null,null,null,null,null,null,null,null,0,null,0]
[null,null,null,null,null,null,null,null,null,null,0,null,0]
[null,null,null,null,null,null,null,null,null,null,0,null,0]
[null,null,null,null,null,null,null,null,null,null,0,null,0]
[null,null,null,null,null,null,null,null,null,null,0,null,0]
[null,null,null,null,null,null,null,null,null,null,0,null,0]
[null,null,null,null,null,null,null,null,null,null,0,null,0]
[null,null,null,null,null,null,null,null,null,null,{"$f":"J7109*G7109","v":0},null,{"$f":"L7109*G7109","v":0}]
[null,null,null,null,null,null,null,null,null,null,0,null,0]
[null,null,null,null,null,null,null,null,null,null,0,null,0]
[null,null,null,null,null,null,null,null,null,null,0,null,0]
[null,null,null,null,null,null,null,null,null,null,0,null,0]
[null,null,null,null,null,null,null,null,null,null,0,null,0]
[null,null,null,null,null,null,null,null,null,null,0,null,0]
[null,null,null,null,null,null,null,null,null,null,0,null,0]
[null,null,null,null,null,null,null,null,null,null,0,null,0]
[null,null,null,null,null,null,null,null,null,null,0,null,0]
[null,null,null,null,null,null,null,null,null,null,0,null,0]
[null,null,null,null,null,null,null,null,null,null,0,null,0]
[null,null,null,null,null,null,null,null,null,null,0,null,0]
[null,null,null,null,null,null,null,null,null,null,0,null,0]
[null,null,null,null,null,null,null,null,null,null,0,null,0]
[null,null,null,null,null,null,null,null,null,null,0,null,0]
[null,null,null,null,null,null,null,null,null,null,0,null,0]
[null,null,null,null,null,null,null,null,null,null,0,null,0]
[null,null,null,null,null,null,null,null,null,null,0,null,0]
[null,null,null,null,null,null,null,null,null,null,0,null,0]
[null,null,null,null,null,null,null,null,null,null,0,null,0]
[null,null,null,null,null,null,null,null,null,null,0,null,0]
[null,null,null,null,null,null,null,null,null,null,0,null,0]
[null,null,null,null,null,null,null,null,null,null,0,null,0]
[null,null,null,null,null,null,null,null,null,null,0,null,0]
[null,null,null,null,null,null,null,null,null,null,0,null,0]
[null,null,null,null,null,null,null,null,null,null,0,null,0]
[null,null,null,null,null,null,null,null,null,null,0,null,0]
[null,null,null,null,null,null,null,null,null,null,0,null,0]
[null,null,null,null,null,null,null,null,null,null,0,null,0]
[null,null,null,null,null,null,null,null,null,null,0,null,0]
[null,null,null,null,null,null,null,null,null,null,0,null,0]
[null,null,null,null,null,null,null,null,null,null,0,null,0]
[null,null,null,null,null,null,null,null,null,null,0,null,0]
[null,null,null,null,null,null,null,null,null,null,0,null,0]
[null,null,null,null,null,null,null,null,null,null,0,null,0]
[null,null,null,null,null,null,null,null,null,null,0,null,0]
[null,null,null,null,null,null,null,null,null,null,0,null,0]
[null,null,null,null,null,null,null,null,null,null,0,null,0]
[null,null,null,null,null,null,null,null,null,null,0,null,0]
[null,null,null,null,null,null,null,null,null,null,0,null,0]
[null,null,null,null,null,null,null,null,null,null,0,null,0]
[null,null,null,null,null,null,null,null,null,null,0,null,0]
[null,null,null,null,null,null,null,null,null,null,0,null,0]
[null,null,null,null,null,null,null,null,null,null,0,null,0]
[null,null,null,null,null,null,null,null,null,null,0,null,0]
[null,null,null,null,null,null,null,null,null,null,0,null,0]
[null,null,null,null,null,null,null,null,null,null,0,null,0]
[null,null,null,null,null,null,null,null,null,null,0,null,0]
[null,null,null,null,null,null,null,null,null,null,0,null,0]
[null,null,null,null,null,null,null,null,null,null,0,null,0]
[null,null,null,null,null,null,null,null,null,null,0,null,0]
[null,null,null,null,null,null,null,null,null,null,0,null,0]
[null,null,null,null,null,null,null,null,null,null,0,null,0]
[null,null,null,null,null,null,null,null,null,null,0,null,0]
[null,null,null,null,null,null,null,null,null,null,0,null,0]
[null,null,null,null,null,null,null,null,null,null,0,null,0]
[null,null,null,null,null,null,null,null,null,null,0,null,0]
[null,null,null,null,null,null,null,null,null,null,0,null,0]
[null,null,null,null,null,null,null,null,null,null,0,null,0]
[null,null,null,null,null,null,null,null,null,null,0,null,0]
[null,null,null,null,null,null,null,null,null,null,0,null,0]
[null,null,null,null,null,null,null,null,null,null,0,null,0]
[null,null,null,null,null,null,null,null,null,null,0,null,0]
[null,null,null,null,null,null,null,null,null,null,0,null,0]
[null,null,null,null,null,null,null,null,null,null,0,null,0]
[null,null,null,null,null,null,null,null,null,null,0,null,0]
[null,null,null,null,null,null,null,null,null,null,0,null,0]
[null,null,null,null,null,null,null,null,null,null,0,null,0]
[null,null,null,null,null,null,null,null,null,null,{"$f":"J7365*G7365","v":0},null,{"$f":"L7365*G7365","v":0}]
[null,null,null,null,null,null,null,null,null,null,0,null,0]
[null,null,null,null,null,null,null,null,null,null,0,null,0]
[null,null,null,null,null,null,null,null,null,null,0,null,0]
[null,null,null,null,null,null,null,null,null,null,0,null,0]
[null,null,null,null,null,null,null,null,null,null,0,null,0]
[null,null,null,null,null,null,null,null,null,null,0,null,0]
[null,null,null,null,null,null,null,null,null,null,0,null,0]
[null,null,null,null,null,null,null,null,null,null,0,null,0]
[null,null,null,null,null,null,null,null,null,null,0,null,0]
[null,null,null,null,null,null,null,null,null,null,0,null,0]
[null,null,null,null,null,null,null,null,null,null,0,null,0]
[null,null,null,null,null,null,null,null,null,null,0,null,0]
[null,null,null,null,null,null,null,null,null,null,0,null,0]
[null,null,null,null,null,null,null,null,null,null,0,null,0]
[null,null,null,null,null,null,null,null,null,null,0,null,0]
[null,null,null,null,null,null,null,null,null,null,0,null,0]
[null,null,null,null,null,null,null,null,null,null,0,null,0]
[null,null,null,null,null,null,null,null,null,null,0,null,0]
[null,null,null,null,null,null,null,null,null,null,0,null,0]
[null,null,null,null,null,null,null,null,null,null,0,null,0]
[null,null,null,null,null,null,null,null,null,null,0,null,0]
[null,null,null,null,null,null,null,null,null,null,0,null,0]
[null,null,null,null,null,null,null,null,null,null,0,null,0]
[null,null,null,null,null,null,null,null,null,null,0,null,0]
[null,null,null,null,null,null,null,null,null,null,0,null,0]
[null,null,null,null,null,null,null,null,null,null,0,null,0]
[null,null,null,null,null,null,null,null,null,null,0,null,0]
[null,null,null,null,null,null,null,null,null,null,0,null,0]
[null,null,null,null,null,null,null,null,null,null,0,null,0]
[null,null,null,null,null,null,null,null,null,null,0,null,0]
[null,null,null,null,null,null,null,null,null,null,0,null,0]
[null,null,null,null,null,null,null,null,null,null,0,null,0]
[null,null,null,null,null,null,null,null,null,null,0,null,0]
[null,null,null,null,null,null,null,null,null,null,0,null,0]
[null,null,null,null,null,null,null,null,null,null,0,null,0]
[null,null,null,null,null,null,null,null,null,null,0,null,0]
[null,null,null,null,null,null,null,null,null,null,0,null,0]
[null,null,null,null,null,null,null,null,null,null,0,null,0]
[null,null,null,null,null,null,null,null,null,null,0,null,0]
[null,null,null,null,null,null,null,null,null,null,0,null,0]
[null,null,null,null,null,null,null,null,null,null,0,null,0]
[null,null,null,null,null,null,null,null,null,null,0,null,0]
[null,null,null,null,null,null,null,null,null,null,0,null,0]
[null,null,null,null,null,null,null,null,null,null,0,null,0]
[null,null,null,null,null,null,null,null,null,null,0,null,0]
[null,null,null,null,null,null,null,null,null,null,0,null,0]
[null,null,null,null,null,null,null,null,null,null,0,null,0]
[null,null,null,null,null,null,null,null,null,null,0,null,0]
[null,null,null,null,null,null,null,null,null,null,0,null,0]
[null,null,null,null,null,null,null,null,null,null,0,null,0]
[null,null,null,null,null,null,null,null,null,null,0,null,0]
[null,null,null,null,null,null,null,null,null,null,0,null,0]
[null,null,null,null,null,null,null,null,null,null,0,null,0]
[null,null,null,null,null,null,null,null,null,null,0,null,0]
[null,null,null,null,null,null,null,null,null,null,0,null,0]
[null,null,null,null,null,null,null,null,null,null,0,null,0]
[null,null,null,null,null,null,null,null,null,null,0,null,0]
[null,null,null,null,null,null,null,null,null,null,0,null,0]
[null,null,null,null,null,null,null,null,null,null,0,null,0]
[null,null,null,null,null,null,null,null,null,null,0,null,0]
[null,null,null,null,null,null,null,null,null,null,0,null,0]
[null,null,null,null,null,null,null,null,null,null,0,null,0]
[null,null,null,null,null,null,null,null,null,null,0,null,0]
[null,null,null,null,null,null,null,null,null,null,0,null,0]
[null,null,null,null,null,null,null,null,null,null,0,null,0]
[null,null,null,null,null,null,null,null,null,null,0,null,0]
[null,null,null,null,null,null,null,null,null,null,0,null,0]
[null,null,null,null,null,null,null,null,null,null,{"$f":"J7621*G7621","v":0},null,{"$f":"L7621*G7621","v":0}]
[null,null,null,null,null,null,null,null,null,null,0,null,0]
[null,null,null,null,null,null,null,null,null,null,0,null,0]
[null,null,null,null,null,null,null,null,null,null,0,null,0]
[null,null,null,null,null,null,null,null,null,null,0,null,0]
[null,null,null,null,null,null,null,null,null,null,0,null,0]
[null,null,null,null,null,null,null,null,null,null,0,null,0]
[null,null,null,null,null,null,null,null,null,null,0,null,0]
[null,null,null,null,null,null,null,null,null,null,0,null,0]
[null,null,null,null,null,null,null,null,null,null,0,null,0]
[null,null,null,null,null,null,null,null,null,null,0,null,0]
[null,null,null,null,null,null,null,null,null,null,0,null,0]
[null,null,null,null,null,null,null,null,null,null,0,null,0]
[null,null,null,null,null,null,null,null,null,null,0,null,0]
[null,null,null,null,null,null,null,null,null,null,0,null,0]
[null,null,null,null,null,null,null,null,null,null,0,null,0]
[null,null,null,null,null,null,null,null,null,null,0,null,0]
[null,null,null,null,null,null,null,null,null,null,0,null,0]
[null,null,null,null,null,null,null,null,null,null,0,null,0]
[null,null,null,null,null,null,null,null,null,null,0,null,0]
[null,null,null,null,null,null,null,null,null,null,0,null,0]
[null,null,null,null,null,null,null,null,null,null,0,null,0]
[null,null,null,null,null,null,null,null,null,null,0,null,0]
[null,null,null,null,null,null,null,null,null,null,0,null,0]
[null,null,null,null,null,null,null,null,null,null,0,null,0]
[null,null,null,null,null,null,null,null,null,null,0,null,0]
[null,null,null,null,null,null,null,null,null,null,0,null,0]
[null,null,null,null,null,null,null,null,null,null,0,null,0]
[null,null,null,null,null,null,null,null,null,null,0,null,0]
[null,null,null,null,null,null,null,null,null,null,0,null,0]
[null,null,null,null,null,null,null,null,null,null,0,null,0]
[null,null,null,null,null,null,null,null,null,null,0,null,0]
[null,null,null,null,null,null,null,null,null,null,0,null,0]
[null,null,null,null,null,null,null,null,null,null,0,null,0]
[null,null,null,null,null,null,null,null,null,null,0,null,0]
[null,null,null,null,null,null,null,null,null,null,0,null,0]
[null,null,null,null,null,null,null,null,null,null,0,null,0]
[null,null,null,null,null,null,null,null,null,null,0,null,0]
[null,null,null,null,null,null,null,null,null,null,0,null,0]
[null,null,null,null,null,null,null,null,null,null,0,null,0]
[null,null,null,null,null,null,null,null,null,null,0,null,0]
[null,null,null,null,null,null,null,null,null,null,0,null,0]
[null,null,null,null,null,null,null,null,null,null,0,null,0]
[null,null,null,null,null,null,null,null,null,null,0,null,0]
[null,null,null,null,null,null,null,null,null,null,0,null,0]
[null,null,null,null,null,null,null,null,null,null,0,null,0]
[null,null,null,null,null,null,null,null,null,null,0,null,0]
[null,null,null,null,null,null,null,null,null,null,0,null,0]
[null,null,null,null,null,null,null,null,null,null,0,null,0]
[null,null,null,null,null,null,null,null,null,null,0,null,0]
[null,null,null,null,null,null,null,null,null,null,0,null,0]
[null,null,null,null,null,null,null,null,null,null,{"$f":"J7813*G7813","v":0},null,{"$f":"L7813*G7813","v":0}]
[null,null,null,null,null,null,null,null,null,null,0,null,0]
[null,null,null,null,null,null,null,null,null,null,0,null,0]
[null,null,null,null,null,null,null,null,null,null,0,null,0]
[null,null,null,null,null,null,null,null,null,null,0,null,0]
[null,null,null,null,null,null,null,null,null,null,0,null,0]
[null,null,null,null,null,null,null,null,null,null,0,null,0]
[null,null,null,null,null,null,null,null,null,null,0,null,0]
[null,null,null,null,null,null,null,null,null,null,0,null,0]
[null,null,null,null,null,null,null,null,null,null,0,null,0]
[null,null,null,null,null,null,null,null,null,null,0,null,0]
[null,null,null,null,null,null,null,null,null,null,0,null,0]
[null,null,null,null,null,null,null,null,null,null,0,null,0]
[null,null,null,null,null,null,null,null,null,null,0,null,0]
[null,null,null,null,null,null,null,null,null,null,0,null,0]
[null,null,null,null,null,null,null,null,null,null,0,null,0]
[null,null,null,null,null,null,null,null,null,null,0,null,0]
[null,null,null,null,null,null,null,null,null,null,0,null,0]
[null,null,null,null,null,null,null,null,null,null,0,null,0]
[null,null,null,null,null,null,null,null,null,null,0,null,0]
[null,null,null,null,null,null,null,null,null,null,0,null,0]
[null,null,null,null,null,null,null,null,null,null,0,null,0]
[null,null,null,null,null,null,null,null,null,null,0,null,0]
[null,null,null,null,null,null,null,null,null,null,0,null,0]
[null,null,null,null,null,null,null,null,null,null,0,null,0]
[null,null,null,null,null,null,null,null,null,null,0,null,0]
[null,null,null,null,null,null,null,null,null,null,0,null,0]
[null,null,null,null,null,null,null,null,null,null,0,null,0]
[null,null,null,null,null,null,null,null,null,null,0,null,0]
[null,null,null,null,null,null,null,null,null,null,0,null,0]
[null,null,null,null,null,null,null,null,null,null,0,null,0]
[null,null,null,null,null,null,null,null,null,null,0,null,0]
[null,null,null,null,null,null,null,null,null,null,0,null,0]
[null,null,null,null,null,null,null,null,null,null,0,null,0]
[null,null,null,null,null,null,null,null,null,null,0,null,0]
[null,null,null,null,null,null,null,null,null,null,0,null,0]
[null,null,null,null,null,null,null,null,null,null,0,null,0]
[null,null,null,null,null,null,null,null,null,null,0,null,0]
[null,null,null,null,null,null,null,null,null,null,0,null,0]
[null,null,null,null,null,null,null,null,null,null,0,null,0]
[null,null,null,null,null,null,null,null,null,null,0,null,0]
[null,null,null,null,null,null,null,null,null,null,0,null,0]
[null,null,null,null,null,null,null,null,null,null,0,null,0]
[null,null,null,null,null,null,null,null,null,null,0,null,0]
[null,null,null,null,null,null,null,null,null,null,0,null,0]
[null,null,null,null,null,null,null,null,null,null,0,null,0]
[null,null,null,null,null,null,null,null,null,null,0,null,0]
[null,null,null,null,null,null,null,null,null,null,0,null,0]
[null,null,null,null,null,null,null,null,null,null,0,null,0]
[null,null,null,null,null,null,null,null,null,null,0,null,0]
[null,null,null,null,null,null,null,null,null,null,0,null,0]
[null,null,null,null,null,null,null,null,null,null,0,null,0]
[null,null,null,null,null,null,null,null,null,null,0,null,0]
[null,null,null,null,null,null,null,null,null,null,0,null,0]
[null,null,null,null,null,null,null,null,null,null,0,null,0]
[null,null,null,null,null,null,null,null,null,null,0,null,0]
[null,null,null,null,null,null,null,null,null,null,0,null,0]
[null,null,null,null,null,null,null,null,null,null,0,null,0]
[null,null,null,null,null,null,null,null,null,null,0,null,0]
[null,null,null,null,null,null,null,null,null,null,0,null,0]
[null,null,null,null,null,null,null,null,null,null,0,null,0]
[null,null,null,null,null,null,null,null,null,null,0,null,0]
[null,null,null,null,null,null,null,null,null,null,0,null,0]
[null,null,null,null,null,null,null,null,null,null,0,null,0]
[null,null,null,null,null,null,null,null,null,null,0,null,0]
[null,null,null,null,null,null,null,null,null,null,0,null,0]
[null,null,null,null,null,null,null,null,null,null,0,null,0]
[null,null,null,null,null,null,null,null,null,null,0,null,0]
[null,null,null,null,null,null,null,null,null,null,0,null,0]
[null,null,null,null,null,null,null,null,null,null,0,null,0]
[null,null,null,null,null,null,null,null,null,null,0,null,0]
[null,null,null,null,null,null,null,null,null,null,0,null,0]
[null,null,null,null,null,null,null,null,null,null,0,null,0]
[null,null,null,null,null,null,null,null,null,null,0,null,0]
[null,null,null,null,null,null,null,null,null,null,0,null,0]
[null,null,null,null,null,null,null,null,null,null,0,null,0]
[null,null,null,null,null,null,null,null,null,null,0,null,0]
[null,null,null,null,null,null,null,null,null,null,0,null,0]
[null,null,null,null,null,null,null,null,null,null,0,null,0]
[null,null,null,null,null,null,null,null,null,null,0,null,0]
[null,null,null,null,null,null,null,null,null,null,0,null,0]
[null,null,null,null,null,null,null,null,null,null,0,null,0]
[null,null,null,null,null,null,null,null,null,null,0,null,0]
[null,null,null,null,null,null,null,null,null,null,0,null,0]
[null,null,null,null,null,null,null,null,null,null,0,null,0]
[null,null,null,null,null,null,null,null,null,null,0,null,0]
[null,null,null,null,null,null,null,null,null,null,0,null,0]
[null,null,null,null,null,null,null,null,null,null,0,null,0]
[null,null,null,null,null,null,null,null,null,null,0,null,0]
[null,null,null,null,null,null,null,null,null,null,0,null,0]
[null,null,null,null,null,null,null,null,null,null,0,null,0]
[null,null,null,null,null,null,null,null,null,null,0,null,0]
[null,null,null,null,null,null,null,null,null,null,0,null,0]
[null,null,null,null,null,null,null,null,null,null,0,null,0]
[null,null,null,null,null,null,null,null,null,null,0,null,0]
[null,null,null,null,null,null,null,null,null,null,0,null,0]
[null,null,null,null,null,null,null,null,null,null,0,null,0]
[null,null,null,null,null,null,null,null,null,null,0,null,0]
[null,null,null,null,null,null,null,null,null,null,0,null,0]
[null,null,null,null,null,null,null,null,null,null,0,null,0]
[null,null,null,null,null,null,null,null,null,null,0,null,0]
[null,null,null,null,null,null,null,null,null,null,0,null,0]
[null,null,null,null,null,null,null,null,null,null,{"$f":"J8197*G8197","v":0},null,{"$f":"L8197*G8197","v":0}]
[null,null,null,null,null,null,null,null,null,null,0,null,0]
[null,null,null,null,null,null,null,null,null,null,0,null,0]
[null,null,null,null,null,null,null,null,null,null,0,null,0]
[null,null,null,null,null,null,null,null,null,null,0,null,0]
[null,null,null,null,null,null,null,null,null,null,0,null,0]
[null,null,null,null,null,null,null,null,null,null,0,null,0]
[null,null,null,null,null,null,null,null,null,null,0,null,0]
[null,null,null,null,null,null,null,null,null,null,0,null,0]
[null,null,null,null,null,null,null,null,null,null,0,null,0]
[null,null,null,null,null,null,null,null,null,null,0,null,0]
[null,null,null,null,null,null,null,null,null,null,0,null,0]
[null,null,null,null,null,null,null,null,null,null,0,null,0]
[null,null,null,null,null,null,null,null,null,null,0,null,0]
[null,null,null,null,null,null,null,null,null,null,0,null,0]
[null,null,null,null,null,null,null,null,null,null,0,null,0]
[null,null,null,null,null,null,null,null,null,null,0,null,0]
[null,null,null,null,null,null,null,null,null,null,0,null,0]
[null,null,null,null,null,null,null,null,null,null,0,null,0]
[null,null,null,null,null,null,null,null,null,null,0,null,0]
[null,null,null,null,null,null,null,null,null,null,0,null,0]
[null,null,null,null,null,null,null,null,null,null,0,null,0]
[null,null,null,null,null,null,null,null,null,null,0,null,0]
[null,null,null,null,null,null,null,null,null,null,0,null,0]
[null,null,null,null,null,null,null,null,null,null,0,null,0]
[null,null,null,null,null,null,null,null,null,null,0,null,0]
[null,null,null,null,null,null,null,null,null,null,0,null,0]
[null,null,null,null,null,null,null,null,null,null,0,null,0]
[null,null,null,null,null,null,null,null,null,null,0,null,0]
[null,null,null,null,null,null,null,null,null,null,0,null,0]
[null,null,null,null,null,null,null,null,null,null,0,null,0]
[null,null,null,null,null,null,null,null,null,null,0,null,0]
[null,null,null,null,null,null,null,null,null,null,0,null,0]
[null,null,null,null,null,null,null,null,null,null,0,null,0]
[null,null,null,null,null,null,null,null,null,null,0,null,0]
[null,null,null,null,null,null,null,null,null,null,0,null,0]
[null,null,null,null,null,null,null,null,null,null,0,null,0]
[null,null,null,null,null,null,null,null,null,null,0,null,0]
[null,null,null,null,null,null,null,null,null,null,0,null,0]
[null,null,null,null,null,null,null,null,null,null,0,null,0]
[null,null,null,null,null,null,null,null,null,null,0,null,0]
[null,null,null,null,null,null,null,null,null,null,0,null,0]
[null,null,null,null,null,null,null,null,null,null,0,null,0]
[null,null,null,null,null,null,null,null,null,null,0,null,0]
[null,null,null,null,null,null,null,null,null,null,0,null,0]
[null,null,null,null,null,null,null,null,null,null,0,null,0]
[null,null,null,null,null,null,null,null,null,null,0,null,0]
[null,null,null,null,null,null,null,null,null,null,0,null,0]
[null,null,null,null,null,null,null,null,null,null,0,null,0]
[null,null,null,null,null,null,null,null,null,null,0,null,0]
[null,null,null,null,null,null,null,null,null,null,0,null,0]
[null,null,null,null,null,null,null,null,null,null,0,null,0]
[null,null,null,null,null,null,null,null,null,null,0,null,0]
[null,null,null,null,null,null,null,null,null,null,0,null,0]
[null,null,null,null,null,null,null,null,null,null,0,null,0]
[null,null,null,null,null,null,null,null,null,null,0,null,0]
[null,null,null,null,null,null,null,null,null,null,0,null,0]
[null,null,null,null,null,null,null,null,null,null,0,null,0]
[null,null,null,null,null,null,null,null,null,null,0,null,0]
[null,null,null,null,null,null,null,null,null,null,0,null,0]
[null,null,null,null,null,null,null,null,null,null,0,null,0]
[null,null,null,null,null,null,null,null,null,null,0,null,0]
[null,null,null,null,null,null,null,null,null,null,0,null,0]
[null,null,null,null,null,null,null,null,null,null,0,null,0]
[null,null,null,null,null,null,null,null,null,null,0,null,0]
[null,null,null,null,null,null,null,null,null,null,0,null,0]
[null,null,null,null,null,null,null,null,null,null,0,null,0]
[null,null,null,null,null,null,null,null,null,null,0,null,0]
[null,null,null,null,null,null,null,null,null,null,{"$f":"J8453*G8453","v":0},null,{"$f":"L8453*G8453","v":0}]
[null,null,null,null,null,null,null,null,null,null,0,null,0]
[null,null,null,null,null,null,null,null,null,null,0,null,0]
[null,null,null,null,null,null,null,null,null,null,0,null,0]
[null,null,null,null,null,null,null,null,null,null,0,null,0]
[null,null,null,null,null,null,null,null,null,null,0,null,0]
[null,null,null,null,null,null,null,null,null,null,0,null,0]
[null,null,null,null,null,null,null,null,null,null,0,null,0]
[null,null,null,null,null,null,null,null,null,null,0,null,0]
[null,null,null,null,null,null,null,null,null,null,0,null,0]
[null,null,null,null,null,null,null,null,null,null,0,null,0]
[null,null,null,null,null,null,null,null,null,null,0,null,0]
[null,null,null,null,null,null,null,null,null,null,0,null,0]
[null,null,null,null,null,null,null,null,null,null,0,null,0]
[null,null,null,null,null,null,null,null,null,null,0,null,0]
[null,null,null,null,null,null,null,null,null,null,0,null,0]
[null,null,null,null,null,null,null,null,null,null,0,null,0]
[null,null,null,null,null,null,null,null,null,null,0,null,0]
[null,null,null,null,null,null,null,null,null,null,0,null,0]
[null,null,null,null,null,null,null,null,null,null,0,null,0]
[null,null,null,null,null,null,null,null,null,null,0,null,0]
[null,null,null,null,null,null,null,null,null,null,0,null,0]
[null,null,null,null,null,null,null,null,null,null,0,null,0]
[null,null,null,null,null,null,null,null,null,null,0,null,0]
[null,null,null,null,null,null,null,null,null,null,0,null,0]
[null,null,null,null,null,null,null,null,null,null,0,null,0]
[null,null,null,null,null,null,null,null,null,null,0,null,0]
[null,null,null,null,null,null,null,null,null,null,0,null,0]
[null,null,null,null,null,null,null,null,null,null,0,null,0]
[null,null,null,null,null,null,null,null,null,null,0,null,0]
[null,null,null,null,null,null,null,null,null,null,0,null,0]
[null,null,null,null,null,null,null,null,null,null,0,null,0]
[null,null,null,null,null,null,null,null,null,null,0,null,0]
[null,null,null,null,null,null,null,null,null,null,0,null,0]
[null,null,null,null,null,null,null,null,null,null,0,null,0]
[null,null,null,null,null,null,null,null,null,null,0,null,0]
[null,null,null,null,null,null,null,null,null,null,0,null,0]
[null,null,null,null,null,null,null,null,null,null,0,null,0]
[null,null,null,null,null,null,null,null,null,null,0,null,0]
[null,null,null,null,null,null,null,null,null,null,0,null,0]
[null,null,null,null,null,null,null,null,null,null,0,null,0]
[null,null,null,null,null,null,null,null,null,null,0,null,0]
[null,null,null,null,null,null,null,null,null,null,0,null,0]
[null,null,null,null,null,null,null,null,null,null,0,null,0]
[null,null,null,null,null,null,null,null,null,null,0,null,0]
[null,null,null,null,null,null,null,null,null,null,0,null,0]
[null,null,null,null,null,null,null,null,null,null,0,null,0]
[null,null,null,null,null,null,null,null,null,null,0,null,0]
[null,null,null,null,null,null,null,null,null,null,0,null,0]
[null,null,null,null,null,null,null,null,null,null,0,null,0]
[null,null,null,null,null,null,null,null,null,null,0,null,0]
[null,null,null,null,null,null,null,null,null,null,0,null,0]
[null,null,null,null,null,null,null,null,null,null,0,null,0]
[null,null,null,null,null,null,null,null,null,null,0,null,0]
[null,null,null,null,null,null,null,null,null,null,0,null,0]
[null,null,null,null,null,null,null,null,null,null,0,null,0]
[null,null,null,null,null,null,null,null,null,null,0,null,0]
[null,null,null,null,null,null,null,null,null,null,0,null,0]
[null,null,null,null,null,null,null,null,null,null,0,null,0]
[null,null,null,null,null,null,null,null,null,null,0,null,0]
[null,null,null,null,null,null,null,null,null,null,0,null,0]
[null,null,null,null,null,null,null,null,null,null,0,null,0]
[null,null,null,null,null,null,null,null,null,null,0,null,0]
[null,null,null,null,null,null,null,null,null,null,0,null,0]
[null,null,null,null,null,null,null,null,null,null,0,null,0]
[null,null,null,null,null,null,null,null,null,null,0,null,0]
[null,null,null,null,null,null,null,null,null,null,0,null,0]
[null,null,null,null,null,null,null,null,null,null,0,null,0]
[null,null,null,null,null,null,null,null,null,null,0,null,0]
[null,null,null,null,null,null,null,null,null,null,0,null,0]
[null,null,null,null,null,null,null,null,null,null,0,null,0]
[null,null,null,null,null,null,null,null,null,null,0,null,0]
[null,null,null,null,null,null,null,null,null,null,0,null,0]
[null,null,null,null,null,null,null,null,null,null,0,null,0]
[null,null,null,null,null,null,null,null,null,null,0,null,0]
[null,null,null,null,null,null,null,null,null,null,0,null,0]
[null,null,null,null,null,null,null,null,null,null,0,null,0]
[null,null,null,null,null,null,null,null,null,null,0,null,0]
[null,null,null,null,null,null,null,null,null,null,0,null,0]
[null,null,null,null,null,null,null,null,null,null,0,null,0]
[null,null,null,null,null,null,null,null,null,null,0,null,0]
[null,null,null,null,null,null,null,null,null,null,0,null,0]
[null,null,null,null,null,null,null,null,null,null,0,null,0]
[null,null,null,null,null,null,null,null,null,null,0,null,0]
[null,null,null,null,null,null,null,null,null,null,0,null,0]
[null,null,null,null,null,null,null,null,null,null,{"$f":"J8773*G8773","v":0},null,{"$f":"L8773*G8773","v":0}]
[null,null,null,null,null,null,null,null,null,null,0,null,0]
[null,null,null,null,null,null,null,null,null,null,0,null,0]
[null,null,null,null,null,null,null,null,null,null,0,null,0]
[null,null,null,null,null,null,null,null,null,null,0,null,0]
[null,null,null,null,null,null,null,null,null,null,0,null,0]
[null,null,null,null,null,null,null,null,null,null,0,null,0]
[null,null,null,null,null,null,null,null,null,null,0,null,0]
[null,null,null,null,null,null,null,null,null,null,0,null,0]
[null,null,null,null,null,null,null,null,null,null,0,null,0]
[null,null,null,null,null,null,null,null,null,null,0,null,0]
[null,null,null,null,null,null,null,null,null,null,0,null,0]
[null,null,null,null,null,null,null,null,null,null,0,null,0]
[null,null,null,null,null,null,null,null,null,null,0,null,0]
[null,null,null,null,null,null,null,null,null,null,0,null,0]
[null,null,null,null,null,null,null,null,null,null,0,null,0]
[null,null,null,null,null,null,null,null,null,null,0,null,0]
[null,null,null,null,null,null,null,null,null,null,0,null,0]
[null,null,null,null,null,null,null,null,null,null,0,null,0]
[null,null,null,null,null,null,null,null,null,null,0,null,0]
[null,null,null,null,null,null,null,null,null,null,0,null,0]
[null,null,null,null,null,null,null,null,null,null,0,null,0]
[null,null,null,null,null,null,null,null,null,null,0,null,0]
[null,null,null,null,null,null,null,null,null,null,0,null,0]
[null,null,null,null,null,null,null,null,null,null,0,null,0]
[null,null,null,null,null,null,null,null,null,null,0,null,0]
[null,null,null,null,null,null,null,null,null,null,0,null,0]
[null,null,null,null,null,null,null,null,null,null,0,null,0]
[null,null,null,null,null,null,null,null,null,null,0,null,0]
[null,null,null,null,null,null,null,null,null,null,0,null,0]
[null,null,null,null,null,null,null,null,null,null,0,null,0]
[null,null,null,null,null,null,null,null,null,null,0,null,0]
[null,null,null,null,null,null,null,null,null,null,0,null,0]
[null,null,null,null,null,null,null,null,null,null,0,null,0]
[null,null,null,null,null,null,null,null,null,null,0,null,0]
[null,null,null,null,null,null,null,null,null,null,0,null,0]
[null,null,null,null,null,null,null,null,null,null,0,null,0]
[null,null,null,null,null,null,null,null,null,null,0,null,0]
[null,null,null,null,null,null,null,null,null,null,0,null,0]
[null,null,null,null,null,null,null,null,null,null,0,null,0]
[null,null,null,null,null,null,null,null,null,null,0,null,0]
[null,null,null,null,null,null,null,null,null,null,0,null,0]
[null,null,null,null,null,null,null,null,null,null,0,null,0]
[null,null,null,null,null,null,null,null,null,null,0,null,0]
[null,null,null,null,null,null,null,null,null,null,0,null,0]
[null,null,null,null,null,null,null,null,null,null,0,null,0]
[null,null,null,null,null,null,null,null,null,null,0,null,0]
[null,null,null,null,null,null,null,null,null,null,0,null,0]
[null,null,null,null,null,null,null,null,null,null,0,null,0]
[null,null,null,null,null,null,null,null,null,null,0,null,0]
[null,null,null,null,null,null,null,null,null,null,0,null,0]
[null,null,null,null,null,null,null,null,null,null,0,null,0]
[null,null,null,null,null,null,null,null,null,null,0,null,0]
[null,null,null,null,null,null,null,null,null,null,0,null,0]
[null,null,null,null,null,null,null,null,null,null,0,null,0]
[null,null,null,null,null,null,null,null,null,null,0,null,0]
[null,null,null,null,null,null,null,null,null,null,0,null,0]
[null,null,null,null,null,null,null,null,null,null,0,null,0]
[null,null,null,null,null,null,null,null,null,null,0,null,0]
[null,null,null,null,null,null,null,null,null,null,0,null,0]
[null,null,null,null,null,null,null,null,null,null,0,null,0]
[null,null,null,null,null,null,null,null,null,null,0,null,0]
[null,null,null,null,null,null,null,null,null,null,0,null,0]
[null,null,null,null,null,null,null,null,null,null,0,null,0]
[null,null,null,null,null,null,null,null,null,null,0,null,0]
[null,null,null,null,null,null,null,null,null,null,0,null,0]
[null,null,null,null,null,null,null,null,null,null,0,null,0]
[null,null,null,null,null,null,null,null,null,null,0,null,0]
[null,null,null,null,null,null,null,null,null,null,{"$f":"J9029*G9029","v":0},null,{"$f":"L9029*G9029","v":0}]
[null,null,null,null,null,null,null,null,null,null,0,null,0]
[null,null,null,null,null,null,null,null,null,null,0,null,0]
[null,null,null,null,null,null,null,null,null,null,0,null,0]
[null,null,null,null,null,null,null,null,null,null,0,null,0]
[null,null,null,null,null,null,null,null,null,null,0,null,0]
[null,null,null,null,null,null,null,null,null,null,0,null,0]
[null,null,null,null,null,null,null,null,null,null,0,null,0]
[null,null,null,null,null,null,null,null,null,null,0,null,0]
[null,null,null,null,null,null,null,null,null,null,0,null,0]
[null,null,null,null,null,null,null,null,null,null,0,null,0]
[null,null,null,null,null,null,null,null,null,null,0,null,0]
[null,null,null,null,null,null,null,null,null,null,0,null,0]
[null,null,null,null,null,null,null,null,null,null,0,null,0]
[null,null,null,null,null,null,null,null,null,null,0,null,0]
[null,null,null,null,null,null,null,null,null,null,0,null,0]
[null,null,null,null,null,null,null,null,null,null,0,null,0]
[null,null,null,null,null,null,null,null,null,null,0,null,0]
[null,null,null,null,null,null,null,null,null,null,0,null,0]
[null,null,null,null,null,null,null,null,null,null,0,null,0]
[null,null,null,null,null,null,null,null,null,null,0,null,0]
[null,null,null,null,null,null,null,null,null,null,0,null,0]
[null,null,null,null,null,null,null,null,null,null,0,null,0]
[null,null,null,null,null,null,null,null,null,null,0,null,0]
[null,null,null,null,null,null,null,null,null,null,0,null,0]
[null,null,null,null,null,null,null,null,null,null,0,null,0]
[null,null,null,null,null,null,null,null,null,null,0,null,0]
[null,null,null,null,null,null,null,null,null,null,0,null,0]
[null,null,null,null,null,null,null,null,null,null,0,null,0]
[null,null,null,null,null,null,null,null,null,null,0,null,0]
[null,null,null,null,null,null,null,null,null,null,0,null,0]
[null,null,null,null,null,null,null,null,null,null,0,null,0]
[null,null,null,null,null,null,null,null,null,null,0,null,0]
[null,null,null,null,null,null,null,null,null,null,0,null,0]
[null,null,null,null,null,null,null,null,null,null,0,null,0]
[null,null,null,null,null,null,null,null,null,null,0,null,0]
[null,null,null,null,null,null,null,null,null,null,0,null,0]
[null,null,null,null,null,null,null,null,null,null,0,null,0]
[null,null,null,null,null,null,null,null,null,null,0,null,0]
[null,null,null,null,null,null,null,null,null,null,0,null,0]
[null,null,null,null,null,null,null,null,null,null,0,null,0]
[null,null,null,null,null,null,null,null,null,null,0,null,0]
[null,null,null,null,null,null,null,null,null,null,0,null,0]
[null,null,null,null,null,null,null,null,null,null,0,null,0]
[null,null,null,null,null,null,null,null,null,null,0,null,0]
[null,null,null,null,null,null,null,null,null,null,0,null,0]
[null,null,null,null,null,null,null,null,null,null,0,null,0]
[null,null,null,null,null,null,null,null,null,null,0,null,0]
[null,null,null,null,null,null,null,null,null,null,0,null,0]
[null,null,null,null,null,null,null,null,null,null,0,null,0]
[null,null,null,null,null,null,null,null,null,null,0,null,0]
[null,null,null,null,null,null,null,null,null,null,{"$f":"J9221*G9221","v":0},null,{"$f":"L9221*G9221","v":0}]
[null,null,null,null,null,null,null,null,null,null,0,null,0]
[null,null,null,null,null,null,null,null,null,null,0,null,0]
[null,null,null,null,null,null,null,null,null,null,0,null,0]
[null,null,null,null,null,null,null,null,null,null,0,null,0]
[null,null,null,null,null,null,null,null,null,null,0,null,0]
[null,null,null,null,null,null,null,null,null,null,0,null,0]
[null,null,null,null,null,null,null,null,null,null,0,null,0]
[null,null,null,null,null,null,null,null,null,null,0,null,0]
[null,null,null,null,null,null,null,null,null,null,0,null,0]
[null,null,null,null,null,null,null,null,null,null,0,null,0]
[null,null,null,null,null,null,null,null,null,null,0,null,0]
[null,null,null,null,null,null,null,null,null,null,0,null,0]
[null,null,null,null,null,null,null,null,null,null,0,null,0]
[null,null,null,null,null,null,null,null,null,null,0,null,0]
[null,null,null,null,null,null,null,null,null,null,0,null,0]
[null,null,null,null,null,null,null,null,null,null,0,null,0]
[null,null,null,null,null,null,null,null,null,null,{"$f":"J9285*G9285","v":0},null,{"$f":"L9285*G9285","v":0}]
[null,null,null,null,null,null,null,null,null,null,0,null,0]
[null,null,null,null,null,null,null,null,null,null,0,null,0]
[null,null,null,null,null,null,null,null,null,null,0,null,0]
[null,null,null,null,null,null,null,null,null,null,0,null,0]
[null,null,null,null,null,null,null,null,null,null,0,null,0]
[null,null,null,null,null,null,null,null,null,null,0,null,0]
[null,null,null,null,null,null,null,null,null,null,0,null,0]
[null,null,null,null,null,null,null,null,null,null,0,null,0]
[null,null,null,null,null,null,null,null,null,null,0,null,0]
[null,null,null,null,null,null,null,null,null,null,0,null,0]
[null,null,null,null,null,null,null,null,null,null,0,null,0]
[null,null,null,null,null,null,null,null,null,null,0,null,0]
[null,null,null,null,null,null,null,null,null,null,0,null,0]
[null,null,null,null,null,null,null,null,null,null,0,null,0]
[null,null,null,null,null,null,null,null,null,null,0,null,0]
[null,null,null,null,null,null,null,null,null,null,0,null,0]
[null,null,null,null,null,null,null,null,null,null,0,null,0]
[null,null,null,null,null,null,null,null,null,null,0,null,0]
[null,null,null,null,null,null,null,null,null,null,0,null,0]
[null,null,null,null,null,null,null,null,null,null,0,null,0]
[null,null,null,null,null,null,null,null,null,null,0,null,0]
[null,null,null,null,null,null,null,null,null,null,0,null,0]
[null,null,null,null,null,null,null,null,null,null,0,null,0]
[null,null,null,null,null,null,null,null,null,null,0,null,0]
[null,null,null,null,null,null,null,null,null,null,0,null,0]
[null,null,null,null,null,null,null,null,null,null,0,null,0]
[null,null,null,null,null,null,null,null,null,null,0,null,0]
[null,null,null,null,null,null,null,null,null,null,0,null,0]
[null,null,null,null,null,null,null,null,null,null,0,null,0]
[null,null,null,null,null,null,null,null,null,null,0,null,0]
[null,null,null,null,null,null,null,null,null,null,0,null,0]
[null,null,null,null,null,null,null,null,null,null,0,null,0]
[null,null,null,null,null,null,null,null,null,null,0,null,0]
[null,null,null,null,null,null,null,null,null,null,0,null,0]
[null,null,null,null,null,null,null,null,null,null,0,null,0]
[null,null,null,null,null,null,null,null,null,null,0,null,0]
[null,null,null,null,null,null,null,null,null,null,0,null,0]
[null,null,null,null,null,null,null,null,null,null,0,null,0]
[null,null,null,null,null,null,null,null,null,null,0,null,0]
[null,null,null,null,null,null,null,null,null,null,0,null,0]
[null,null,null,null,null,null,null,null,null,null,0,null,0]
[null,null,null,null,null,null,null,null,null,null,0,null,0]
[null,null,null,null,null,null,null,null,null,null,0,null,0]
[null,null,null,null,null,null,null,null,null,null,0,null,0]
[null,null,null,null,null,null,null,null,null,null,0,null,0]
[null,null,null,null,null,null,null,null,null,null,0,null,0]
[null,null,null,null,null,null,null,null,null,null,0,null,0]
[null,null,null,null,null,null,null,null,null,null,0,null,0]
[null,null,null,null,null,null,null,null,null,null,0,null,0]
[null,null,null,null,null,null,null,null,null,null,0,null,0]
[null,null,null,null,null,null,null,null,null,null,0,null,0]
[null,null,null,null,null,null,null,null,null,null,0,null,0]
[null,null,null,null,null,null,null,null,null,null,0,null,0]
[null,null,null,null,null,null,null,null,null,null,0,null,0]
[null,null,null,null,null,null,null,null,null,null,0,null,0]
[null,null,null,null,null,null,null,null,null,null,0,null,0]
[null,null,null,null,null,null,null,null,null,null,0,null,0]
[null,null,null,null,null,null,null,null,null,null,0,null,0]
[null,null,null,null,null,null,null,null,null,null,0,null,0]
[null,null,null,null,null,null,null,null,null,null,0,null,0]
[null,null,null,null,null,null,null,null,null,null,0,null,0]
[null,null,null,null,null,null,null,null,null,null,0,null,0]
[null,null,null,null,null,null,null,null,null,null,0,null,0]
[null,null,null,null,null,null,null,null,null,null,0,null,0]
[null,null,null,null,null,null,null,null,null,null,0,null,0]
[null,null,null,null,null,null,null,null,null,null,0,null,0]
[null,null,null,null,null,null,null,null,null,null,0,null,0]
[null,null,null,null,null,null,null,null,null,null,0,null,0]
[null,null,null,null,null,null,null,null,null,null,0,null,0]
[null,null,null,null,null,null,null,null,null,null,0,null,0]
[null,null,null,null,null,null,null,null,null,null,0,null,0]
[null,null,null,null,null,null,null,null,null,null,0,null,0]
[null,null,null,null,null,null,null,null,null,null,0,null,0]
[null,null,null,null,null,null,null,null,null,null,0,null,0]
[null,null,null,null,null,null,null,null,null,null,0,null,0]
[null,null,null,null,null,null,null,null,null,null,0,null,0]
[null,null,null,null,null,null,null,null,null,null,0,null,0]
[null,null,null,null,null,null,null,null,null,null,0,null,0]
[null,null,null,null,null,null,null,null,null,null,0,null,0]
[null,null,null,null,null,null,null,null,null,null,0,null,0]
[null,null,null,null,null,null,null,null,null,null,0,null,0]
[null,null,null,null,null,null,null,null,null,null,0,null,0]
[null,null,null,null,null,null,null,null,null,null,0,null,0]
[null,null,null,null,null,null,null,null,null,null,{"$f":"J9541*G9541","v":0},null,{"$f":"L9541*G9541","v":0}]
[null,null,null,null,null,null,null,null,null,null,0,null,0]
[null,null,null,null,null,null,null,null,null,null,0,null,0]
[null,null,null,null,null,null,null,null,null,null,0,null,0]
[null,null,null,null,null,null,null,null,null,null,0,null,0]
[null,null,null,null,null,null,null,null,null,null,0,null,0]
[null,null,null,null,null,null,null,null,null,null,0,null,0]
[null,null,null,null,null,null,null,null,null,null,0,null,0]
[null,null,null,null,null,null,null,null,null,null,0,null,0]
[null,null,null,null,null,null,null,null,null,null,0,null,0]
[null,null,null,null,null,null,null,null,null,null,0,null,0]
[null,null,null,null,null,null,null,null,null,null,0,null,0]
[null,null,null,null,null,null,null,null,null,null,0,null,0]
[null,null,null,null,null,null,null,null,null,null,0,null,0]
[null,null,null,null,null,null,null,null,null,null,0,null,0]
[null,null,null,null,null,null,null,null,null,null,0,null,0]
[null,null,null,null,null,null,null,null,null,null,0,null,0]
[null,null,null,null,null,null,null,null,null,null,0,null,0]
[null,null,null,null,null,null,null,null,null,null,0,null,0]
[null,null,null,null,null,null,null,null,null,null,0,null,0]
[null,null,null,null,null,null,null,null,null,null,0,null,0]
[null,null,null,null,null,null,null,null,null,null,0,null,0]
[null,null,null,null,null,null,null,null,null,null,0,null,0]
[null,null,null,null,null,null,null,null,null,null,0,null,0]
[null,null,null,null,null,null,null,null,null,null,0,null,0]
[null,null,null,null,null,null,null,null,null,null,0,null,0]
[null,null,null,null,null,null,null,null,null,null,0,null,0]
[null,null,null,null,null,null,null,null,null,null,0,null,0]
[null,null,null,null,null,null,null,null,null,null,0,null,0]
[null,null,null,null,null,null,null,null,null,null,0,null,0]
[null,null,null,null,null,null,null,null,null,null,0,null,0]
[null,null,null,null,null,null,null,null,null,null,0,null,0]
[null,null,null,null,null,null,null,null,null,null,0,null,0]
[null,null,null,null,null,null,null,null,null,null,0,null,0]
[null,null,null,null,null,null,null,null,null,null,0,null,0]
[null,null,null,null,null,null,null,null,null,null,0,null,0]
[null,null,null,null,null,null,null,null,null,null,0,null,0]
[null,null,null,null,null,null,null,null,null,null,0,null,0]
[null,null,null,null,null,null,null,null,null,null,0,null,0]
[null,null,null,null,null,null,null,null,null,null,0,null,0]
[null,null,null,null,null,null,null,null,null,null,0,null,0]
[null,null,null,null,null,null,null,null,null,null,0,null,0]
[null,null,null,null,null,null,null,null,null,null,0,null,0]
[null,null,null,null,null,null,null,null,null,null,0,null,0]
[null,null,null,null,null,null,null,null,null,null,0,null,0]
[null,null,null,null,null,null,null,null,null,null,0,null,0]
[null,null,null,null,null,null,null,null,null,null,0,null,0]
[null,null,null,null,null,null,null,null,null,null,0,null,0]
[null,null,null,null,null,null,null,null,null,null,0,null,0]
[null,null,null,null,null,null,null,null,null,null,0,null,0]
[null,null,null,null,null,null,null,null,null,null,0,null,0]
[null,null,null,null,null,null,null,null,null,null,0,null,0]
[null,null,null,null,null,null,null,null,null,null,0,null,0]
[null,null,null,null,null,null,null,null,null,null,0,null,0]
[null,null,null,null,null,null,null,null,null,null,0,null,0]
[null,null,null,null,null,null,null,null,null,null,0,null,0]
[null,null,null,null,null,null,null,null,null,null,0,null,0]
[null,null,null,null,null,null,null,null,null,null,0,null,0]
[null,null,null,null,null,null,null,null,null,null,0,null,0]
[null,null,null,null,null,null,null,null,null,null,0,null,0]
[null,null,null,null,null,null,null,null,null,null,0,null,0]
[null,null,null,null,null,null,null,null,null,null,0,null,0]
[null,null,null,null,null,null,null,null,null,null,0,null,0]
[null,null,null,null,null,null,null,null,null,null,0,null,0]
[null,null,null,null,null,null,null,null,null,null,{"$f":"J9605*G9605","v":0},null,{"$f":"L9605*G9605","v":0}]
[null,null,null,null,null,null,null,null,null,null,0,null,0]
[null,null,null,null,null,null,null,null,null,null,0,null,0]
[null,null,null,null,null,null,null,null,null,null,0,null,0]
[null,null,null,null,null,null,null,null,null,null,0,null,0]
[null,null,null,null,null,null,null,null,null,null,0,null,0]
[null,null,null,null,null,null,null,null,null,null,0,null,0]
[null,null,null,null,null,null,null,null,null,null,0,null,0]
[null,null,null,null,null,null,null,null,null,null,0,null,0]
[null,null,null,null,null,null,null,null,null,null,0,null,0]
[null,null,null,null,null,null,null,null,null,null,0,null,0]
[null,null,null,null,null,null,null,null,null,null,0,null,0]
[null,null,null,null,null,null,null,null,null,null,0,null,0]
[null,null,null,null,null,null,null,null,null,null,0,null,0]
[null,null,null,null,null,null,null,null,null,null,0,null,0]
[null,null,null,null,null,null,null,null,null,null,0,null,0]
[null,null,null,null,null,null,null,null,null,null,0,null,0]
[null,null,null,null,null,null,null,null,null,null,0,null,0]
[null,null,null,null,null,null,null,null,null,null,0,null,0]
[null,null,null,null,null,null,null,null,null,null,0,null,0]
[null,null,null,null,null,null,null,null,null,null,0,null,0]
[null,null,null,null,null,null,null,null,null,null,0,null,0]
[null,null,null,null,null,null,null,null,null,null,0,null,0]
[null,null,null,null,null,null,null,null,null,null,0,null,0]
[null,null,null,null,null,null,null,null,null,null,0,null,0]
[null,null,null,null,null,null,null,null,null,null,0,null,0]
[null,null,null,null,null,null,null,null,null,null,0,null,0]
[null,null,null,null,null,null,null,null,null,null,0,null,0]
[null,null,null,null,null,null,null,null,null,null,0,null,0]
[null,null,null,null,null,null,null,null,null,null,0,null,0]
[null,null,null,null,null,null,null,null,null,null,0,null,0]
[null,null,null,null,null,null,null,null,null,null,0,null,0]
[null,null,null,null,null,null,null,null,null,null,0,null,0]
[null,null,null,null,null,null,null,null,null,null,0,null,0]
[null,null,null,null,null,null,null,null,null,null,0,null,0]
[null,null,null,null,null,null,null,null,null,null,0,null,0]
[null,null,null,null,null,null,null,null,null,null,0,null,0]
[null,null,null,null,null,null,null,null,null,null,0,null,0]
[null,null,null,null,null,null,null,null,null,null,0,null,0]
[null,null,null,null,null,null,null,null,null,null,0,null,0]
[null,null,null,null,null,null,null,null,null,null,0,null,0]
[null,null,null,null,null,null,null,null,null,null,0,null,0]
[null,null,null,null,null,null,null,null,null,null,0,null,0]
[null,null,null,null,null,null,null,null,null,null,0,null,0]
[null,null,null,null,null,null,null,null,null,null,0,null,0]
[null,null,null,null,null,null,null,null,null,null,0,null,0]
[null,null,null,null,null,null,null,null,null,null,0,null,0]
[null,null,null,null,null,null,null,null,null,null,0,null,0]
[null,null,null,null,null,null,null,null,null,null,0,null,0]
[null,null,null,null,null,null,null,null,null,null,0,null,0]
[null,null,null,null,null,null,null,null,null,null,0,null,0]
[null,null,null,null,null,null,null,null,null,null,0,null,0]
[null,null,null,null,null,null,null,null,null,null,0,null,0]
[null,null,null,null,null,null,null,null,null,null,0,null,0]
[null,null,null,null,null,null,null,null,null,null,0,null,0]
[null,null,null,null,null,null,null,null,null,null,0,null,0]
[null,null,null,null,null,null,null,null,null,null,0,null,0]
[null,null,null,null,null,null,null,null,null,null,0,null,0]
[null,null,null,null,null,null,null,null,null,null,0,null,0]
[null,null,null,null,null,null,null,null,null,null,0,null,0]
[null,null,null,null,null,null,null,null,null,null,0,null,0]
[null,null,null,null,null,null,null,null,null,null,0,null,0]
[null,null,null,null,null,null,null,null,null,null,0,null,0]
[null,null,null,null,null,null,null,null,null,null,0,null,0]
[null,null,null,null,null,null,null,null,null,null,{"$f":"J9669*G9669","v":0},null,{"$f":"L9669*G9669","v":0}]
[null,null,null,null,null,null,null,null,null,null,0,null,0]
[null,null,null,null,null,null,null,null,null,null,0,null,0]
[null,null,null,null,null,null,null,null,null,null,0,null,0]
[null,null,null,null,null,null,null,null,null,null,0,null,0]
[null,null,null,null,null,null,null,null,null,null,0,null,0]
[null,null,null,null,null,null,null,null,null,null,0,null,0]
[null,null,null,null,null,null,null,null,null,null,0,null,0]
[null,null,null,null,null,null,null,null,null,null,0,null,0]
[null,null,null,null,null,null,null,null,null,null,0,null,0]
[null,null,null,null,null,null,null,null,null,null,0,null,0]
[null,null,null,null,null,null,null,null,null,null,0,null,0]
[null,null,null,null,null,null,null,null,null,null,0,null,0]
[null,null,null,null,null,null,null,null,null,null,0,null,0]
[null,null,null,null,null,null,null,null,null,null,0,null,0]
[null,null,null,null,null,null,null,null,null,null,0,null,0]
[null,null,null,null,null,null,null,null,null,null,0,null,0]
[null,null,null,null,null,null,null,null,null,null,0,null,0]
[null,null,null,null,null,null,null,null,null,null,0,null,0]
[null,null,null,null,null,null,null,null,null,null,0,null,0]
[null,null,null,null,null,null,null,null,null,null,0,null,0]
[null,null,null,null,null,null,null,null,null,null,0,null,0]
[null,null,null,null,null,null,null,null,null,null,0,null,0]
[null,null,null,null,null,null,null,null,null,null,0,null,0]
[null,null,null,null,null,null,null,null,null,null,0,null,0]
[null,null,null,null,null,null,null,null,null,null,0,null,0]
[null,null,null,null,null,null,null,null,null,null,0,null,0]
[null,null,null,null,null,null,null,null,null,null,0,null,0]
[null,null,null,null,null,null,null,null,null,null,0,null,0]
[null,null,null,null,null,null,null,null,null,null,0,null,0]
[null,null,null,null,null,null,null,null,null,null,0,null,0]
[null,null,null,null,null,null,null,null,null,null,0,null,0]
[null,null,null,null,null,null,null,null,null,null,0,null,0]
[null,null,null,null,null,null,null,null,null,null,0,null,0]
[null,null,null,null,null,null,null,null,null,null,0,null,0]
[null,null,null,null,null,null,null,null,null,null,0,null,0]
[null,null,null,null,null,null,null,null,null,null,0,null,0]
[null,null,null,null,null,null,null,null,null,null,0,null,0]
[null,null,null,null,null,null,null,null,null,null,0,null,0]
[null,null,null,null,null,null,null,null,null,null,0,null,0]
[null,null,null,null,null,null,null,null,null,null,0,null,0]
[null,null,null,null,null,null,null,null,null,null,0,null,0]
[null,null,null,null,null,null,null,null,null,null,0,null,0]
[null,null,null,null,null,null,null,null,null,null,0,null,0]
[null,null,null,null,null,null,null,null,null,null,0,null,0]
[null,null,null,null,null,null,null,null,null,null,0,null,0]
[null,null,null,null,null,null,null,null,null,null,0,null,0]
[null,null,null,null,null,null,null,null,null,null,0,null,0]
[null,null,null,null,null,null,null,null,null,null,0,null,0]
[null,null,null,null,null,null,null,null,null,null,0,null,0]
[null,null,null,null,null,null,null,null,null,null,0,null,0]
[null,null,null,null,null,null,null,null,null,null,0,null,0]
[null,null,null,null,null,null,null,null,null,null,0,null,0]
[null,null,null,null,null,null,null,null,null,null,0,null,0]
[null,null,null,null,null,null,null,null,null,null,0,null,0]
[null,null,null,null,null,null,null,null,null,null,0,null,0]
[null,null,null,null,null,null,null,null,null,null,0,null,0]
[null,null,null,null,null,null,null,null,null,null,0,null,0]
[null,null,null,null,null,null,null,null,null,null,0,null,0]
[null,null,null,null,null,null,null,null,null,null,0,null,0]
[null,null,null,null,null,null,null,null,null,null,0,null,0]
[null,null,null,null,null,null,null,null,null,null,0,null,0]
[null,null,null,null,null,null,null,null,null,null,0,null,0]
[null,null,null,null,null,null,null,null,null,null,0,null,0]
[null,null,null,null,null,null,null,null,null,null,{"$f":"J9733*G9733","v":0},null,{"$f":"L9733*G9733","v":0}]
[null,null,null,null,null,null,null,null,null,null,0,null,0]
[null,null,null,null,null,null,null,null,null,null,0,null,0]
[null,null,null,null,null,null,null,null,null,null,0,null,0]
[null,null,null,null,null,null,null,null,null,null,0,null,0]
[null,null,null,null,null,null,null,null,null,null,0,null,0]
[null,null,null,null,null,null,null,null,null,null,0,null,0]
[null,null,null,null,null,null,null,null,null,null,0,null,0]
[null,null,null,null,null,null,null,null,null,null,0,null,0]
[null,null,null,null,null,null,null,null,null,null,0,null,0]
[null,null,null,null,null,null,null,null,null,null,0,null,0]
[null,null,null,null,null,null,null,null,null,null,0,null,0]
[null,null,null,null,null,null,null,null,null,null,0,null,0]
[null,null,null,null,null,null,null,null,null,null,0,null,0]
[null,null,null,null,null,null,null,null,null,null,0,null,0]
[null,null,null,null,null,null,null,null,null,null,0,null,0]
[null,null,null,null,null,null,null,null,null,null,0,null,0]
[null,null,null,null,null,null,null,null,null,null,0,null,0]
[null,null,null,null,null,null,null,null,null,null,0,null,0]
[null,null,null,null,null,null,null,null,null,null,0,null,0]
[null,null,null,null,null,null,null,null,null,null,0,null,0]
[null,null,null,null,null,null,null,null,null,null,0,null,0]
[null,null,null,null,null,null,null,null,null,null,0,null,0]
[null,null,null,null,null,null,null,null,null,null,0,null,0]
[null,null,null,null,null,null,null,null,null,null,0,null,0]
[null,null,null,null,null,null,null,null,null,null,0,null,0]
[null,null,null,null,null,null,null,null,null,null,0,null,0]
[null,null,null,null,null,null,null,null,null,null,0,null,0]
[null,null,null,null,null,null,null,null,null,null,0,null,0]
[null,null,null,null,null,null,null,null,null,null,0,null,0]
[null,null,null,null,null,null,null,null,null,null,0,null,0]
[null,null,null,null,null,null,null,null,null,null,0,null,0]
[null,null,null,null,null,null,null,null,null,null,0,null,0]
[null,null,null,null,null,null,null,null,null,null,0,null,0]
[null,null,null,null,null,null,null,null,null,null,0,null,0]
[null,null,null,null,null,null,null,null,null,null,0,null,0]
[null,null,null,null,null,null,null,null,null,null,0,null,0]
[null,null,null,null,null,null,null,null,null,null,0,null,0]
[null,null,null,null,null,null,null,null,null,null,0,null,0]
[null,null,null,null,null,null,null,null,null,null,0,null,0]
[null,null,null,null,null,null,null,null,null,null,0,null,0]
[null,null,null,null,null,null,null,null,null,null,0,null,0]
[null,null,null,null,null,null,null,null,null,null,0,null,0]
[null,null,null,null,null,null,null,null,null,null,0,null,0]
[null,null,null,null,null,null,null,null,null,null,0,null,0]
[null,null,null,null,null,null,null,null,null,null,0,null,0]
[null,null,null,null,null,null,null,null,null,null,0,null,0]
[null,null,null,null,null,null,null,null,null,null,0,null,0]
[null,null,null,null,null,null,null,null,null,null,0,null,0]
[null,null,null,null,null,null,null,null,null,null,0,null,0]
[null,null,null,null,null,null,null,null,null,null,0,null,0]
[null,null,null,null,null,null,null,null,null,null,0,null,0]
[null,null,null,null,null,null,null,null,null,null,0,null,0]
[null,null,null,null,null,null,null,null,null,null,0,null,0]
[null,null,null,null,null,null,null,null,null,null,0,null,0]
[null,null,null,null,null,null,null,null,null,null,0,null,0]
[null,null,null,null,null,null,null,null,null,null,0,null,0]
[null,null,null,null,null,null,null,null,null,null,0,null,0]
[null,null,null,null,null,null,null,null,null,null,0,null,0]
[null,null,null,null,null,null,null,null,null,null,0,null,0]
[null,null,null,null,null,null,null,null,null,null,0,null,0]
[null,null,null,null,null,null,null,null,null,null,0,null,0]
[null,null,null,null,null,null,null,null,null,null,0,null,0]
[null,null,null,null,null,null,null,null,null,null,0,null,0]
[null,null,null,null,null,null,null,null,null,null,{"$f":"J9797*G9797","v":0},null,{"$f":"L9797*G9797","v":0}]
[null,null,null,null,null,null,null,null,null,null,0,null,0]
[null,null,null,null,null,null,null,null,null,null,0,null,0]
[null,null,null,null,null,null,null,null,null,null,0,null,0]
[null,null,null,null,null,null,null,null,null,null,0,null,0]
[null,null,null,null,null,null,null,null,null,null,0,null,0]
[null,null,null,null,null,null,null,null,null,null,0,null,0]
[null,null,null,null,null,null,null,null,null,null,0,null,0]
[null,null,null,null,null,null,null,null,null,null,0,null,0]
[null,null,null,null,null,null,null,null,null,null,0,null,0]
[null,null,null,null,null,null,null,null,null,null,0,null,0]
[null,null,null,null,null,null,null,null,null,null,0,null,0]
[null,null,null,null,null,null,null,null,null,null,0,null,0]
[null,null,null,null,null,null,null,null,null,null,0,null,0]
[null,null,null,null,null,null,null,null,null,null,0,null,0]
[null,null,null,null,null,null,null,null,null,null,0,null,0]
[null,null,null,null,null,null,null,null,null,null,0,null,0]
[null,null,null,null,null,null,null,null,null,null,0,null,0]
[null,null,null,null,null,null,null,null,null,null,0,null,0]
[null,null,null,null,null,null,null,null,null,null,0,null,0]
[null,null,null,null,null,null,null,null,null,null,0,null,0]
[null,null,null,null,null,null,null,null,null,null,0,null,0]
[null,null,null,null,null,null,null,null,null,null,0,null,0]
[null,null,null,null,null,null,null,null,null,null,0,null,0]
[null,null,null,null,null,null,null,null,null,null,0,null,0]
[null,null,null,null,null,null,null,null,null,null,0,null,0]
[null,null,null,null,null,null,null,null,null,null,0,null,0]
[null,null,null,null,null,null,null,null,null,null,0,null,0]
[null,null,null,null,null,null,null,null,null,null,0,null,0]
[null,null,null,null,null,null,null,null,null,null,0,null,0]
[null,null,null,null,null,null,null,null,null,null,0,null,0]
[null,null,null,null,null,null,null,null,null,null,0,null,0]
[null,null,null,null,null,null,null,null,null,null,0,null,0]
[null,null,null,null,null,null,null,null,null,null,0,null,0]
[null,null,null,null,null,null,null,null,null,null,0,null,0]
[null,null,null,null,null,null,null,null,null,null,0,null,0]
[null,null,null,null,null,null,null,null,null,null,0,null,0]
[null,null,null,null,null,null,null,null,null,null,0,null,0]
[null,null,null,null,null,null,null,null,null,null,0,null,0]
[null,null,null,null,null,null,null,null,null,null,0,null,0]
[null,null,null,null,null,null,null,null,null,null,0,null,0]
[null,null,null,null,null,null,null,null,null,null,0,null,0]
[null,null,null,null,null,null,null,null,null,null,0,null,0]
[null,null,null,null,null,null,null,null,null,null,0,null,0]
[null,null,null,null,null,null,null,null,null,null,0,null,0]
[null,null,null,null,null,null,null,null,null,null,0,null,0]
[null,null,null,null,null,null,null,null,null,null,0,null,0]
[null,null,null,null,null,null,null,null,null,null,0,null,0]
[null,null,null,null,null,null,null,null,null,null,0,null,0]
[null,null,null,null,null,null,null,null,null,null,0,null,0]
[null,null,null,null,null,null,null,null,null,null,0,null,0]
[null,null,null,null,null,null,null,null,null,null,0,null,0]
[null,null,null,null,null,null,null,null,null,null,0,null,0]
[null,null,null,null,null,null,null,null,null,null,0,null,0]
[null,null,null,null,null,null,null,null,null,null,0,null,0]
[null,null,null,null,null,null,null,null,null,null,0,null,0]
[null,null,null,null,null,null,null,null,null,null,0,null,0]
[null,null,null,null,null,null,null,null,null,null,0,null,0]
[null,null,null,null,null,null,null,null,null,null,0,null,0]
[null,null,null,null,null,null,null,null,null,null,0,null,0]
[null,null,null,null,null,null,null,null,null,null,0,null,0]
[null,null,null,null,null,null,null,null,null,null,0,null,0]
[null,null,null,null,null,null,null,null,null,null,0,null,0]
[null,null,null,null,null,null,null,null,null,null,0,null,0]
[null,null,null,null,null,null,null,null,null,null,{"$f":"J9861*G9861","v":0},null,{"$f":"L9861*G9861","v":0}]
[null,null,null,null,null,null,null,null,null,null,0,null,0]
[null,null,null,null,null,null,null,null,null,null,0,null,0]
[null,null,null,null,null,null,null,null,null,null,0,null,0]
[null,null,null,null,null,null,null,null,null,null,0,null,0]
[null,null,null,null,null,null,null,null,null,null,0,null,0]
[null,null,null,null,null,null,null,null,null,null,0,null,0]
[null,null,null,null,null,null,null,null,null,null,0,null,0]
[null,null,null,null,null,null,null,null,null,null,0,null,0]
[null,null,null,null,null,null,null,null,null,null,0,null,0]
[null,null,null,null,null,null,null,null,null,null,0,null,0]
[null,null,null,null,null,null,null,null,null,null,0,null,0]
[null,null,null,null,null,null,null,null,null,null,0,null,0]
[null,null,null,null,null,null,null,null,null,null,0,null,0]
[null,null,null,null,null,null,null,null,null,null,0,null,0]
[null,null,null,null,null,null,null,null,null,null,0,null,0]
[null,null,null,null,null,null,null,null,null,null,0,null,0]
[null,null,null,null,null,null,null,null,null,null,0,null,0]
[null,null,null,null,null,null,null,null,null,null,0,null,0]
[null,null,null,null,null,null,null,null,null,null,0,null,0]
[null,null,null,null,null,null,null,null,null,null,0,null,0]
[null,null,null,null,null,null,null,null,null,null,0,null,0]
[null,null,null,null,null,null,null,null,null,null,0,null,0]
[null,null,null,null,null,null,null,null,null,null,0,null,0]
[null,null,null,null,null,null,null,null,null,null,0,null,0]
[null,null,null,null,null,null,null,null,null,null,0,null,0]
[null,null,null,null,null,null,null,null,null,null,0,null,0]
[null,null,null,null,null,null,null,null,null,null,0,null,0]
[null,null,null,null,null,null,null,null,null,null,0,null,0]
[null,null,null,null,null,null,null,null,null,null,0,null,0]
[null,null,null,null,null,null,null,null,null,null,0,null,0]
[null,null,null,null,null,null,null,null,null,null,0,null,0]
[null,null,null,null,null,null,null,null,null,null,0,null,0]
[null,null,null,null,null,null,null,null,null,null,0,null,0]
[null,null,null,null,null,null,null,null,null,null,0,null,0]
[null,null,null,null,null,null,null,null,null,null,0,null,0]
[null,null,null,null,null,null,null,null,null,null,0,null,0]
[null,null,null,null,null,null,null,null,null,null,0,null,0]
[null,null,null,null,null,null,null,null,null,null,0,null,0]
[null,null,null,null,null,null,null,null,null,null,0,null,0]
[null,null,null,null,null,null,null,null,null,null,0,null,0]
[null,null,null,null,null,null,null,null,null,null,0,null,0]
[null,null,null,null,null,null,null,null,null,null,0,null,0]
[null,null,null,null,null,null,null,null,null,null,0,null,0]
[null,null,null,null,null,null,null,null,null,null,0,null,0]
[null,null,null,null,null,null,null,null,null,null,0,null,0]
[null,null,null,null,null,null,null,null,null,null,0,null,0]
[null,null,null,null,null,null,null,null,null,null,0,null,0]
[null,null,null,null,null,null,null,null,null,null,0,null,0]
[null,null,null,null,null,null,null,null,null,null,0,null,0]
[null,null,null,null,null,null,null,null,null,null,0,null,0]
[null,null,null,null,null,null,null,null,null,null,0,null,0]
[null,null,null,null,null,null,null,null,null,null,0,null,0]
[null,null,null,null,null,null,null,null,null,null,0,null,0]
[null,null,null,null,null,null,null,null,null,null,0,null,0]
[null,null,null,null,null,null,null,null,null,null,0,null,0]
[null,null,null,null,null,null,null,null,null,null,0,null,0]
[null,null,null,null,null,null,null,null,null,null,0,null,0]
[null,null,null,null,null,null,null,null,null,null,0,null,0]
[null,null,null,null,null,null,null,null,null,null,0,null,0]
[null,null,null,null,null,null,null,null,null,null,0,null,0]
[null,null,null,null,null,null,null,null,null,null,0,null,0]
[null,null,null,null,null,null,null,null,null,null,0,null,0]
[null,null,null,null,null,null,null,null,null,null,0,null,0]
[null,null,null,null,null,null,null,null,null,null,{"$f":"J9925*G9925","v":0},null,{"$f":"L9925*G9925","v":0}]
[null,null,null,null,null,null,null,null,null,null,0,null,0]
[null,null,null,null,null,null,null,null,null,null,0,null,0]
[null,null,null,null,null,null,null,null,null,null,0,null,0]
[null,null,null,null,null,null,null,null,null,null,0,null,0]
[null,null,null,null,null,null,null,null,null,null,0,null,0]
[null,null,null,null,null,null,null,null,null,null,0,null,0]
[null,null,null,null,null,null,null,null,null,null,0,null,0]
[null,null,null,null,null,null,null,null,null,null,0,null,0]
[null,null,null,null,null,null,null,null,null,null,0,null,0]
[null,null,null,null,null,null,null,null,null,null,0,null,0]
[null,null,null,null,null,null,null,null,null,null,0,null,0]
[null,null,null,null,null,null,null,null,null,null,0,null,0]
[null,null,null,null,null,null,null,null,null,null,0,null,0]
[null,null,null,null,null,null,null,null,null,null,0,null,0]
[null,null,null,null,null,null,null,null,null,null,0,null,0]
[null,null,null,null,null,null,null,null,null,null,0,null,0]
[null,null,null,null,null,null,null,null,null,null,0,null,0]
[null,null,null,null,null,null,null,null,null,null,0,null,0]
[null,null,null,null,null,null,null,null,null,null,0,null,0]
[null,null,null,null,null,null,null,null,null,null,0,null,0]
[null,null,null,null,null,null,null,null,null,null,0,null,0]
[null,null,null,null,null,null,null,null,null,null,0,null,0]
[null,null,null,null,null,null,null,null,null,null,0,null,0]
[null,null,null,null,null,null,null,null,null,null,0,null,0]
[null,null,null,null,null,null,null,null,null,null,0,null,0]
[null,null,null,null,null,null,null,null,null,null,0,null,0]
[null,null,null,null,null,null,null,null,null,null,0,null,0]
[null,null,null,null,null,null,null,null,null,null,0,null,0]
[null,null,null,null,null,null,null,null,null,null,0,null,0]
[null,null,null,null,null,null,null,null,null,null,0,null,0]
[null,null,null,null,null,null,null,null,null,null,0,null,0]
[null,null,null,null,null,null,null,null,null,null,0,null,0]
[null,null,null,null,null,null,null,null,null,null,0,null,0]
[null,null,null,null,null,null,null,null,null,null,0,null,0]
[null,null,null,null,null,null,null,null,null,null,0,null,0]
[null,null,null,null,null,null,null,null,null,null,0,null,0]
[null,null,null,null,null,null,null,null,null,null,0,null,0]
[null,null,null,null,null,null,null,null,null,null,0,null,0]
[null,null,null,null,null,null,null,null,null,null,0,null,0]
[null,null,null,null,null,null,null,null,null,null,0,null,0]
[null,null,null,null,null,null,null,null,null,null,0,null,0]
[null,null,null,null,null,null,null,null,null,null,0,null,0]
[null,null,null,null,null,null,null,null,null,null,0,null,0]
[null,null,null,null,null,null,null,null,null,null,0,null,0]
[null,null,null,null,null,null,null,null,null,null,0,null,0]
[null,null,null,null,null,null,null,null,null,null,0,null,0]
[null,null,null,null,null,null,null,null,null,null,0,null,0]
[null,null,null,null,null,null,null,null,null,null,0,null,0]
[null,null,null,null,null,null,null,null,null,null,0,null,0]
[null,null,null,null,null,null,null,null,null,null,0,null,0]
[null,null,null,null,null,null,null,null,null,null,0,null,0]
[null,null,null,null,null,null,null,null,null,null,0,null,0]
[null,null,null,null,null,null,null,null,null,null,0,null,0]
[null,null,null,null,null,null,null,null,null,null,0,null,0]
[null,null,null,null,null,null,null,null,null,null,0,null,0]
[null,null,null,null,null,null,null,null,null,null,0,null,0]
[null,null,null,null,null,null,null,null,null,null,0,null,0]
[null,null,null,null,null,null,null,null,null,null,0,null,0]
[null,null,null,null,null,null,null,null,null,null,0,null,0]
[null,null,null,null,null,null,null,null,null,null,0,null,0]
[null,null,null,null,null,null,null,null,null,null,0,null,0]
[null,null,null,null,null,null,null,null,null,null,0,null,0]
[null,null,null,null,null,null,null,null,null,null,0,null,0]
[null,null,null,null,null,null,null,null,null,null,{"$f":"J9989*G9989","v":0},null,{"$f":"L9989*G9989","v":0}]
[null,null,null,null,null,null,null,null,null,null,0,null,0]
[null,null,null,null,null,null,null,null,null,null,0,null,0]
[null,null,null,null,null,null,null,null,null,null,0,null,0]
[null,null,null,null,null,null,null,null,null,null,0,null,0]
[null,null,null,null,null,null,null,null,null,null,0,null,0]
[null,null,null,null,null,null,null,null,null,null,0,null,0]
[null,null,null,null,null,null,null,null,null,null,0,null,0]
[null,null,null,null,null,null,null,null,null,null,0,null,0]
[null,null,null,null,null,null,null,null,null,null,0,null,0]
[null,null,null,null,null,null,null,null,null,null,0,null,0]
[null,null,null,null,null,null,null,null,null,null,0,null,0]
[null,null,null,null,null,null,null,null,null,null,{"$f":"J10001*G10001","v":0},null,{"$f":"L10001*G10001","v":0}]
[null,null,null,null,null,null,null,null,null,null,0,null,0]
[null,null,null,null,null,null,null,null,null,null,0,null,0]
[null,null,null,null,null,null,null,null,null,null,0,null,0]
[null,null,null,null,null,null,null,null,null,null,0,null,0]
[null,null,null,null,null,null,null,null,null,null,0,null,0]
[null,null,null,null,null,null,null,null,null,null,0,null,0]
[null,null,null,null,null,null,null,null,null,null,0,null,0]
[null,null,null,null,null,null,null,null,null,null,0,null,0]
[null,null,null,null,null,null,null,null,null,null,0,null,0]
[null,null,null,null,null,null,null,null,null,null,0,null,0]
[null,null,null,null,null,null,null,null,null,null,0,null,0]
[null,null,null,null,null,null,null,null,null,null,0,null,0]
[null,null,null,null,null,null,null,null,null,null,0,null,0]
[null,null,null,null,null,null,null,null,null,null,0,null,0]
[null,null,null,null,null,null,null,null,null,null,0,null,0]
[null,null,null,null,null,null,null,null,null,null,0,null,0]
[null,null,null,null,null,null,null,null,null,null,0,null,0]
[null,null,null,null,null,null,null,null,null,null,0,null,0]

{"sheet":"Buchungsliste","index":2,"n_rows":3,"n_cols":11,"rows_kept":3,"cut":false,"hidden":false,"merged":[[1,1,1,7]]}
[]
[null,"Buchungsliste",null,null,null,null,null,null,"2018-12-08","14:36:04"]
[null,"Art.-Nr.",{"$f":"Artikelliste!C3","v":"Artikel"},{"$f":"Artikelliste!D3","v":"Bezeichnung"},"   +","   -","Lieferant","Kunde / Kommission","Datum","Zeit","Mitarbeiter"]

{"sheet":"EAN 128","index":3,"n_rows":32,"n_cols":3,"rows_kept":32,"cut":false,"hidden":false,"merged":[]}
[{"$f":"A2","v":"Schraube M8*25"},{"$f":"B2","v":"Schraube M8*25"},{"$f":"C2","v":"Schraube M8*25"}]
["Schraube M8*25",{"$f":"$A$2","v":"Schraube M8*25"},{"$f":"$A$2","v":"Schraube M8*25"}]
[{"$f":"A4","v":"Schraube M8*25"},{"$f":"B4","v":"Schraube M8*25"},{"$f":"C4","v":"Schraube M8*25"}]
[{"$f":"$A$2","v":"Schraube M8*25"},{"$f":"$A$2","v":"Schraube M8*25"},{"$f":"$A$2","v":"Schraube M8*25"}]
[{"$f":"A6","v":"Schraube M8*25"},{"$f":"B6","v":"Schraube M8*25"},{"$f":"C6","v":"Schraube M8*25"}]
[{"$f":"$A$2","v":"Schraube M8*25"},{"$f":"$A$2","v":"Schraube M8*25"},{"$f":"$A$2","v":"Schraube M8*25"}]
[{"$f":"A8","v":"Schraube M8*25"},{"$f":"B8","v":"Schraube M8*25"},{"$f":"C8","v":"Schraube M8*25"}]
[{"$f":"$A$2","v":"Schraube M8*25"},{"$f":"$A$2","v":"Schraube M8*25"},{"$f":"$A$2","v":"Schraube M8*25"}]
[{"$f":"A10","v":"Schraube M8*25"},{"$f":"B10","v":"Schraube M8*25"},{"$f":"C10","v":"Schraube M8*25"}]
[{"$f":"$A$2","v":"Schraube M8*25"},{"$f":"$A$2","v":"Schraube M8*25"},{"$f":"$A$2","v":"Schraube M8*25"}]
[{"$f":"A12","v":"Schraube M8*25"},{"$f":"B12","v":"Schraube M8*25"},{"$f":"C12","v":"Schraube M8*25"}]
[{"$f":"$A$2","v":"Schraube M8*25"},{"$f":"$A$2","v":"Schraube M8*25"},{"$f":"$A$2","v":"Schraube M8*25"}]
[{"$f":"A14","v":"Schraube M8*25"},{"$f":"B14","v":"Schraube M8*25"},{"$f":"C14","v":"Schraube M8*25"}]
[{"$f":"$A$2","v":"Schraube M8*25"},{"$f":"$A$2","v":"Schraube M8*25"},{"$f":"$A$2","v":"Schraube M8*25"}]
[{"$f":"A16","v":"Schraube M8*25"},{"$f":"B16","v":"Schraube M8*25"},{"$f":"C16","v":"Schraube M8*25"}]
[{"$f":"$A$2","v":"Schraube M8*25"},{"$f":"$A$2","v":"Schraube M8*25"},{"$f":"$A$2","v":"Schraube M8*25"}]
[{"$f":"A18","v":"Schraube M8*25"},{"$f":"B18","v":"Schraube M8*25"},{"$f":"C18","v":"Schraube M8*25"}]
[{"$f":"$A$2","v":"Schraube M8*25"},{"$f":"$A$2","v":"Schraube M8*25"},{"$f":"$A$2","v":"Schraube M8*25"}]
[{"$f":"A20","v":"Schraube M8*25"},{"$f":"B20","v":"Schraube M8*25"},{"$f":"C20","v":"Schraube M8*25"}]
[{"$f":"$A$2","v":"Schraube M8*25"},{"$f":"$A$2","v":"Schraube M8*25"},{"$f":"$A$2","v":"Schraube M8*25"}]
[{"$f":"A22","v":"Schraube M8*25"},{"$f":"B22","v":"Schraube M8*25"},{"$f":"C22","v":"Schraube M8*25"}]
[{"$f":"$A$2","v":"Schraube M8*25"},{"$f":"$A$2","v":"Schraube M8*25"},{"$f":"$A$2","v":"Schraube M8*25"}]
[{"$f":"A24","v":"Schraube M8*25"},{"$f":"B24","v":"Schraube M8*25"},{"$f":"C24","v":"Schraube M8*25"}]
[{"$f":"$A$2","v":"Schraube M8*25"},{"$f":"$A$2","v":"Schraube M8*25"},{"$f":"$A$2","v":"Schraube M8*25"}]
[{"$f":"A26","v":"Schraube M8*25"},{"$f":"B26","v":"Schraube M8*25"},{"$f":"C26","v":"Schraube M8*25"}]
[{"$f":"$A$2","v":"Schraube M8*25"},{"$f":"$A$2","v":"Schraube M8*25"},{"$f":"$A$2","v":"Schraube M8*25"}]
[{"$f":"A28","v":"Schraube M8*25"},{"$f":"B28","v":"Schraube M8*25"},{"$f":"C28","v":"Schraube M8*25"}]
[{"$f":"$A$2","v":"Schraube M8*25"},{"$f":"$A$2","v":"Schraube M8*25"},{"$f":"$A$2","v":"Schraube M8*25"}]
[{"$f":"A30","v":"Schraube M8*25"},{"$f":"B30","v":"Schraube M8*25"},{"$f":"C30","v":"Schraube M8*25"}]
[{"$f":"$A$2","v":"Schraube M8*25"},{"$f":"$A$2","v":"Schraube M8*25"},{"$f":"$A$2","v":"Schraube M8*25"}]
[{"$f":"A32","v":"Schraube M8*25"},{"$f":"B32","v":"Schraube M8*25"},{"$f":"C32","v":"Schraube M8*25"}]
[{"$f":"$A$2","v":"Schraube M8*25"},{"$f":"$A$2","v":"Schraube M8*25"},{"$f":"$A$2","v":"Schraube M8*25"}]

{"sheet":"Daten","index":4,"n_rows":10,"n_cols":4,"rows_kept":10,"cut":false,"hidden":false,"merged":[[1,1,1,3],[2,2,3,2],[2,1,3,1],[2,3,3,3]]}
[]
[null,"Daten  für die Dropdowns"]
[null,"Lieferantenliste","Kundenliste / Kommission","Mitarbeiterliste"]
[]
[null,"Frau Holle, Hattingen","Dornröschen, Mülheim","Mbaya"]
[null,"Hans im Glück, Velbert","Froschkönig, Gladbeck","Müller"]
[null,"Max & Moritz, Essen","Hänsel & Gretel, Duisbug","Özdemir"]
[null,"Rotkäppchen, Mülheim","Schneewittchen, Gelsenkirchen","Papadopoulus"]
[null,"Stadtmusikanten, Bremen","Struwelpeter, Essen","Roa-Canales"]
[null,"Sterntaler, Bochum","Witwe Bolte, Witten","Schulz"]